{"text_format":"1","workbook":"xlsx","n_sheets":10,"sheets":["Instructions","Inputs","Estimated Returns","Formulas","Additional Details","Course Enrollment Questions","Cost and Enrollment Questions","Essential Features & Costs","Research Findings","Inst Financial Information"],"not_rendered":{"charts":0,"images":4,"macros":1,"external_links":0,"defined_names":4,"comments":0,"pivot_tables":0},"unopened":[],"bounds":{"document_bytes":16777216,"sheet_cells":100000,"rows_first":2000,"rows_last":500,"rows_between":2000,"halvings":0,"cell_chars":16384,"cell_head_chars":4096},"cells_cut":0,"cells_raw":0,"read":"whole","date_system":"1900"}

{"sheet":"Instructions","index":0,"n_rows":33,"n_cols":1,"rows_kept":33,"cut":false,"hidden":false,"merged":[[26,0,26,4],[27,0,27,4],[32,0,32,4],[1,0,1,4],[0,0,0,4],[25,0,25,4],[23,0,23,4],[24,0,24,4],[3,0,3,4],[2,0,2,4],[5,0,5,4],[6,0,6,4],[8,0,8,4],[12,0,12,4],[11,0,11,4],[10,0,10,4],[31,0,31,4],[28,0,28,4],[4,0,4,4],[7,0,7,4],[13,0,13,4],[22,0,22,4],[16,0,16,4],[17,0,17,4],[18,0,18,4],[19,0,19,4],[20,0,20,4],[21,0,21,4],[9,0,9,4],[14,0,14,4],[15,0,15,4],[29,0,29,4]]}
["Welcome to the Return on Investment Tool for Instructional Improvement Efforts: Start Here"]
["Version 1.1"]
["Instructions Overview"]
["This tab provides some brief information about the Return on Investment Tool for Instructional Improvement Efforts, including a description of the tool, the intended audience, and how to complete it.\nFor more details, please refer to the overview paper: https://www.acenet.edu/news-room/Documents/Estimating-ROI-Instructional-Improvement-Ithaka.pdf"]
[]
["What is the Return on Investment Tool for Instructional Improvement Efforts?"]
["The ROI tool draws on data and information collected through the empirical literature on the impacts of select instructional improvement efforts, and direct institution-specific inputs by the user, to estimate a range of the potential short- and medium-term ROI that a given institution can expect from a selected effort or reform that is designed and implemented as intended. The tool, and the resultant ROI ranges it produces, are designed to assist institutional administrators in making decisions about whether, or to what extent, to invest in select instructional improvement efforts on their campuses. It aims to achieve this by walking the user through a series of seven systematic steps (see below, as well as Figure 1 in the overview paper). \n\nThrough each step, the tool gathers institution-specific inputs and provides additional targeted information to the user to promote further thought or information-gathering surrounding specific reform components. The user is able to view all the backend information and formulas included in the tool to understand the data behind the ROI estimates. For more information on the inputs the user needs, please refer to the overview paper, in particular the checklist in Appendix D."]
[]
["What the tool is not"]
["It is important to note that the ROI tool was not designed to calculate precise ROI figures nor intended to be used as a sole or primary resource for decision-making regarding investing in instructional improvement reforms. The tool focuses on deriving the estimated financial ROI of reforms that aim to improve instructional quality. It includes two specific reforms with pre-filled impact estimates, whose results do not generalize to other instructional improvement efforts, as well as a generic option in which the user estimates an impact. The tool does not provide estimates regarding other types of ROI that may be of equal or greater value to the administrator (e.g., improvements in student or faculty satisfaction and engagement)."]
[]
["Who is the intended audience?"]
["The ROI tool is intended to serve as an additional resource or guide to help administrators gather relevant and useful information regarding the potential impact on student course pass rates and retention and the potential financial ROI of a particular type of instructional reform at a given institution, and consequently to assist in making a decision about whether to invest in such a reform. "]
[]
["How do you complete the tool?"]
["Step 1: Enter Institution Information\nUser enters their institution name and the control of the institution to pre-populate the tool with financial information derived from publicly available data and research findings."]
["Step 2: Select Instructional Improvement Effort of Interest\nUser selects one of two instructional improvement efforts, to pre-populate the tool with questions and information that are specific to the selected effort of interest, or selects \"other,\" allowing the user to assess an effort not covered by the tool."]
["Step 3: Enter Institutional Course-Level Information\nUser enters institution-specific information regarding the course(s) impacted by the selected instructional improvement effort."]
["Step 4: Review Anticipated Post-Effort Course Pass Rates\nUser reviews anticipated post-effort student pass rates in the redesigned course, pre-populated based on empirical findings pertaining to the selected instructional improvement effort."]
["Step 5: Enter Institutional Financial Information\nUser enters institutional financial information for the target population affected by the selected instructional improvement effort."]
["Step 6: Enter Effort-Related Costs and Cost Savings\nUser enters one-time and recurring additional costs incurred, and anticipated cost savings, due to the adoption of the selected instructional improvement effort."]
["Step 7: Select Institution’s Enrollment Strategy\nUser selects one of three enrollment strategies their institution is likely to adopt in response to the estimated increase in student retention generated by the selected instructional improvement effort."]
[]
["How is the ROI derived?"]
["To calculate the ROI, the tool estimates the additional net revenue a reform will yield, subtracts the additional (financial) cost associated with the effort, and divides by the total additional cost.\n• additional net revenue = additional net revenue generated by the change in the number of FTE students enrolled and/or retained at the institution plus cost savings realized by the reform.\n• additional costs = additional initial one-time direct costs and additional average annual recurring costs of implementing the effort.\n• ROI = [additional net revenue - additional costs] / additional costs"]
[]
["What are the two instructional improvement efforts included in the tool?"]
["Corequisite remediation redesign: This instructional improvement shifts the timing and delivery of remedial or developmental academic support so that it is provided to students simultaneously with college-level coursework (i.e., corequisite), rather than separately as a prerequisite to college-level coursework."]
["Blended introductory coursework redesign: This instructional improvement effort involves the redesign of large, introductory courses where some portion of traditional, face-to-face delivery is replaced with asynchronous, technology-assisted course delivery that is active, learner-centered, and focused on the mastery of specific learning objectives. Blended courses typically offer 30 to 79 percent of their content online."]
["Note: Users interested in assessing an effort not fully aligned with the two specific ones described above can select \"Other\" in the dropdown menu. "]
[]
["Operational settings"]
["Microsoft Windows, with the scale and layout within the display settings of the monitor or laptop set to 100%."]

{"sheet":"Inputs","index":1,"n_rows":97,"n_cols":7,"rows_kept":97,"cut":false,"hidden":false,"merged":[[1,0,1,4],[0,0,0,6],[36,2,36,4],[35,5,37,5],[18,4,19,4],[27,2,27,4],[18,2,19,2],[17,0,34,0],[17,1,34,1],[17,5,34,5],[7,0,7,6],[8,0,15,0],[2,2,2,4],[35,0,37,0],[35,1,37,1],[3,2,3,4],[4,2,4,4],[5,2,5,4],[3,0,6,0],[6,2,6,4],[3,1,6,1],[3,5,6,5],[4,6,6,6],[8,1,15,1],[70,2,70,4],[90,1,97,1],[59,5,88,5],[59,2,59,4],[60,2,60,4],[63,2,63,4],[64,2,64,4],[65,2,65,4],[66,2,66,4],[89,0,89,6],[90,0,97,0],[63,6,68,6],[75,2,75,4],[76,2,76,4],[77,2,77,4],[67,2,67,4],[68,2,68,4],[95,6,97,6],[97,2,97,4],[72,2,72,4],[73,2,73,4],[95,2,95,4],[90,5,97,5],[90,2,90,4],[16,0,16,6],[8,2,8,4],[9,2,9,4],[10,2,10,4],[11,2,15,4],[8,5,15,5],[40,2,40,4],[39,2,39,4],[30,2,30,4],[32,2,32,4],[35,6,37,6],[23,2,23,4],[17,3,22,3],[39,0,49,0],[39,1,49,1],[39,5,49,5],[81,2,81,4],[82,2,82,4],[83,2,83,4],[79,2,79,4],[78,2,78,4],[96,2,96,4],[84,2,84,4],[85,2,85,4],[86,2,86,4],[87,2,87,4],[88,2,88,4],[91,2,94,4],[51,5,57,5],[51,0,57,0],[51,1,57,1],[51,3,57,3],[41,3,42,3],[44,3,45,3],[62,2,62,4],[46,6,49,6],[46,2,46,4],[54,6,56,6],[52,6,53,6],[58,0,58,6],[59,0,88,0],[61,6,62,6],[61,2,61,4],[69,2,69,4],[74,2,74,4],[59,1,88,1],[75,6,78,6],[71,2,71,4],[86,6,88,6],[80,6,85,6],[70,6,74,6],[80,2,80,4],[92,6,94,6],[9,6,10,6],[40,6,41,6],[42,6,45,6],[12,6,15,6],[18,6,22,6],[24,2,24,4],[25,2,25,4],[26,2,26,4],[28,2,28,4],[31,2,31,4],[29,2,29,4],[30,6,34,6],[23,6,29,6],[33,2,33,4],[34,2,34,4],[38,0,38,6],[43,2,43,4],[47,2,47,4],[37,2,37,4],[35,2,35,4],[50,0,50,6],[48,2,48,4],[49,2,49,4]]}
["Return on Investment Tool for Instructional Improvement Efforts: Inputs Tab"]
[]
["Steps",null,"Inputs",null,null,null,"Instructions and Important Details"]
["Step 1:\nEnter institution information",null,"What is the name of your institution?",null,null,null,"Instructions"]
[null,null,"Ithaka S+R College",null,null,null,"Select your institution's name, or type it as it appears in IPEDS, in cell C5, and select whether it is a public or private institution in cell C7.\n"]
[null,null,"Is your institution public or private?"]
[null,null,"Public"]
[]
["Step 2:\nSelect instructional improvement effort of interest",null,"What instructional improvement effort are you interested in implementing?",null,null,null,"Instructions"]
[null,null,"Corequisite remediation redesign",null,null,null,"Select from two specific instructional improvement efforts in cell C10 or, if your effort does not align with these options, select \"Other.\" Selecting one of the specific efforts will automatically populate a general definition of the effort, and common components of the most impactful efforts."]
[null,null,"Definition of effort"]
[null,null,{"$f":"IFERROR(VLOOKUP(C10, 'Essential Features & Costs'!A2:F4, 2, FALSE),\"\")","v":"This instructional improvement shifts the timing and delivery of remedial or developmental academic support such that it is provided to students simultaneously with college-level coursework (i.e. corequisite), rather than separately as a prerequisite to college-level coursework."},null,null,null,"Key effort components"]
[null,null,null,null,null,null,{"$f":"IFERROR(VLOOKUP(C10, 'Essential Features & Costs'!A2:F4, 3, FALSE),\"\")","v":"• Extend instructional time in the college-level course for all students (generally an additonal 20-60 minutes per week)\n• Require that remedial students attend an additional support lab or workshop (at least 1 hour per week, preferrably staffed by same teacher from college-level course)\n• Reduce the student-to-instructor ratio in both the class and support lab or workshop (e.g. 20:1 ratio)\n• Build social support peer networks by increasing student interaction in the course\n• Emphasize active learning, continuous assessment, and instantaneous feedback"}]
[]
[]
[]
[]
["Step 3a:\nEnter institutional course-level information (pre-redesign)",null,{"$f":"IFERROR(VLOOKUP(C10, 'Course Enrollment Questions'!A2:M4, 2, FALSE),\"\")","v":"Pre-Requisite Remedial\nCourse Enrollment & Credit Hours"},null,{"$f":"IFERROR(IF(LEN(VLOOKUP(C10,'Course Enrollment Questions'!A2:M4,3,FALSE))=0,\"[intentionally blank]\",VLOOKUP(C10,'Course Enrollment Questions'!A2:M4,3,FALSE)),\"\")","v":"Subsequent College-Level Course\nCourse Enrollment & Credit Hours"},null,"Instructions"]
[null,null,{"$f":"IFERROR(VLOOKUP(C10, 'Course Enrollment Questions'!A2:M4, 4, FALSE),\"\")","v":"How many students enroll in the prerequisite course that is being redesigned (all sections)?"},null,{"$f":"IFERROR(IF(LEN(VLOOKUP(C10,'Course Enrollment Questions'!A2:M4,6,FALSE))=0,\"[intentionally blank]\",VLOOKUP(C10,'Course Enrollment Questions'!A2:M3,6,FALSE)),\"\")","v":"Of the students who enroll in the prerequisite course, how many enroll in the subsequent college-level course within the same academic year?"},null,"Provide information regarding student enrollment, credit hours, pass rate, and fall-to-fall retention rates for the relevant course or courses; and regarding instructional activity. Provide average numbers or estimates when relevant.\n\nNotes: \n- The tool assumes that the number of students who will enroll in the post-redesign course is the same as those who enroll in the pre-redesign course.\n- The questions regarding course enrollment and credit hours under column E are only applicable and can only be viewed if you select corequisite remediation redesign as the instructional reform. "]
[]
[null,null,1000,null,200]
[null,null,{"$f":"IFERROR(VLOOKUP(C10, 'Course Enrollment Questions'!A2:M4, 5, FALSE),\"\")","v":"How many credits does a student earn if they pass the prerequisite course?"},null,{"$f":"IFERROR(IF(LEN(VLOOKUP(C10,'Course Enrollment Questions'!A2:M4,7,FALSE))=0,\"[intentionally blank]\",VLOOKUP(C10,'Course Enrollment Questions'!A2:M4,7,FALSE)),\"\")","v":"How many credits does a student earn if they pass the college-level course? "}]
[null,null,3,null,3]
[null,null,"Current Student Pass Rate and Retention Rates",null,null,null,"If you select corequisite remediation redesign, provide the following:\n- The percentage of students who enroll in the prerequisite course and then pass the subsequent college-level course within one academic year.\n- The fall-to-fall retention rate of students who pass BOTH the prerequisite course and subsequent college-level course within one academic year.\n- The fall-to-fall retention rate of students who do not pass both courses within one academic year.\n\nNote: You will likely need assistance from your IR office to answer these questions. If necessary, provide estimates instead. Fall-to-fall retention rates can be estimated by using the first-year student retention rate as a starting point and projecting differences in retention between students who passed or did not pass the relevant course(s)."]
[null,null,{"$f":"IFERROR(VLOOKUP(C10, 'Course Enrollment Questions'!A2:M4, 8, FALSE),\"\")","v":"Of those students who enroll in the prerequisite course, what percentage ultimately pass the college-level course within one academic year?"}]
[null,null,0.25]
[null,null,{"$f":"IFERROR(VLOOKUP(C10, 'Course Enrollment Questions'!A2:M4, 9, FALSE),\"\")","v":"What is the fall-to-fall retention rate of students who enroll in the prerequisite course and ultimately pass the college-level course within one academic year?"}]
[null,null,0.8]
[null,null,{"$f":"IFERROR(VLOOKUP(C10, 'Course Enrollment Questions'!A2:M4, 10, FALSE),\"\")","v":"What is the fall-to-fall retention rate of students who enroll in the prerequisite course and do not pass the college-level course within one academic year?"}]
[null,null,0.5]
[null,null,"Instructional Activity",null,null,null,"Click here for additional details on determining the level of instructional activity."]
[null,null,{"$f":"IFERROR(VLOOKUP(C10, 'Course Enrollment Questions'!A2:M4, 11, FALSE),\"\")","v":"How many credits in total does a student need to be enrolled in at your institution within one academic year to be considered a full-time equivalent (FTE) undergraduate student?"}]
[null,null,30]
[null,null,{"$f":"IFERROR(VLOOKUP(C10, 'Course Enrollment Questions'!A2:M4, 12, FALSE),\"\")","v":"How many credits in total, on average, do undergraduate students at your institution enroll in within one academic year?"}]
[null,null,26]
["Step 3b:\nEnter institutional course-level information (post-redesign)",null,"Credit Hours: New, Redesigned Course",null,null,null,"Answers to questions related to the number of credits that a student will earn if they pass should be somewhere between 1 and 7, with 3 and 4 being the most likely answers."]
[null,null,{"$f":"IFERROR(VLOOKUP(C10, 'Course Enrollment Questions'!A2:M4, 13, FALSE),\"\")","v":"How many credits will a student earn if they pass the redesigned corequisite course?"}]
[null,null,5]
[]
["Step 4:\nReview anticipated post-effort student course pass rates",null,"Estimated student pass rates for the new, redesigned course",null,null,null,"Instructions"]
[null,null,"Estimated New Student Pass Rate",null,null,null,"Review the estimates for the anticipated new student course pass rates as a result of the successful implementation of the instructional improvement effort, based on prior empirical findings. "]
[null,null,"Lower Bound",null,"Upper Bound"]
[null,null,{"$f":"IFERROR(VLOOKUP(C10,'Research Findings'!A2:G3, 6, FALSE),\"\")","v":0.56999999999999995},null,{"$f":"IFERROR(VLOOKUP(C10,'Research Findings'!A2:G3, 7, FALSE),\"\")","v":0.65},null,"Click here for more details on how these values were derived."]
[null,null,"Number of Additional Students Retained"]
[null,null,"Lower Bound",null,"Upper Bound"]
[null,null,{"$f":"IFERROR(Formulas!AL5,\"\")","v":96},null,{"$f":"IFERROR(Formulas!AM5,\"\")","v":120}]
[null,null,"User's Anticipated Student Pass Rate [Optional]",null,null,null,"Optional: You can add your own estimation to reflect your expectations or existing knowledge regarding implementing this type of effort, or to explore how different changes in pass rates impact the effort's ROI."]
[null,null,0.5]
[null,null,"Number of Additional Students Retained [Optional]"]
[null,null,{"$f":"IF(C48=\"\",\"\", Formulas!AN5)","v":75}]
[]
["Step 5:\nEnter institutional financial information",null,"Institution-Wide Averages",null,"Target Student Population",null,"Instructions"]
[null,null,"Net tuition and fees revenue per FTE student in FY16",null,"Net tuition and fees revenue per FTE student",null,"Replace the institution-wide averages with values for the target student population that would be affected by the effort. If left blank, the tool will use the values under column C."]
[null,null,{"$f":"IFERROR(VLOOKUP(C5,'Inst Financial Information'!A2:F3976, 4, FALSE),\"Data not reported to IPEDS\")","v":"Data not reported to IPEDS"},null,5500]
[null,null,"State and local appropriations per FTE student in FY16",null,"State and local appropriations per FTE student",null,"This section is populated with three different values, based on data from fiscal year 2016 reported to IPEDS:\n\n1) net tuition and fees revenue, per FTE\n2) state and local appropriations, per FTE\n3) education and related expenses, per FTE"]
[null,null,{"$f":"IFERROR(VLOOKUP(C5,'Inst Financial Information'!A2:F3976, 5, FALSE),\"Data not reported to IPEDS\")","v":"Data not reported to IPEDS"},null,8500]
[null,null,"Education and related expenses per FTE student in FY16",null,"Education and related expenses per FTE student"]
[null,null,{"$f":"IFERROR(VLOOKUP(C5,'Inst Financial Information'!A2:F3976, 6, FALSE),\"Data not reported to IPEDS\")","v":"Data not reported to IPEDS"},null,15000,null,"Click here for more details on how these values were derived."]
[]
["Step 6:\nEnter effort-related costs and cost savings",null,"Additional initial one-time direct costs",null,null,null,"Instructions"]
[null,null,{"$f":"IFERROR(VLOOKUP(C10,'Cost and Enrollment Questions'!A2:D4, 2, FALSE),\"\")","v":"What is the additional initial one-time direct cost to your institution, for each of these components, of designing and implementing corequisite remediation?"},null,null,null,"Answer the three questions in this step about initial and recurring costs, and potential cost savings, related to implementing the effort."]
[null,null,"Release time for staff",null,null,null,"Common sources of additional initial one-time direct costs"]
[null,null,100000]
[null,null,"Professional development",null,null,null,{"$f":"IFERROR(VLOOKUP(C10,'Essential Features & Costs'!A2:F4,4, FALSE),\"\")","v":"• Personnel time for developing and designing course and training materials (e.g. project leads, course specialists and/or instructional designers)\n• Professional development and training programs for faculty and others supporting the project (e.g. tutors and graduate assistants)\n• One-time purchase of adaptive learning technology or online platform"}]
[null,null,100000]
[null,null,"Equipment, including software"]
[null,null,40000]
[null,null,"All other initial, one-time direct costs"]
[null,null,35000]
[null,null,"Additional average annual recurring costs",null,null,null,"Common sources of additional recurring direct costs"]
[null,null,{"$f":"IFERROR(VLOOKUP(C10,'Cost and Enrollment Questions'!A2:D4, 3, FALSE),\"\")","v":"What is the additional average annual recurring direct cost to your institution, for each of these components, that would not be otherwise incurred?"},null,null,null,{"$f":"IFERROR(VLOOKUP(C10,'Essential Features & Costs'!A2:F4,5, FALSE),\"\")","v":"• Additional personnel time for ongoing support and delivery of the effort (e.g. project leads, course specialists and/or instructional designers who provide new or additional recurring support for corequisite remediation)\n• Additional academic support services provided to students due to the effort that would not be otherwise provided (e.g. tutoring, advising, boot camps, and mentoring)\n• Annual maintenance of and/or subscription to technologies that are specific to the effort"}]
[null,null,"Release time for staff"]
[null,null,50000]
[null,null,"Professional development"]
[null,null,40000]
[null,null,"Equipment, including software",null,null,null,"Click here for additional details."]
[null,null,10000]
[null,null,"All other recurring direct costs"]
[null,null,40000]
[null,null,"Average recurring annual cost savings",null,null,null,"Examples of outcomes that may lead to recurring annual cost savings"]
[null,null,{"$f":"IFERROR(VLOOKUP(C10,'Cost and Enrollment Questions'!A2:D4, 4, FALSE),\"\")","v":"What is the average annual dollar amount, for each of these potential cost-saving components, that you anticipate no longer having to spend due to this effort?"},null,null,null,{"$f":"IFERROR(VLOOKUP(C10,'Essential Features & Costs'!A2:F4,6, FALSE),\"\")","v":"• Reduction or elimination of prerequisite remedial course sections\n• Reduction in staff time spent on preparing and offering redesigned courses, compared with time spent prior to the redesign\n• Reduction in total staff salaries and benefits costs due to changes in staffing brought on by the redesign"}]
[null,null,"Elimination of course sections"]
[null,null,15000]
[null,null,"Reduction in release time for staff"]
[null,null,0]
[null,null,"Reduction in staff salaries and benefits"]
[null,null,0,null,null,null,"Click here for additional details."]
[null,null,"All other cost savings"]
[null,null,20000]
[]
["Step 7:\nSelect institution's enrollment strategy",null,"Institutional Enrollment Strategy",null,null,null,"Instructions"]
[null,null,{"$f":"IFERROR(VLOOKUP(C10, 'Cost and Enrollment Questions'!A2:E4, 5, FALSE),\"\")","v":"To the best of your knowledge, how would your institution respond to a 96 to 120 student fall-to-fall retention increase, as a result of the remedial course redesign?"},null,null,null,{"$f":"\"Use the dropdown menu in cell C98 to select the answer that best describes how your institution would respond to a \"&C46&\" to \"&E46&\" student fall-to-fall increase in retention.\"","v":"Use the dropdown menu in cell C98 to select the answer that best describes how your institution would respond to a 96 to 120 student fall-to-fall increase in retention."}]
[null,null,null,null,null,null,"• A) By enrolling fewer first-year students to fully offset the increase in the number of students retained, resulting in the same level of overall enrollment expected prior to the implementation of the effort\n• B) By enrolling the same number of first-year students your institution would have enrolled regardless of the impact of the effort, thereby increasing overall enrollment by the number of students additionally retained\n• C) By enrolling fewer first-year students but not to completely offset the increase in the number of students retained, resulting in a slight increase in overall enrollment\nIf you select option C, you will be asked an additional question in cell C99."]
[]
[]
[null,null,"B",null,null,null,"Click here for additional details."]
[null,null,{"$f":"IF(OR(C96=\"A\",C96=\"B\",C96=\"\"), \"[intentionally blank]\", \"You have indicated that your institution would respond to a \"&C46&\" to \"&E46&\" student retention increase by enrolling fewer first-year students but not to completely offset the increase in retention. How many first-year students do you anticipate no longer enrolling because of this retention increase?\")","v":"[intentionally blank]"}]

{"sheet":"Estimated Returns","index":2,"n_rows":25,"n_cols":7,"rows_kept":25,"cut":false,"hidden":false,"merged":[[1,0,1,4],[0,0,0,6],[2,0,2,4],[4,6,10,6],[4,1,24,1],[4,3,24,3],[19,6,24,6],[4,5,24,5],[12,6,17,6]]}
["Return on Investment Tool for Instructional Improvement Efforts: Estimated Returns Tab"]
[]
["Estimated Returns 1, 3, and 5 Years After Implementation",null,null,null,null,null,"Important Details"]
[]
["1  Year",null,"3 Years",null,"5 Years",null,"Additional net revenue is the sum of the following items:\n• additional tuition revenue generated by the retention\n• additional appropriations generated by the retention\n• cost savings\n• net revenue change from change in FTE\nAnd the subtraction of the following:\n• additional cost incurred by the retention"]
["Estimated Additional Net Revenue (Lower Bound)",null,"Estimated Additional Cumulative Net Revenue (Lower Bound)",null,"Estimated Additional Cumulative Net Revenue (Lower Bound)"]
[{"$f":"IFERROR(Formulas!BJ5,\"\")","v":279533.33333333302},null,{"$f":"IFERROR(Formulas!BM5,\"\")","v":838599.99999999907},null,{"$f":"IFERROR(Formulas!BP5,\"\")","v":1397666.6666666651}]
["Estimated Additional Net Revenue (Upper Bound)",null,"Estimated Additional Cumulative Net Revenue (Upper Bound)",null,"Estimated Additional Cumulative Net Revenue (Upper Bound)"]
[{"$f":"IFERROR(Formulas!BK5,\"\")","v":352333.33333333302},null,{"$f":"IFERROR(Formulas!BN5,\"\")","v":1056999.9999999991},null,{"$f":"IFERROR(Formulas!BQ5,\"\")","v":1761666.6666666651}]
["Estimated Additional Net Revenue (User-Inputted)",null,"Estimated Additional Cumulative Net Revenue (User-Inputted)",null,"Estimated Additional Cumulative Net Revenue (User-Inputted)"]
[{"$f":"IFERROR(Formulas!BL5,\"\")","v":215833.33333333302},null,{"$f":"IFERROR(Formulas!BO5,\"\")","v":647499.99999999907},null,{"$f":"IFERROR(Formulas!BR5,\"\")","v":1079166.6666666651}]
[]
["Estimated Additional Costs (Lower Bound)",null,"Estimated Additional Cumulative Costs (Lower Bound)",null,"Estimated Additional Cumulative Costs (Lower Bound)",null,"Additional costs is the sum of the following:\n• additional initial one-time direct costs\n• additional average annual recurring costs"]
[{"$f":"IFERROR(Formulas!BS5,\"\")","v":415000},null,{"$f":"IFERROR(Formulas!BV5,\"\")","v":695000},null,{"$f":"IFERROR(Formulas!BY5,\"\")","v":975000}]
["Estimated Additional Costs (Upper Bound)",null,"Estimated Additional Cumulative Costs (Upper Bound)",null,"Estimated Additional Cumulative Costs (Upper Bound)"]
[{"$f":"IFERROR(Formulas!BT5,\"\")","v":415000},null,{"$f":"IFERROR(Formulas!BW5,\"\")","v":695000},null,{"$f":"IFERROR(Formulas!BZ5,\"\")","v":975000}]
["Estimated Additional Costs (User-Inputted)",null,"Estimated Additional Cumulative Costs (User-Inputted)",null,"Estimated Additional Cumulative Costs (User-Inputted)"]
[{"$f":"IFERROR(Formulas!BU5,\"\")","v":415000},null,{"$f":"IFERROR(Formulas!BX5,\"\")","v":695000},null,{"$f":"IFERROR(Formulas!CA5,\"\")","v":975000}]
[]
["Estimated ROI (Lower Bound)",null,"Estimated ROI (Lower Bound)",null,"Estimated ROI (Lower Bound)",null,"ROI:\n[additional net revenue - additional costs] / additional costs"]
[{"$f":"IFERROR(Formulas!CB5,\"\")","v":-0.32642570281124572},null,{"$f":"IFERROR(Formulas!CE5,\"\")","v":0.20661870503596988},null,{"$f":"IFERROR(Formulas!CH5,\"\")","v":0.4335042735042719}]
["Estimated ROI (Upper Bound)",null,"Estimated ROI (Upper Bound)",null,"Estimated ROI (Upper Bound)"]
[{"$f":"IFERROR(Formulas!CC5,\"\")","v":-0.15100401606425778},null,{"$f":"IFERROR(Formulas!CF5,\"\")","v":0.52086330935251668},null,{"$f":"IFERROR(Formulas!CI5,\"\")","v":0.80683760683760519}]
["Estimated ROI (User-Inputted)",null,"Estimated ROI (User-Inputted)",null,"Estimated ROI (User-Inputted)"]
[{"$f":"IFERROR(Formulas!CD5,\"\")","v":-0.47991967871486019},null,{"$f":"IFERROR(Formulas!CG5,\"\")","v":-6.8345323741008532E-2},null,{"$f":"IFERROR(Formulas!CJ5,\"\")","v":0.10683760683760525}]

{"sheet":"Formulas","index":3,"n_rows":5,"n_cols":89,"rows_kept":5,"cut":false,"hidden":false,"merged":[[2,79,2,87],[2,70,2,78],[2,61,2,69],[2,18,2,20],[1,0,1,8],[0,0,0,13],[2,6,2,17],[2,58,2,60],[2,22,2,24],[2,1,2,5],[2,25,2,27],[2,28,2,57]]}
["Return on Investment Tool for Instructional Improvement Efforts: Formulas Tab"]
[]
["Instructional Improvement Effort","Control of Institution & Institutional/Target Financial Information",null,null,null,null,"Course Enrollment, Credit Hours, and Student Pass Rates",null,null,null,null,null,null,null,null,null,null,null,"One-time Direct Costs, Additional Recurring Annual Costs, and Recurring Annual Cost Savings",null,null,"Enrollment Strategy","Pre-Effort",null,null,"Research Findings",null,null,"Post-Effort",null,null,null,null,null,null,null,null,null,null,null,null,null,null,null,null,null,null,null,null,null,null,null,null,null,null,null,null,null,"Cost Savings",null,null,"Estimated Additional Net Revenue",null,null,null,null,null,null,null,null,"Estimated Additional Costs",null,null,null,null,null,null,null,null,"Estimated Return on Investment (ROI)",null,null,null,null,null,null,null,null,"A"]
[{"$f":"Inputs!C10","v":"Corequisite remediation redesign"},{"$f":"Inputs!C6","v":"Is your institution public or private?"},"Cost of recruiting a single undergraduate",{"$f":"Inputs!E53","v":"Net tuition and fees revenue per FTE student"},{"$f":"Inputs!E55","v":"State and local appropriations per FTE student"},{"$f":"Inputs!E57","v":"Education and related expenses per FTE student"},{"$f":"Inputs!C19","v":"How many students enroll in the prerequisite course that is being redesigned (all sections)?"},"Assumption: Number of students enrolled in redesigned course is the same","Pre-Effort FTE","Post-Effort FTE",{"$f":"Inputs!C25","v":"Of those students who enroll in the prerequisite course, what percentage ultimately pass the college-level course within one academic year?"},{"$f":"Inputs!C27","v":"What is the fall-to-fall retention rate of students who enroll in the prerequisite course and ultimately pass the college-level course within one academic year?"},{"$f":"Inputs!C29","v":"What is the fall-to-fall retention rate of students who enroll in the prerequisite course and do not pass the college-level course within one academic year?"},"Tuition Revenue and Appropriations: Pre-Effort FTE","Education and Related Expenses: Pre-Effort FTE","Tuition Revenue and Appropriations: Post-Effort FTE","Education and Related Expenses: Post-Effort FTE","Net Revenue Change Generated from Change in FTE",{"$f":"Inputs!C60","v":"Additional initial one-time direct costs"},{"$f":"Inputs!C70","v":"Additional average annual recurring costs"},{"$f":"Inputs!C80","v":"Average recurring annual cost savings"},{"$f":"Inputs!C91","v":"Institutional Enrollment Strategy"},"Number of students who pass and are retained","Number of students who fail and are retained","Total number of students who are retained","New Pass Rate (Lower Bound)","New Pass Rate (Upper Bound)","New Pass Rate (User-Inputted)","New number of students who pass and are retained (Lower Bound)","New number of students who fail and are retained (Lower Bound)","New number of students who pass and are retained (Upper Bound)","New number of students who fail and are retained (Upper Bound)","New number of students who pass and are retained (User-Inputted)","New number of students who fail and are retained (User-Inputted)","Total Number of Students Retained Following Year (Lower Bound)","Total Number of Students Retained (Upper Bound)","Total Number of Students Retained (User-Inputted)","Additional Number of Students Retained Following Year (Lower Bound)","Additional Number of Students Retained Following Year (Upper Bound)","Additional Number of Students Retained Following Year (User-Inputted)","Additional Number of FTE Students Retained Following Year (Lower Bound)","Additional Number of FTE Students Retained Following Year (Upper Bound)","Additional Number of FTE Students Retained Following Year (User-Inputted)","Impact of Institutional Strategy: Additional Number of Students Enrolled Following Year (Lower Bound)","Impact of Institutional Strategy: Additional Number of Students Enrolled Following Year (Upper Bound)","Impact of Institutional Strategy: Additional Number of Students Enrolled Following Year (User-Inputted)","Impact of Institutional Strategy: Additional Number of FTE Students Enrolled Following Year (Lower Bound)","Impact of Institutional Strategy: Additional Number of FTE Students Enrolled Following Year (Upper Bound)","Impact of Institutional Strategy: Additional Number of FTE Students Enrolled Following Year (User-Inputted)","Additional Tuition Revenue Generated by that Retention (Lower Bound)","Additional Tuition Revenue Generated by that Retention (Upper Bound)","Additional Tuition Revenue Generated by that Retention (User-Inputted)","Additional Appropriations Generated by that Retention (Lower Bound)","Additional Appropriations Generated by that Retention (Upper Bound)","Additional Appropriations Generated by that Retention (User-Inputted)","Additional Cost Incurred by that Retention (Lower Bound)","Additional Cost Incurred by that Retention (Upper Bound)","Additional Cost Incurred by that Retention (User-Inputted)","Recurring Annual Cost Savings (Lower Bound)","Recurring Annual Cost Savings (Upper Bound)","Recurring Annual Cost Savings (User-Inputted)","Estimated Additional Net Revenue After 1 Year (Lower Bound)","Estimated Additional Net Revenue After 1 Year (Upper Bound)","Estimated Additional Net Revenue After 1 Year (User-Inputted)","Estimated Additional Net Revenue After 3 Years (Lower Bound)","Estimated Additional Net Revenue After 3 Years (Upper Bound)","Estimated Additional Net Revenue After 3 Years (User-Inputted)","Estimated Additional Net Revenue After 5 Years (Lower Bound)","Estimated Additional Net Revenue After 5 Years (Upper Bound)","Estimated Additional Net Revenue After 5 Years (User-Inputted)","Estimated Additional Costs After 1 Year (Lower Bound)","Estimated Additional Costs After 1 Year (Upper Bound)","Estimated Additional Costs After 1 Year (User-Inputted)","Estimated Additional Costs After 3 Years (Lower Bound)","Estimated Additional Costs After 3 Years (Upper Bound)","Estimated Additional Costs After 3 Years (User-Inputted)","Estimated Additional Costs After 5 Years (Lower Bound)","Estimated Additional Costs After 5 Years (Upper Bound)","Estimated Additional Costs After 5 Years (User-Inputted)","Estimated ROI After 1 Year (Lower Bound)","Estimated ROI After 1 Year (Upper Bound)","Estimated ROI After 1 Year (User-Inputted)","Estimated ROI After 3 Years (Lower Bound)","Estimated ROI After 3 Years (Upper Bound)","Estimated ROI After 3 Years (User-Inputted)","Estimated ROI After 5 Years (Lower Bound)","Estimated ROI After 5 Years (Upper Bound)","Estimated ROI After 5 Years (User-Inputted)","B"]
[null,{"$f":"Inputs!C7","v":"Public"},{"$f":"IFERROR(IF(B5=\"Public\", 536, 2357),\"\")","v":536},{"$f":"IF(Inputs!E54=\"\",Inputs!C54,Inputs!E54)","v":5500},{"$f":"IF(Inputs!E56=\"\",Inputs!C56,Inputs!E56)","v":8500},{"$f":"IF(Inputs!E58=\"\",Inputs!C58,Inputs!E58)","v":15000},{"$f":"Inputs!C21","v":1000},{"$f":"G5","v":1000},{"$f":"((Inputs!C21*Inputs!C23)+(Inputs!E21*Inputs!E23))/Inputs!C33","v":120},{"$f":"(Inputs!C38*Inputs!C21)/Inputs!C33","v":166.66666666666666},{"$f":"Inputs!C26","v":0.25},{"$f":"Inputs!C28","v":0.8},{"$f":"Inputs!C30","v":0.5},{"$f":"(I5*D5)+(I5*E5)","v":1680000},{"$f":"I5*F5","v":1800000},{"$f":"(J5*D5)+(J5*E5)","v":2333333.333333333},{"$f":"J5*F5","v":2500000},{"$f":"(P5-Q5)-(N5-O5)","v":-46666.666666666977},{"$f":"SUM(Inputs!C63,Inputs!C65,Inputs!C67,Inputs!C69)","v":275000},{"$f":"SUM(Inputs!C73,Inputs!C75,Inputs!C77,Inputs!C79)","v":140000},{"$f":"SUM(Inputs!C83,Inputs!C85,Inputs!C87,Inputs!C89)","v":35000},{"$f":"Inputs!C96","v":"B"},{"$f":"ROUNDDOWN(G5*K5*L5, 0)","v":200},{"$f":"ROUNDDOWN(G5*(1-K5)*M5, 0)","v":375},{"$f":"SUM(W5,X5)","v":575},{"$f":"Inputs!C43","v":0.56999999999999995},{"$f":"Inputs!E43","v":0.65},{"$f":"IF(Inputs!C48=\"\",\"\",Inputs!C48)","v":0.5},{"$f":"ROUNDDOWN(G5*Z5*L5, 0)","v":456},{"$f":"ROUNDDOWN(G5*(1-Z5)*M5, 0)","v":215},{"$f":"ROUNDDOWN(G5*AA5*L5, 0)","v":520},{"$f":"ROUNDDOWN(G5*(1-AA5)*M5, 0)","v":175},{"$f":"ROUNDDOWN(G5*AB5*L5, 0)","v":400},{"$f":"ROUNDDOWN(G5*(1-AB5)*M5, 0)","v":250},{"$f":"SUM(AC5,AD5)","v":671},{"$f":"SUM(AE5,AF5)","v":695},{"$f":"SUM(AG5,AH5)","v":650},{"$f":"AI5-Y5","v":96},{"$f":"AJ5-Y5","v":120},{"$f":"IFERROR(AK5-Y5,\"\")","v":75},{"$f":"(AL5*Inputs!C35)/Inputs!C33","v":83.2},{"$f":"(AM5*Inputs!C35)/Inputs!C33","v":104},{"$f":"IFERROR((AN5*Inputs!C35)/Inputs!C33,\"\")","v":65},{"$f":"IF(V5=\"B\",AL5, IF(V5=\"A\", 0,AL5-Inputs!C98))","v":96},{"$f":"IF(V5=\"B\",AM5, IF(V5=\"A\", 0, AM5-Inputs!C98))","v":120},{"$f":"IFERROR(IF(V5=\"B\",AN5, IF(V5=\"A\", 0, AN5-Inputs!C98)),\"\")","v":75},{"$f":"(AR5*Inputs!C35)/Inputs!C33","v":83.2},{"$f":"(AS5*Inputs!C35)/Inputs!C33","v":104},{"$f":"IFERROR((AT5*Inputs!C35)/Inputs!C33,\"\")","v":65},{"$f":"AU5*D5","v":457600},{"$f":"AV5*D5","v":572000},{"$f":"IFERROR(AW5*D5,\"\")","v":357500},{"$f":"AU5*E5","v":707200},{"$f":"AV5*E5","v":884000},{"$f":"IFERROR(AW5*E5,\"\")","v":552500},{"$f":"F5*AU5*0.7","v":873600},{"$f":"F5*AV5*0.7","v":1092000},{"$f":"IFERROR(F5*AW5*0.7,\"\")","v":682500},{"$f":"IF(V5=\"A\",U5+(AL5*C5),IF(V5=\"B\",U5,(U5+(Inputs!C98*C5))))","v":35000},{"$f":"IF(V5=\"A\",U5+(AM5*C5),IF(V5=\"B\",U5,(U5+(Inputs!C98*C5))))","v":35000},{"$f":"IF(V5=\"A\",U5+(AN5*C5),IF(V5=\"B\",U5,(U5+(Inputs!C98*C5))))","v":35000},{"$f":"AX5+BA5+BG5+R5-BD5","v":279533.33333333302},{"$f":"AY5+BB5+BH5+R5-BE5","v":352333.33333333302},{"$f":"IFERROR(AZ5+BC5+BI5+R5-BF5,\"\")","v":215833.33333333302},{"$f":"((AX5+BA5+BG5+R5-BD5)*3)","v":838599.99999999907},{"$f":"((AY5+BB5+BH5+R5-BE5)*3)","v":1056999.9999999991},{"$f":"IFERROR(((AZ5+BC5+BI5+R5-BF5)*3),\"\")","v":647499.99999999907},{"$f":"((AX5+BA5+BG5+R5-BD5)*5)","v":1397666.6666666651},{"$f":"((AY5+BB5+BH5+R5-BE5)*5)","v":1761666.6666666651},{"$f":"IFERROR(((AZ5+BC5+BI5+R5-BF5)*5),\"\")","v":1079166.6666666651},{"$f":"S5+T5","v":415000},{"$f":"S5+T5","v":415000},{"$f":"IFERROR(S5+T5,\"\")","v":415000},{"$f":"(T5*3)+S5","v":695000},{"$f":"(T5*3)+S5","v":695000},{"$f":"IFERROR((T5*3)+S5,\"\")","v":695000},{"$f":"(T5*5)+S5","v":975000},{"$f":"(T5*5)+S5","v":975000},{"$f":"IFERROR((T5*5)+S5,\"\")","v":975000},{"$f":"(BJ5-BS5)/BS5","v":-0.32642570281124572},-0.15100401606425778,{"$f":"IFERROR((BL5-BU5)/BU5,\"\")","v":-0.47991967871486019},0.20661870503596988,0.52086330935251668,{"$f":"IFERROR((BO5-BX5)/BX5,\"\")","v":-6.8345323741008532E-2},0.4335042735042719,0.80683760683760519,{"$f":"IFERROR((BR5-CA5)/CA5,\"\")","v":0.10683760683760525},"C"]

{"sheet":"Additional Details","index":4,"n_rows":20,"n_cols":3,"rows_kept":20,"cut":false,"hidden":false,"merged":[[1,0,1,4],[0,0,0,2],[75,1,82,1],[3,0,4,0],[6,0,7,0],[9,0,10,0],[12,0,16,0],[18,0,19,0],[2,1,19,1],[22,1,33,1],[35,1,41,1],[43,1,73,1]]}
["Return on Investment Tool for Instructional Improvement Efforts: Additional Details Tab"]
[]
["Steps",null,"Additional Details"]
["Step 3",null,"Determining the level of instructional activity:\nTypically, students at 4-year institutions using a semester calendar, the level of instructional activity indicating full-time equivalency for undergraduate students is 30 credit hours over one academic year; at 4-year institutions using a quarter calendar, it is 45 credit hours."]
[null,null,"Click here to return to where you were previously."]
[]
["Step 4",null,"Estimating the anticipated new student course pass rates:\nThese values are the lower and upper bounds of a 50 percent confidence interval of a regression comparing the pre- and post- pass rates we've compiled from the most relevant and robust research studies in the field. These estimates are also based, in part, on the value entered in cell C28 of step 3, which is the percentage of students who pass the course that you are considering redesigning (or, in the case of corequisite remedial redesign, the percentage of students who pass both the prerequisite course and subsequent college-level course). As such, please ensure that value is entered. For more information about the studies, including links to them, and a more technical explanation of the method we used, please consult the overview paper. "]
[null,null,"Click here to return to where you were previously."]
[]
["Step 5",null,"Calculating institutional financial information:\nAll finance-related measures are collected from the IPEDS 2015-16 Finance Survey, which represents the 2016 fiscal year. The remaining measure, 12-month full-time equivalent (FTE) enrollment, which includes undergraduates, graduates, and doctoral professional students, is collected from the IPEDS 2015-16 12-month Enrollment Survey.\nNet tuition and fees revenue per FTE = (tuition and fees after deducting discounts and allowances - all institutional grants) / 12-month FTE enrollment\nState and local appropriations per FTE = (state appropriations + local appropriations) / 12-month FTE enrollment\nEducation and related expenses per FTE (as defined by the Delta Cost Project) = (instruction + student services + (education_share*(academic support + institution support + operation/maintenance) / 12-month FTE enrollment \neducation_share=(instruction + student services)/(instruction + student services + research + public service)\nPlease consult your budget/IR office if you are unable to provide values for the student population that would be affected by the reform."]
[null,null,"Click here to return to where you were previously."]
[]
["Step 6",null,"Initial and recurring costs:\nPlease note that these are initial and recurring costs associated with the reform that the institution would not otherwise incur. E.g., if your institution's annual cost of $20,000 for offering prerequisite remediation is expected to grow to $50,000 under corequisite remediation, then your institution's additional recurring cost is $30,000."]
[null,null,"Click here to return where you were previously."]
[]
[null,null,"Cost savings:\nIt's important to note that these cost savings do not include and are independent of savings that might come from improved student outcomes, like increased course pass rates."]
[null,null,"Click here to return to where you were previously."]
[]
["Step 7",null,"Institutional enrollment strategy:\nThe return on investment estimates produced by this tool are driven largely by changes in student retention due to an instructional improvement effort, and returns associated with resultant institutional revenue. As a consequence, your institution's enrollment strategy in response to changes in student retention plays an important role in the tool's estimation."]
[null,null,"Click here to return to where you were previously."]

{"sheet":"Course Enrollment Questions","index":5,"n_rows":4,"n_cols":13,"rows_kept":4,"cut":false,"hidden":true,"merged":[]}
["Improvement Effort Options","Category 1","Category 2","Question 1","Question 2","Question 3","Question 4","Question 5","Question 6","Question 7","Question 8","Question 9","Question 10"]
["Corequisite remediation redesign","Pre-Requisite Remedial\nCourse Enrollment & Credit Hours","Subsequent College-Level Course\nCourse Enrollment & Credit Hours","How many students enroll in the prerequisite course that is being redesigned (all sections)?","How many credits does a student earn if they pass the prerequisite course?","Of the students who enroll in the prerequisite course, how many enroll in the subsequent college-level course within the same academic year?","How many credits does a student earn if they pass the college-level course? ","Of those students who enroll in the prerequisite course, what percentage ultimately pass the college-level course within one academic year?","What is the fall-to-fall retention rate of students who enroll in the prerequisite course and ultimately pass the college-level course within one academic year?","What is the fall-to-fall retention rate of students who enroll in the prerequisite course and do not pass the college-level course within one academic year?","How many credits in total does a student need to be enrolled in at your institution within one academic year to be considered a full-time equivalent (FTE) undergraduate student?","How many credits in total, on average, do undergraduate students at your institution enroll in within one academic year?","How many credits will a student earn if they pass the redesigned corequisite course?"]
["Blended introductory coursework redesign","Blended Introductory\nCourse Enrollment & Credit Hours",null,"How many students enroll in the introductory course that is being redesigned (all sections)?","How many credits does a student earn if they pass the introductory course?",null,null,"What is the average student pass rate of the introductory course?","What is the fall-to-fall retention rate of students who pass the introductory course?","What is the fall-to-fall retention rate of students who DON'T pass the introductory course?","How many credits in total does a student need to be enrolled in at your institution within one academic year to be considered a full-time equivalent (FTE) undergraduate student?","How many credits in total, on average, do undergraduate students at your institution enroll in within one academic year?","How many credits will a student earn if they pass the redesigned introductory course?"]
["Other","Course Enrollment & Credit Hours",null,"How many students enroll in the course that is being redesigned (all sections)?","How many credits does a student earn if they pass the course?",null,null,"What is the average student pass rate of the course that is being redesigned?","What is the fall-to-fall retention rate of students who pass the course?","What is the fall-to-fall retention rate of students who DON'T pass the course?","How many credits in total does a student need to be enrolled in at your institution within one academic year to be considered a full-time equivalent (FTE) undergraduate student?","How many credits in total, on average, do undergraduate students at your institution enroll in within one academic year?","How many credits will a student earn if they pass the redesigned course?"]

{"sheet":"Cost and Enrollment Questions","index":6,"n_rows":4,"n_cols":5,"rows_kept":4,"cut":false,"hidden":true,"merged":[]}
["Improvement Effort Options","Question 1","Question 2","Question 3","Question 4"]
["Corequisite remediation redesign","What is the additional initial one-time direct cost to your institution, for each of these components, of designing and implementing corequisite remediation?","What is the additional average annual recurring direct cost to your institution, for each of these components, that would not be otherwise incurred?","What is the average annual dollar amount, for each of these potential cost-saving components, that you anticipate no longer having to spend due to this effort?",{"$f":"\"To the best of your knowledge, how would your institution respond to a \"&Inputs!C46&\" to \"&Inputs!E46&\" student fall-to-fall retention increase, as a result of the remedial course redesign?\"","v":"To the best of your knowledge, how would your institution respond to a 96 to 120 student fall-to-fall retention increase, as a result of the remedial course redesign?"}]
["Blended introductory coursework redesign","What is the additional initial one-time direct cost to your institution, for each of these components, of designing and implementing blended introductory coursework?","What is the additional average annual recurring direct cost to your institution, for each of these components, that would not be otherwise incurred?","What is the average annual dollar amount, for each of these potential cost-saving components, that you anticipate no longer having to spend due to this effort?",{"$f":"\"To the best of your knowledge, how would your institution respond to a \"&Inputs!C46&\" to \"&Inputs!E46&\" student fall-to-fall retention increase, as a result of the blended introductory coursework redesign?\"","v":"To the best of your knowledge, how would your institution respond to a 96 to 120 student fall-to-fall retention increase, as a result of the blended introductory coursework redesign?"}]
["Other","What is the additional initial one-time direct cost to your institution, for each of these components, of designing and implementing the effort of interest?","What is the additional average annual recurring direct cost to your institution, for each of these components, that would not be otherwise incurred?","What is the average annual dollar amount, for each of these potential cost-saving components, that you anticipate no longer having to spend due to this effort?",{"$f":"\"To the best of your knowledge, how would your institution respond to a \"&Inputs!E50&\" student fall-to-fall retention increase, as a result of implementing the effort of interest?\"","v":"To the best of your knowledge, how would your institution respond to a  student fall-to-fall retention increase, as a result of implementing the effort of interest?"}]

{"sheet":"Essential Features & Costs","index":7,"n_rows":4,"n_cols":10,"rows_kept":4,"cut":false,"hidden":true,"merged":[]}
["Improvement Effort Options","Definition","Key Components","Initial One-Time Direct Costs","Additional Direct Recurring Annual Costs","Cost Savings ","Wordss","Schools","Letter","C"]
["Corequisite remediation redesign","This instructional improvement shifts the timing and delivery of remedial or developmental academic support such that it is provided to students simultaneously with college-level coursework (i.e. corequisite), rather than separately as a prerequisite to college-level coursework.","• Extend instructional time in the college-level course for all students (generally an additonal 20-60 minutes per week)\n• Require that remedial students attend an additional support lab or workshop (at least 1 hour per week, preferrably staffed by same teacher from college-level course)\n• Reduce the student-to-instructor ratio in both the class and support lab or workshop (e.g. 20:1 ratio)\n• Build social support peer networks by increasing student interaction in the course\n• Emphasize active learning, continuous assessment, and instantaneous feedback","• Personnel time for developing and designing course and training materials (e.g. project leads, course specialists and/or instructional designers)\n• Professional development and training programs for faculty and others supporting the project (e.g. tutors and graduate assistants)\n• One-time purchase of adaptive learning technology or online platform","• Additional personnel time for ongoing support and delivery of the effort (e.g. project leads, course specialists and/or instructional designers who provide new or additional recurring support for corequisite remediation)\n• Additional academic support services provided to students due to the effort that would not be otherwise provided (e.g. tutoring, advising, boot camps, and mentoring)\n• Annual maintenance of and/or subscription to technologies that are specific to the effort","• Reduction or elimination of prerequisite remedial course sections\n• Reduction in staff time spent on preparing and offering redesigned courses, compared with time spent prior to the redesign\n• Reduction in total staff salaries and benefits costs due to changes in staffing brought on by the redesign",null,null,null,"Public"]
["Blended introductory coursework redesign","This instructional improvement efforts involves a redesign of large, introductory traditional courses where some portion of the face-to-face course delivery is replaced with asynchronous, technology-assisted course delivery that is active, learner-centered and focused on the mastery of specific learning objectives. Hybrid, also known as blended, courses generally offer 30-79% of their content online.","• Shift from summative assessment to formative assessment through the use of regular, online, low-stake assessments and quizzes\n• Online tutorials and practice exercises, enabling students to regularly check for their own understanding\n• On-demand, personalized support through online or computer lab sessions with teaching assistants\n• Increased student interaction through active learning, made possible by having students access course content out of the classroom\n","• Personnel time for developing and designing course and training materials (e.g. project leads, course specialists and/or instructional designers)\n• One-time purchase of learning management systems, like MyMathLab, Blackboard, and Sakai, which would house video lectures, online tutorials, and built-in quizzes","• Faculty professional development modules, to assist with course redesign and instruct faculty on online learning pedagogy best practices.","• May reduce need for classroom space, since part of the course is delivered online, leading to reduction in facilities costs\n• Multiple sections are often consolidated into one or a few large classes, significantly reducing faculty salary costs. Lectures also meet fewer times per week (usually reduced from 3x per week to 1x per week), reducing the number of faculty needed to teach the course.\n• Automated assessments reduces the time needed for faculty to prepare and grade tests. \n• Having undergraduate learning assistants teach lab sessions as opposed to graduate teaching assistants improves students’ learning outcomes and helps to save on labor costs.",null,null,null,"Private"]
["Other","[Intentionally blank]","[Intentionally blank]","[Intentionally blank]","[Intentionally blank]","[Intentionally blank]"]

{"sheet":"Research Findings","index":8,"n_rows":3,"n_cols":7,"rows_kept":3,"cut":false,"hidden":true,"merged":[]}
["Improvement Effort Options","Constant","Coefficient 50% CI (Lower Bound)","Coefficient 50% CI (Upper Bound)","Original Course Pass Rate","New Course Pass Rate (Lower Bound)","New Course Pass Rate (Upper Bound)"]
["Corequisite remediation redesign",0.58632459999999997,-5.8551400000000003E-2,0.26477260000000002,{"$f":"Inputs!C26","v":0.25},{"$f":"ROUND((B2+(C2*E2)),2)","v":0.56999999999999995},{"$f":"ROUND((B2+(D2*E2)),2)","v":0.65}]
["Blended introductory coursework redesign",0.30365409999999998,0.64116010000000001,0.78516870000000005,{"$f":"Inputs!C26","v":0.25},{"$f":"ROUND((B3+(C3*E3)),2)","v":0.46},{"$f":"ROUND(B3+(D3*E3),2)","v":0.5}]

{"sheet":"Inst Financial Information","index":9,"n_rows":3976,"n_cols":6,"rows_kept":3976,"cut":false,"hidden":true,"merged":[]}
["IPEDS Institution Name","2016 Control","Total 12-month FTE student enrollment 2015-16","Net tuition and fees revenue FY 2016","Revenue from state and local appropriations FY 2016","Education and related expenses FY 2016"]
["A T Still University of Health Sciences","Private",3506,"$32361","$0","$38759"]
["AIB College of Business","Private",null,"Data not reported to IPEDS","Data not reported to IPEDS","Data not reported to IPEDS"]
["AMERICAN ISLAMIC COLLEGE","Private",35,"$-4875","$0","$51011"]
["AVTEC-Alaska's Institute of Technology","Public",295,"$3938","$18551","$32218"]
["Aaniiih Nakoda College","Public",141,"$303","$375","$30597"]
["Abilene Christian University","Private",4282,"$2161","$0","$26122"]
["Abington Memorial Hospital Dixon School of Nursing","Private",225,"$3477","$0","$26722"]
["Abraham Baldwin Agricultural College","Public",2817,"$3469","$5308","$11873"]
["Academy for Careers and Technology","Public",32,"$6316","$42626","$42498"]
["Academy for Five Element Acupuncture","Private",67,"$15946","$0","$16971"]
["Academy for Jewish Religion-California","Private",64,"$14834","$0","$26822"]
["Academy for Nursing and Health Occupations","Private",489,"$2771","$0","$7596"]
["Academy of Careers and Technology","Public",170,"$1230","$0","$3397"]
["Academy of Chinese Culture and Health Sciences","Private",193,"$7761","$0","$12487"]
["Academy of Interactive Entertainment","Private",100,"$15740","$0","$16022"]
["Academy of Interactive Entertainment","Private",59,"$15307","$0","$17063"]
["Academy of Vocal Arts","Private",27,"$-9415","$0","$145778"]
["Acupuncture and Integrative Medicine College-Berkeley","Private",216,"$6773","$0","$9620"]
["Adams State University","Public",2835,"$4573","$0","$16429"]
["Adelphi University","Private",6753,"$15735","$100","$26980"]
["Adirondack Community College","Public",2759,"$2478","$5121","$13269"]
["Adler Graduate School","Private",190,"$17394","$0","$20089"]
["Adler University","Private",1138,"$29291","$0","$41124"]
["Adrian College","Private",1643,"$-3728","$0","$27104"]
["Adult and Community Education-Hudson","Public",185,"$1222","$0","$7987"]
["Adult and Continuing Education-BCTS","Public",140,"$3379","$0","$11035"]
["Advanced Technical Centers","Private",21,"$0","$0","$14385"]
["Adventist University of Health Sciences","Private",1633,"$14208","$0","$19287"]
["Agnes Scott College","Private",912,"$-10108","$0","$53150"]
["Aiken Technical College","Public",1690,"$3011","$3660","$11688"]
["Aims Community College","Public",3356,"$2789","$22383","$17981"]
["Air Force Institute of Technology-Graduate School of Engineering & Management","Public",879,"Data not reported to IPEDS","Data not reported to IPEDS","Data not reported to IPEDS"]
["Akron School of Practical Nursing","Public",40,"$9022","$9142","$26921"]
["Alabama A & M University","Public",4805,"$6511","$8433","$15371"]
["Alabama College of Osteopathic Medicine","Private",471,"$46204","$0","$35516"]
["Alabama Southern Community College","Public",1088,"$616","$7541","$13090"]
["Alabama State University","Public",5185,"$5747","$8158","$20407"]
["Alamance Community College","Public",3467,"$1304","$5610","$8372"]
["Alamo Community College District Central Office","Public",null,"Data not reported to IPEDS","Data not reported to IPEDS","Data not reported to IPEDS"]
["Alaska Bible College","Private",26,"$8695","$0","$32135"]
["Alaska Christian College","Private",69,"$5728","$0","$27499"]
["Alaska Pacific University","Private",404,"$8389","$0","$31654"]
["Albany BOCES-Adult Practical Nursing Program","Public",163,"$6920","$0","$11527"]
["Albany College of Pharmacy and Health Sciences","Private",1556,"$17754","$114","$26016"]
["Albany Law School","Private",416,"$6571","$84","$46250"]
["Albany Medical College","Private",813,"$40170","$0","$243731"]
["Albany State University","Public",3043,"$4259","$6403","$15074"]
["Albany Technical College","Public",3059,"$1905","$3674","$9863"]
["Albert I Prince Technical High School","Public",64,"$1703","$15830","$19873"]
["Albertus Magnus College","Private",1751,"$7673","$0","$15486"]
["Albion College","Private",1389,"$-7215","$0","$53776"]
["Albright College","Private",2213,"$-2659","$0","$22206"]
["Alcorn State University","Public",3081,"$483","$9992","$13965"]
["Alderson Broaddus University","Private",1214,"$-623","$0","$18078"]
["Alexandria Technical & Community College","Public",1993,"$3787","$5674","$12387"]
["Alfred University","Private",2399,"$-2599","$0","$24814"]
["Alice Lloyd College","Private",543,"$3354","$0","$19845"]
["Allan Hancock College","Public",6744,"$464","$9411","$10664"]
["Allegany College of Maryland","Public",2022,"$1188","$7621","$16984"]
["Allegheny College","Private",1848,"$-3793","$0","$41253"]
["Allegheny Wesleyan College","Private",49,"$4731","$0","$10212"]
["Allen College","Private",510,"$17736","$0","$16563"]
["Allen County Community College","Public",1630,"$1422","$5343","$6816"]
["Allen University","Private",660,"$9285","$0","$22104"]
["Alma College","Private",1540,"$-3019","$0","$28865"]
["Alpena Community College","Public",995,"$3354","$8997","$16922"]
["Altierus Career College Everett","Private",403,"$6604","$0","$9811"]
["Altierus Career College-Arlington","Private",533,"$6126","$0","$10394"]
["Altierus Career College-Atlanta West","Private",526,"$8275","$0","$10980"]
["Altierus Career College-Austin","Private",474,"$8975","$0","$13720"]
["Altierus Career College-Bissonnet","Private",886,"$6358","$0","$7585"]
["Altierus Career College-Chesapeake","Private",397,"$7288","$0","$12919"]
["Altierus Career College-Colorado Springs","Private",257,"$8121","$0","$13635"]
["Altierus Career College-Columbus","Private",243,"$9183","$0","$14840"]
["Altierus Career College-Fort Worth South","Private",563,"$7443","$0","$8448"]
["Altierus Career College-Henderson","Private",491,"$10524","$0","$14433"]
["Altierus Career College-Houston Hobby","Private",619,"$6658","$0","$7157"]
["Altierus Career College-Norcross","Private",406,"$8474","$0","$10879"]
["Altierus Career College-Orange Park","Private",613,"$6513","$0","$9183"]
["Altierus Career College-San Antonio","Private",398,"$6711","$0","$14068"]
["Altierus Career College-Tacoma","Private",651,"$7049","$0","$10595"]
["Altierus Career College-Tampa","Private",394,"$10155","$0","$17118"]
["Altierus Career College-Thornton","Private",298,"$7498","$0","$12571"]
["Altierus Career College-Tigard","Private",349,"$6381","$0","$8810"]
["Altierus Career College-Woodbridge","Private",435,"$8576","$0","$12157"]
["Altierus Career Education-South Plainfield","Private",512,"$6692","$0","$9977"]
["Altierus Career Education-Southfield","Private",872,"$6308","$0","$8422"]
["Alvernia University","Private",2495,"$10843","$0","$21317"]
["Alverno College","Private",1689,"$11611","$0","$23934"]
["Alvin Community College","Public",3866,"$2267","$6502","$8631"]
["Amarillo College","Public",5916,"$2057","$7025","$12470"]
["Amberton University","Private",1140,"$5239","$0","$4735"]
["American Academy McAllister Institute of Funeral Service","Private",374,"$12727","$0","$17939"]
["American Academy of Art","Private",260,"$29065","$733","$13682"]
["American Academy of Dramatic Arts-Los Angeles","Private",338,"$16652","$0","$28001"]
["American Academy of Dramatic Arts-New York","Private",290,"$19262","$0","$41655"]
["American Baptist College","Private",109,"$13453","$0","$30801"]
["American Baptist Seminary of the West","Private",39,"$5351","$0","$59292"]
["American College of Financial Services","Private",3150,"$9120","$0","$12301"]
["American College of Traditional Chinese Medicine","Private",null,"Data not reported to IPEDS","Data not reported to IPEDS","Data not reported to IPEDS"]
["American Conservatory Theater","Private",81,"$23071","$4439","$77314"]
["American Film Institute Conservatory","Private",336,"$30947","$0","$16657"]
["American Indian College Inc","Private",null,"Data not reported to IPEDS","Data not reported to IPEDS","Data not reported to IPEDS"]
["American Indian OIC Inc","Private",72,"$2689","$1649","$12196"]
["American International College","Private",2867,"$3797","$0","$17630"]
["American Jewish University","Private",187,"$3986","$0","$65710"]
["American Musical and Dramatic Academy","Private",1829,"$19559","$0","$25674"]
["American River College","Public",19477,"$528","$5514","$7321"]
["American University","Private",12330,"$21766","$0","$29750"]
["Amherst College","Private",1914,"$-3837","$0","$80737"]
["Amridge University","Private",413,"$14953","$0","$19193"]
["Anabaptist Mennonite Biblical Seminary","Private",60,"$990","$0","$66526"]
["Ancilla College","Private",308,"$6589","$0","$23669"]
["Anderson University","Private",2121,"$2968","$0","$21575"]
["Anderson University","Private",2910,"$5835","$0","$14247"]
["Andover Newton Theological School","Private",149,"$2178","$0","$37237"]
["Andrew College","Private",304,"$-549","$0","$23921"]
["Andrews University","Private",2815,"$4513","$0","$25187"]
["Angelina College","Public",3225,"$1631","$5022","$8616"]
["Angelo State University","Public",6703,"$3608","$5044","$12561"]
["Anna Maria College","Private",1205,"$3240","$0","$16731"]
["Anne Arundel Community College","Public",8603,"$3353","$7834","$15387"]
["Annenberg School of Nursing","Private",25,"$6725","$0","$27252"]
["Anoka Technical College","Public",1387,"$2926","$6078","$12932"]
["Anoka-Ramsey Community College","Public",5683,"$3206","$3585","$10159"]
["Antelope Valley College","Public",9150,"$114","$6864","$8045"]
["Antioch College","Private",266,"$-31440","$0","$63324"]
["Antioch University Online","Private",107,"Data not reported to IPEDS","Data not reported to IPEDS","Data not reported to IPEDS"]
["Antioch University-Los Angeles","Private",774,"Data not reported to IPEDS","Data not reported to IPEDS","Data not reported to IPEDS"]
["Antioch University-Midwest","Private",117,"Data not reported to IPEDS","Data not reported to IPEDS","Data not reported to IPEDS"]
["Antioch University-New England","Private",586,"Data not reported to IPEDS","Data not reported to IPEDS","Data not reported to IPEDS"]
["Antioch University-PhD Program in Leadership and Change","Private",113,"Data not reported to IPEDS","Data not reported to IPEDS","Data not reported to IPEDS"]
["Antioch University-Santa Barbara","Private",411,"Data not reported to IPEDS","Data not reported to IPEDS","Data not reported to IPEDS"]
["Antioch University-Seattle","Private",477,"Data not reported to IPEDS","Data not reported to IPEDS","Data not reported to IPEDS"]
["Antioch University-System Administration","Private",null,"Data not reported to IPEDS","Data not reported to IPEDS","Data not reported to IPEDS"]
["Aparicio-Levy Technical College","Public",23,"$3506","$0","$32780"]
["Apex School of Theology","Private",958,"$3819","$0","$4325"]
["Apollo Career Center","Public",284,"$4791","$1386","$11847"]
["Appalachian Bible College","Private",238,"$3322","$0","$20293"]
["Appalachian College of Pharmacy","Private",202,"$35821","$0","$39678"]
["Appalachian School of Law","Private",112,"$911","$0","$52579"]
["Appalachian State University","Public",17895,"$5166","$7475","$13151"]
["Applied Technology Services","Public",169,"$5828","$2778","$10088"]
["Aquinas College","Private",1611,"$-98","$0","$20257"]
["Aquinas College","Private",310,"$8016","$0","$33079"]
["Aquinas Institute of Theology","Private",73,"$15677","$0","$30512"]
["Arapahoe Community College","Public",5100,"$5626","$0","$7975"]
["Arcadia University","Private",3808,"$5755","$0","$22098"]
["Aria Health School of Nursing","Private",108,"$28650","$0","$40397"]
["Arizona Board of Regents","Public",null,"Data not reported to IPEDS","Data not reported to IPEDS","Data not reported to IPEDS"]
["Arizona Christian University","Private",637,"$-521","$0","$19729"]
["Arizona State University-Downtown Phoenix","Public",10799,"Data not reported to IPEDS","Data not reported to IPEDS","Data not reported to IPEDS"]
["Arizona State University-Polytechnic","Public",3864,"Data not reported to IPEDS","Data not reported to IPEDS","Data not reported to IPEDS"]
["Arizona State University-Skysong","Public",17294,"Data not reported to IPEDS","Data not reported to IPEDS","Data not reported to IPEDS"]
["Arizona State University-Tempe","Public",50653,"$16210","$5555","$24754"]
["Arizona State University-West","Public",3333,"Data not reported to IPEDS","Data not reported to IPEDS","Data not reported to IPEDS"]
["Arizona Western College","Public",5312,"$421","$7246","$10594"]
["Arkansas Baptist College","Private",891,"$9315","$0","$13656"]
["Arkansas Colleges of Health Education","Private",null,"Data not reported to IPEDS","Data not reported to IPEDS","Data not reported to IPEDS"]
["Arkansas Northeastern College","Public",917,"$820","$11810","$19549"]
["Arkansas State University Mid-South","Public",1069,"$1716","$9715","$15121"]
["Arkansas State University-Beebe","Public",2899,"$1426","$5415","$8964"]
["Arkansas State University-Main Campus","Public",12451,"$2149","$5286","$9637"]
["Arkansas State University-Mountain Home","Public",1088,"$690","$5751","$13223"]
["Arkansas State University-Newport","Public",1888,"$1942","$4584","$8288"]
["Arkansas State University-System Office","Public",null,"Data not reported to IPEDS","Data not reported to IPEDS","Data not reported to IPEDS"]
["Arkansas Tech University","Public",9180,"$2197","$3896","$8701"]
["Arlington Baptist University","Private",186,"$9665","$0","$18104"]
["Armstrong State University","Public",6271,"$5482","$4771","$11337"]
["Arnot Ogden Medical Center","Private",57,"$8067","$0","$14876"]
["Art Academy of Cincinnati","Private",188,"$17590","$0","$38588"]
["Art Center College of Design","Private",2463,"$24473","$0","$38583"]
["Asbury Theological Seminary","Private",1035,"$3004","$0","$24597"]
["Asbury University","Private",1615,"$5511","$0","$20262"]
["Asheville-Buncombe Technical Community College","Public",5791,"$1246","$5744","$9955"]
["Ashland Community and Technical College","Public",2023,"$-1357","$3726","$10665"]
["Ashland County-West Holmes Career Center","Public",51,"$10824","$7886","$15030"]
["Ashland University","Private",4751,"$8562","$0","$17433"]
["Ashtabula County Technical and Career Campus","Public",90,"$5814","$0","$24275"]
["Asnuntuck Community College","Public",987,"$3106","$12678","$20848"]
["Assabet Valley Regional Technical School","Public",51,"$10816","$0","$16510"]
["Associated Beth Rivkah Schools","Private",145,"$6603","$0","$10202"]
["Assumption College","Private",2625,"$1506","$0","$20357"]
["Assumption College for Sisters","Private",26,"$-3408","$0","$24404"]
["Athenaeum of Ohio","Private",115,"$908","$0","$48721"]
["Athens State University","Public",2331,"$5761","$5097","$13255"]
["Athens Technical College","Public",2604,"$2723","$4559","$11252"]
["Atlanta Metropolitan State College","Public",2242,"$1471","$4631","$12639"]
["Atlanta Technical College","Public",3357,"$1425","$3880","$10303"]
["Atlantic Cape Community College","Public",4417,"$2600","$3291","$9333"]
["Atlantic Institute of Oriental Medicine","Private",472,"$5585","$0","$6511"]
["Atlantic Technical College","Public",1404,"$2697","$13893","$21930"]
["Auburn Career Center","Public",230,"$4188","$0","$12461"]
["Auburn University","Public",25761,"$10685","$8745","$15416"]
["Auburn University at Montgomery","Public",3959,"$6495","$5753","$13771"]
["Augsburg University","Private",3027,"$5869","$0","$22877"]
["Augusta Technical College","Public",3321,"$1651","$4163","$10407"]
["Augusta University","Public",7780,"$9247","$25073","$38085"]
["Augustana College","Private",2491,"$-1738","$0","$26054"]
["Augustana University","Private",1720,"$-1234","$0","$23611"]
["Aultman College of Nursing and Health Sciences","Private",261,"$17449","$0","$17664"]
["Aurora University","Private",5031,"$7147","$0","$13484"]
["Austin College","Private",1294,"$-6542","$0","$32246"]
["Austin Community College District","Public",24551,"$1886","$9031","$11960"]
["Austin Graduate School of Theology","Private",21,"$6510","$0","$62220"]
["Austin Peay State University","Public",8089,"$4728","$4688","$13409"]
["Austin Presbyterian Theological Seminary","Private",134,"$-6300","$0","$68255"]
["Autry Technology Center","Public",522,"$1352","$24188","$20527"]
["Ave Maria School of Law","Private",285,"$13508","$0","$38470"]
["Ave Maria University","Private",1146,"$-516","$0","$28437"]
["Avera McKennan Hospital School of Radiologic Technology","Private",20,"$1950","$0","$10324"]
["Avera Sacred Heart Hospital","Private",25,"$682","$0","$6396"]
["Averett University","Private",846,"$1174","$0","$30586"]
["Averett University-Non-Traditional Programs","Private",782,"$5909","$0","$7737"]
["Avila University","Private",1670,"$5122","$0","$17818"]
["Azusa Pacific University","Private",10106,"$11030","$0","$18818"]
["Azusa Pacific University College","Private",1349,"$13133","$0","$12409"]
["B M Spurr School of Practical Nursing","Private",26,"$1600","$0","$17276"]
["BCI","Private",186,"$4800","$0","$2899"]
["Babson College","Private",3354,"$21637","$0","$48178"]
["Bacone College","Private",792,"$1193","$0","$17345"]
["Bainbridge State College","Public",1699,"$2713","$4545","$10103"]
["Bais Binyomin Academy","Private",67,"$-1157","$0","$29693"]
["Bais HaMedrash and Mesivta of Baltimore","Private",58,"$13149","$0","$32167"]
["Bais Medrash Elyon","Private",144,"$-5492","$0","$7891"]
["Bais Medrash Toras Chesed","Private",124,"$-294","$0","$7947"]
["Baker College","Private",14405,"$8927","$0","$12211"]
["Baker University","Private",2273,"$6220","$0","$15820"]
["Bakersfield College","Public",12338,"$537","$6633","$8981"]
["Bakke Graduate University","Private",65,"$11795","$0","$11083"]
["Baldwin Park Adult & Community Education","Public",307,"$2171","$20250","$21447"]
["Baldwin Wallace University","Private",3905,"$4945","$0","$23956"]
["Ball State University","Public",19385,"$6200","$6764","$19713"]
["Baltimore City Community College","Public",2755,"$1247","$15000","$25784"]
["Bank Street College of Education","Private",486,"$57831","$0","$76015"]
["Baptist Bible College","Private",313,"$5839","$0","$18367"]
["Baptist Health College-Little Rock","Private",813,"$4075","$0","$10265"]
["Baptist Memorial College of Health Sciences","Private",946,"$13665","$0","$16945"]
["Baptist Missionary Association Theological Seminary","Private",86,"$4164","$0","$10950"]
["Baptist Theological Seminary at Richmond","Private",46,"$6364","$0","$48124"]
["Baptist University of the Americas","Private",146,"$880","$0","$31930"]
["Barclay College","Private",246,"$7172","$0","$14382"]
["Bard College","Private",2486,"$2103","$0","$52197"]
["Bard College at Simon's Rock","Private",342,"$-36","$0","$55272"]
["Barnard College","Private",2483,"$16408","$83","$52912"]
["Barnes-Jewish College Goldfarb School of Nursing","Private",963,"$19950","$0","$16248"]
["Barry University","Private",7275,"$9623","$0","$20900"]
["Barstow Community College","Public",2111,"$375","$7551","$8146"]
["Barton College","Private",1004,"$4275","$0","$23744"]
["Barton County Community College","Public",4271,"$2713","$4501","$8927"]
["Bastyr University","Private",1267,"$26245","$0","$31210"]
["Bates College","Private",1792,"$26276","$0","$54128"]
["Bates Technical College","Public",3008,"$2002","$6735","$9331"]
["Baton Rouge Community College","Public",5709,"$3136","$2655","$8439"]
["Baton Rouge General Medical Center-School of Nursing","Private",70,"$9641","$0","$9003"]
["Baton Rouge General Medical Center-School of Radiologic Technology","Private",24,"$10364","$0","$10634"]
["Bay Mills Community College","Public",333,"$-1166","$0","$11642"]
["Bay Path University","Private",2926,"$10574","$0","$16372"]
["Bay de Noc Community College","Public",984,"$4528","$10696","$22634"]
["Baylor College of Medicine","Private",1628,"$256","$16849","$88981"]
["Baylor University","Private",17050,"$7392","$0","$34380"]
["Be'er Yaakov Talmudic Seminary","Private",502,"$7699","$0","$6017"]
["Beacon College","Private",266,"$22894","$0","$34563"]
["Beaufort County Community College","Public",1097,"$929","$10952","$15897"]
["Beaumont Adult School","Public",67,"$12175","$0","$7368"]
["Becker College","Private",1851,"$4364","$0","$29905"]
["Beis Medrash Heichal Dovid","Private",125,"$445","$0","$7861"]
["Belanger School of Nursing","Private",110,"$4255","$0","$20106"]
["Belhaven University","Private",3303,"$7871","$0","$12540"]
["Bellarmine University","Private",3641,"$2694","$0","$20928"]
["Bellevue College","Public",10788,"$3728","$3069","$8659"]
["Bellevue University","Private",6623,"$10926","$0","$11707"]
["Bellin College","Private",372,"$15489","$0","$26491"]
["Bellingham Technical College","Public",2059,"$1701","$6048","$13737"]
["Belmont Abbey College","Private",1348,"$6259","$0","$20042"]
["Belmont College","Public",866,"$3865","$5865","$10994"]
["Belmont University","Private",7318,"$18047","$0","$20848"]
["Beloit College","Private",1353,"$-3979","$0","$35001"]
["Bemidji State University","Public",4258,"$4466","$5026","$15946"]
["Ben Franklin Career Center","Public",162,"$520","$19901","$16731"]
["Benedict College","Private",2597,"$3743","$0","$20036"]
["Benedictine College","Private",2024,"$106","$0","$18043"]
["Benedictine University","Private",5642,"$6464","$0","$16945"]
["Benjamin Franklin Institute of Technology","Public",636,"$6372","$0","$16856"]
["Bennett College","Private",514,"$3515","$0","$35299"]
["Bennington College","Private",844,"$5897","$0","$41514"]
["Bentley University","Private",4918,"$13808","$0","$35510"]
["Berea College","Private",1714,"$-19420","$0","$30906"]
["Bergen Community College","Public",10458,"$5425","$3071","$12790"]
["Bergin University of Canine Studies","Private",43,"$11826","$0","$23162"]
["Berkeley City College","Public",3902,"$438","$6870","$6813"]
["Berklee College of Music","Private",6120,"$17957","$0","$32863"]
["Berks Career & Technology Center","Public",34,"$29144","$4027","$33601"]
["Berkshire Community College","Public",1207,"$3440","$11554","$21988"]
["Berry College","Private",2255,"$-1767","$0","$37125"]
["Bet Medrash Gadol Ateret Torah","Private",130,"$-12749","$0","$13747"]
["Beth Hamedrash Shaarei Yosher Institute","Private",45,"$4668","$0","$35440"]
["Beth Hatalmud Rabbinical College","Private",32,"$-18554","$0","$18921"]
["Beth Medrash Govoha","Private",6992,"$-6151","$0","$3817"]
["Beth Medrash Meor Yitzchok","Private",219,"$-7387","$0","$9309"]
["Beth Medrash of Asbury Park","Private",57,"$-1248","$0","$12093"]
["Bethany College","Private",803,"$-5370","$0","$27667"]
["Bethany College","Private",620,"$-4178","$0","$21387"]
["Bethany Global University","Private",178,"$-6287","$0","$17021"]
["Bethany Lutheran College","Private",548,"$530","$0","$30248"]
["Bethany Theological Seminary","Private",31,"$-3712","$0","$103053"]
["Bethel College","Private",49,"$4907","$0","$6441"]
["Bethel College-Indiana","Private",1516,"$4758","$0","$19146"]
["Bethel College-North Newton","Private",496,"$-80","$0","$24015"]
["Bethel Seminary-San Diego","Private",116,"$9428","$0","$22496"]
["Bethel Seminary-St Paul","Private",235,"$8629","$0","$28926"]
["Bethel University","Private",3847,"$8444","$0","$22263"]
["Bethel University","Private",4796,"$6773","$0","$12061"]
["Bethesda University","Private",267,"$5854","$0","$11236"]
["Bethlehem College & Seminary","Private",195,"$5618","$0","$17372"]
["Bethune-Cookman University","Private",3785,"$6190","$0","$19042"]
["Beulah Heights University","Private",418,"$9223","$0","$12592"]
["Bevill State Community College","Public",2850,"$1561","$5477","$11129"]
["Bexley Hall Seabury Western Theological Seminary Federation  Inc.","Private",21,"$-4470","$0","$167466"]
["Biblical Theological Seminary","Private",208,"$6871","$0","$16661"]
["Bidwell Training Center Inc","Private",173,"$-58","$30636","$33150"]
["Big Bend Community College","Public",1867,"$1241","$5363","$13928"]
["Big Bend Technical College","Public",154,"$1996","$2861","$12494"]
["Big Sandy Community and Technical College","Public",2432,"$-3285","$3793","$9865"]
["Binghamton University","Public",16679,"$6824","$10137","$21035"]
["Biola University","Private",5378,"$13425","$0","$23866"]
["Birmingham Southern College","Private",1486,"$-9287","$0","$27193"]
["Birthingway College of Midwifery","Private",39,"$21196","$0","$27720"]
["Bishop State Community College","Public",2351,"$1580","$5777","$10484"]
["Bismarck State College","Public",2985,"$3938","$5962","$17278"]
["Black Hawk College","Public",4063,"$758","$7942","$12119"]
["Black Hills State University","Public",2995,"$5747","$2977","$13649"]
["Black River Technical College","Public",1226,"$999","$6818","$11719"]
["Blackburn College","Private",576,"$4705","$0","$21252"]
["Blackfeet Community College","Private",348,"$-798","$83","$23202"]
["Blackhawk Technical College","Public",1630,"$2932","$16197","$28856"]
["Blackstone Valley Vocational Regional School District","Public",29,"$8720","$5024","$16665"]
["Bladen Community College","Public",986,"$472","$8071","$10224"]
["Blessing Hospital School of Medical Laboratory Technology","Private",4,"$6250","$0","$16560"]
["Blessing Hospital School of Radiologic Technology","Private",11,"$4930","$0","$24497"]
["Blessing Rieman College of Nursing and Health Sciences","Private",214,"$7437","$0","$27745"]
["Blinn College","Public",14142,"$3414","$2264","$6684"]
["Bloomfield College","Private",1854,"$9426","$0","$21800"]
["Bloomsburg University of Pennsylvania","Public",9291,"$7817","$3721","$17759"]
["Blue Hills Regional Technical School","Public",53,"$3015","$0","$9437"]
["Blue Mountain College","Private",461,"$1380","$0","$19726"]
["Blue Mountain Community College","Public",1462,"$3791","$9273","$20474"]
["Blue Ridge Community College","Public",1699,"$855","$8133","$11322"]
["Blue Ridge Community College","Public",2619,"$2746","$3820","$10119"]
["Blue Ridge Community and Technical College","Public",1979,"$2330","$2235","$8212"]
["Blue Sky School of Professional Massage and Therapeutic Bodywork","Private",null,"Data not reported to IPEDS","Data not reported to IPEDS","Data not reported to IPEDS"]
["Bluefield College","Private",941,"$3133","$0","$12865"]
["Bluefield State College","Public",1298,"$2130","$4301","$13005"]
["Bluegrass Community and Technical College","Public",6635,"$162","$1420","$7852"]
["Bluffton University","Private",1040,"$435","$0","$19284"]
["Board of Trustees-Mississippi State Institutions of Higher Learning","Public",null,"Data not reported to IPEDS","Data not reported to IPEDS","Data not reported to IPEDS"]
["Boise Bible College","Private",136,"$6918","$0","$34378"]
["Boise State University","Public",16203,"$6753","$5554","$13679"]
["Bon Secours Memorial College of Nursing","Private",393,"$5895","$0","$20571"]
["Bon Secours St Mary's Hospital School of Medical Imaging","Private",29,"$4451","$0","$30837"]
["Boricua College","Private",1348,"$8052","$36","$11072"]
["Bossier Parish Community College","Public",4967,"$3072","$2182","$7165"]
["Boston Architectural College","Private",716,"$22157","$0","$27139"]
["Boston Baptist College","Private",72,"$9530","$0","$28608"]
["Boston College","Private",12912,"$18779","$0","$45095"]
["Boston Graduate School of Psychoanalysis Inc","Private",83,"$14567","$0","$19420"]
["Boston University","Private",32261,"$20210","$0","$43677"]
["Bowdoin College","Private",1798,"$11998","$0","$78877"]
["Bowie State University","Public",4588,"$3654","$9088","$18506"]
["Bowling Green State University-Firelands","Public",1505,"Data not reported to IPEDS","Data not reported to IPEDS","Data not reported to IPEDS"]
["Bowling Green State University-Main Campus","Public",16059,"$6249","$4454","$15758"]
["Bradford-Union Technical Center","Public",136,"$937","$0","$15302"]
["Bradley University","Private",5356,"$9349","$0","$21283"]
["Bramson ORT College","Private",592,"$10094","$0","$18010"]
["Brandeis University","Private",6104,"$8721","$0","$39187"]
["Brandman University","Private",6475,"$14023","$0","$14633"]
["Brazosport College","Public",2557,"$3660","$10990","$18222"]
["Brenau University","Private",2535,"$11068","$0","$19084"]
["Brescia University","Private",818,"$6264","$0","$15615"]
["Brevard College","Private",741,"$-1510","$0","$19955"]
["Brewster Technical College","Public",137,"$2175","$0","$33772"]
["Brewton-Parker College","Private",462,"$166","$0","$16513"]
["Briar Cliff University","Private",987,"$1372","$0","$20866"]
["BridgeValley Community & Technical College","Public",1422,"$2443","$5212","$12220"]
["Bridgeport Hospital School of Nursing","Private",192,"Data not reported to IPEDS","Data not reported to IPEDS","Data not reported to IPEDS"]
["Bridgerland Technical College","Public",630,"$2494","$8265","$13843"]
["Bridgewater College","Private",1898,"$-7588","$0","$21026"]
["Bridgewater State University","Public",9822,"$7857","$5629","$15224"]
["Brigham Young University-Hawaii","Private",3577,"$-1162","$0","$25959"]
["Brigham Young University-Idaho","Private",41019,"$2168","$0","$6408"]
["Brigham Young University-Provo","Private",33688,"$2988","$0","$22793"]
["Brighton Center's Center for Employment Training","Private",74,"$1154","$0","$14250"]
["Bristol Community College","Public",5581,"$3552","$4741","$12689"]
["Bristol Technical Education Center","Public",58,"$1564","$58087","$54245"]
["Brite Divinity School","Private",176,"$-9265","$0","$29444"]
["Brookdale Community College","Public",9973,"$3070","$3049","$8399"]
["Brookhaven College","Public",6683,"$1908","$6114","$8167"]
["Brooklyn Law School","Private",1141,"$679","$58","$45165"]
["Broome Delaware Tioga BOCES-Practical Nursing Program","Public",53,"$5558","$0","$9140"]
["Broward College","Public",30311,"$1159","$2963","$8431"]
["Brown University","Private",9361,"$15893","$0","$64612"]
["Brunswick Community College","Public",1191,"$817","$10519","$16850"]
["Bryan College of Health Sciences","Private",564,"$16634","$0","$27331"]
["Bryan College-Dayton","Private",1162,"$2413","$0","$15044"]
["Bryant University","Private",3864,"$9400","$0","$28071"]
["Bryn Athyn College of the New Church","Private",274,"$5273","$0","$49392"]
["Bryn Mawr College","Private",1748,"$-1677","$0","$59269"]
["Buckeye Hills Career Center","Public",106,"$6140","$2958","$17232"]
["Buckeye Joint Vocational School","Public",72,"$7690","$0","$7412"]
["Bucknell University","Private",3763,"$17897","$0","$51031"]
["Bucks County Community College","Public",5986,"$5254","$5613","$14273"]
["Buena Vista University","Private",2276,"$5117","$0","$16891"]
["Bullard-Havens Technical High School","Public",34,"$2553","$14439","$20689"]
["Bunker Hill Community College","Public",8672,"$2927","$3837","$9274"]
["Butler Community College","Public",6050,"$2351","$5171","$8988"]
["Butler County Community College","Public",2304,"$4851","$5629","$11866"]
["Butler Tech-D Russel Lee Career Center","Public",249,"$15588","$2711","$16668"]
["Butler University","Private",4980,"$7670","$0","$28852"]
["Butte College","Public",8234,"$-150","$5308","$11213"]
["Butte County Regional Occupational Program","Public",48,"$0","$0","$8630"]
["Byzantine Catholic Seminary of Saints Cyril and Methodius","Private",11,"$25504","$0","$66360"]
["CAAN Academy of Nursing","Private",13,"$5089","$0","$13049"]
["CBD College","Private",811,"$6988","$0","$8840"]
["CES College","Private",150,"$1723","$0","$6513"]
["CET-Alexandria","Private",121,"$4536","$0","$13331"]
["CET-Coachella","Private",99,"$10224","$0","$14277"]
["CET-Colton","Private",154,"$6764","$0","$13471"]
["CET-Durham","Private",106,"$3773","$0","$16107"]
["CET-El Centro","Private",266,"$11030","$0","$9218"]
["CET-El Paso","Private",86,"$7650","$0","$13336"]
["CET-Oxnard","Private",146,"$9414","$0","$10834"]
["CET-Sacramento","Private",107,"$7118","$0","$15423"]
["CET-Salinas","Private",78,"$10926","$0","$10503"]
["CET-San Diego","Private",201,"$6674","$0","$10780"]
["CET-Santa Maria","Private",138,"$8062","$0","$11045"]
["CET-Sobrato","Private",335,"$7982","$0","$14952"]
["CET-Soledad","Private",103,"$11246","$0","$11366"]
["CET-Watsonville","Private",112,"$11135","$0","$10562"]
["CHI Health School of Radiologic Technology","Private",42,"$2405","$0","$5952"]
["CUNY Bernard M Baruch College","Public",15489,"$5607","$5689","$19923"]
["CUNY Borough of Manhattan Community College","Public",21175,"$1463","$5390","$14714"]
["CUNY Bronx Community College","Public",8374,"$828","$9962","$20229"]
["CUNY Brooklyn College","Public",14148,"$3242","$8053","$20628"]
["CUNY City College","Public",12266,"$2435","$13207","$30876"]
["CUNY Graduate School and University Center","Public",3090,"$-6022","$66693","$80282"]
["CUNY Hostos Community College","Public",5251,"$799","$8992","$23021"]
["CUNY Hunter College","Public",18770,"$4608","$7166","$19517"]
["CUNY John Jay College of Criminal Justice","Public",11945,"$3252","$7215","$23926"]
["CUNY Kingsborough Community College","Public",12231,"$730","$8011","$15393"]
["CUNY LaGuardia Community College","Public",14048,"$1783","$8153","$16434"]
["CUNY Lehman College","Public",9761,"$3157","$8719","$21942"]
["CUNY Medgar Evers College","Public",5387,"$996","$10813","$26272"]
["CUNY New York City College of Technology","Public",12768,"$2174","$6492","$18048"]
["CUNY Queens College","Public",15792,"$3982","$6757","$19300"]
["CUNY Queensborough Community College","Public",11362,"$2139","$8104","$16262"]
["CUNY School of Law","Public",380,"$9939","$68669","$110626"]
["CUNY System Office","Public",null,"Data not reported to IPEDS","Data not reported to IPEDS","Data not reported to IPEDS"]
["CUNY York College","Public",6163,"$2270","$9090","$21554"]
["CVPH Medical Center School of Radiologic Technology","Private",36,"$1446","$0","$8305"]
["Cabarrus College of Health Sciences","Private",355,"$10451","$0","$19663"]
["Cabell County Career Technology Center","Public",79,"$3937","$0","$37410"]
["Cabrillo College","Public",7564,"$-47","$12785","$11702"]
["Cabrini University","Private",1849,"$3207","$0","$27867"]
["Caddo Kiowa Technology Center","Public",260,"$1641","$26680","$31110"]
["Cairn University-Langhorne","Private",967,"$3217","$0","$20381"]
["Caldwell Community College and Technical Institute","Public",2648,"$1055","$7893","$12269"]
["Caldwell University","Private",1749,"$6112","$0","$23071"]
["California Baptist University","Private",8518,"$12989","$0","$18873"]
["California Christian College","Private",13,"$10855","$0","$44663"]
["California College San Diego","Private",571,"$14380","$0","$11205"]
["California College San Diego","Private",1320,"$14499","$0","$12336"]
["California College of the Arts","Private",2044,"$18524","$0","$34538"]
["California Institute of Advanced Management","Private",8,"$-432","$0","$92166"]
["California Institute of Integral Studies","Private",1426,"$16207","$0","$20356"]
["California Institute of Technology","Private",2256,"$-4656","$0","$136007"]
["California Institute of the Arts","Private",1442,"$20303","$0","$47379"]
["California International Business University","Private",90,"Data not reported to IPEDS","Data not reported to IPEDS","Data not reported to IPEDS"]
["California Jazz Conservatory","Private",38,"$37078","$0","$75761"]
["California Lutheran University","Private",4134,"$7936","$0","$22183"]
["California Polytechnic State University-San Luis Obispo","Public",19466,"$7383","$6008","$20264"]
["California State Polytechnic University-Pomona","Public",19738,"$2737","$6576","$15998"]
["California State University Maritime Academy","Public",1309,"$6396","$21775","$41040"]
["California State University-Bakersfield","Public",8742,"$1038","$7001","$14810"]
["California State University-Chancellors Office","Public",null,"Data not reported to IPEDS","Data not reported to IPEDS","Data not reported to IPEDS"]
["California State University-Channel Islands","Public",5392,"$3679","$13283","$27442"]
["California State University-Chico","Public",15779,"$2554","$6519","$15164"]
["California State University-Dominguez Hills","Public",11000,"$2117","$6753","$15963"]
["California State University-East Bay","Public",13125,"$4558","$6669","$17463"]
["California State University-Fresno","Public",20411,"$1554","$6535","$15118"]
["California State University-Fullerton","Public",30973,"$3661","$5146","$15424"]
["California State University-Long Beach","Public",30312,"$2862","$5707","$15263"]
["California State University-Los Angeles","Public",22334,"$2381","$5600","$13389"]
["California State University-Monterey Bay","Public",6678,"$3241","$10325","$25139"]
["California State University-Northridge","Public",32299,"$3164","$5231","$14875"]
["California State University-Sacramento","Public",24281,"$3116","$5735","$15298"]
["California State University-San Bernardino","Public",16450,"$1650","$5881","$14797"]
["California State University-San Marcos","Public",10284,"$4363","$6900","$20445"]
["California State University-Stanislaus","Public",7647,"$1977","$7681","$17487"]
["California University of Management and Sciences","Private",352,"$12909","$0","$13747"]
["California University of Pennsylvania","Public",7406,"$8071","$4158","$17549"]
["California Western School of Law","Private",721,"$4558","$0","$42804"]
["Calumet College of Saint Joseph","Private",772,"$11263","$0","$17079"]
["Calvary University","Private",216,"$8539","$0","$19493"]
["Calvin College","Private",4104,"$5646","$0","$24194"]
["Calvin Theological Seminary","Private",255,"$-1038","$0","$35088"]
["Cambridge College","Private",2043,"$9704","$0","$15428"]
["Camden County College","Public",7935,"$3184","$2584","$8647"]
["Cameron University","Public",4011,"$2819","$4725","$12641"]
["Campbell University","Private",6548,"$6327","$0","$22310"]
["Campbellsville University","Private",2816,"$2514","$0","$13843"]
["Canada College","Public",3325,"$1068","$10210","$12805"]
["Canadian Valley Technology Center","Public",1035,"$1002","$27751","$26907"]
["Canisius College","Private",3586,"$2222","$89","$24404"]
["Cankdeska Cikana Community College","Public",148,"$-1804","$0","$42353"]
["Canton City Schools Adult Career and Technical Education","Public",106,"$9843","$0","$20062"]
["Cape Cod Community College","Public",2114,"$2969","$7245","$16828"]
["Cape Coral Technical College","Public",226,"$3136","$16499","$17306"]
["Cape Fear Community College","Public",7845,"$1269","$5506","$7675"]
["Cape Girardeau Career and Technology Center","Public",196,"$2494","$0","$8687"]
["Capital Area School of Practical Nursing","Public",147,"$3176","$0","$12705"]
["Capital Area Technical College","Public",701,"$1153","$9112","$15632"]
["Capital Community College","Public",1990,"$1239","$10948","$18673"]
["Capital University","Private",3515,"$-914","$0","$19999"]
["Capitol Technology University","Private",603,"$15367","$807","$17559"]
["Cardinal Stritch University","Private",2150,"$7942","$0","$17268"]
["Career Center of Southern Illinois","Public",165,"$4344","$0","$6505"]
["Career School of NY","Private",64,"$3750","$0","$5033"]
["Career Technology Center of Lackawanna County","Public",93,"$927","$0","$7552"]
["Career and Technology Education Centers of Licking County","Public",285,"$7303","$0","$10758"]
["Carl Albert State College","Public",1713,"$-487","$3356","$8483"]
["Carl Sandburg College","Public",1381,"$2706","$7473","$17260"]
["Carleton College","Private",1967,"$12498","$0","$61460"]
["Carlos Albizu University-Miami","Private",826,"$16140","$0","$12828"]
["Carlow University","Private",1824,"$12760","$0","$22259"]
["Carnegie Mellon University","Private",12370,"$28101","$0","$53225"]
["Carolina Christian College","Private",66,"$4887","$0","$7182"]
["Carolina College of Biblical Studies","Private",75,"$10106","$0","$14551"]
["Carolinas College of Health Sciences","Public",335,"$10764","$0","$22772"]
["Carroll College","Private",1413,"$-325","$0","$24157"]
["Carroll Community College","Public",2262,"$4284","$7540","$16492"]
["Carroll University","Private",3425,"$5335","$0","$16334"]
["Carson-Newman University","Private",2595,"$1474","$0","$15029"]
["Carteret Community College","Public",1187,"$1188","$9172","$12002"]
["Carthage College","Private",3064,"$-807","$0","$23164"]
["Carthage R9 School District-Carthage Technical Center","Public",35,"$5178","$0","$9135"]
["Carver Bible College","Private",55,"$2440","$0","$26505"]
["Carver Career Center","Public",242,"$3323","$5697","$9420"]
["Casa Loma College-Van Nuys","Private",574,"$8077","$0","$10148"]
["Cascadia College","Public",2644,"$2303","$3742","$10604"]
["Case Western Reserve University","Private",10415,"$8632","$262","$41470"]
["Casper College","Public",2484,"$1318","$15813","$21468"]
["Cass Career Center","Public",28,"$6520","$0","$10754"]
["Castleton University","Public",2033,"$10495","$2373","$19701"]
["Catawba College","Private",1222,"$6424","$0","$26937"]
["Catawba Valley Community College","Public",3241,"$1249","$7412","$10229"]
["Catholic Distance University","Private",75,"$8607","$0","$18828"]
["Catholic Theological Union at Chicago","Private",202,"$11770","$0","$44992"]
["Catholic University of America","Private",5656,"$8515","$0","$33366"]
["Cattaraugus Allegany BOCES-Practical Nursing Program","Public",34,"$9393","$0","$11682"]
["Cayce/Reilly School of Massage","Private",46,"$10974","$0","$9401"]
["Cayuga County Community College","Public",2678,"$3272","$5691","$14982"]
["Cayuga Onondaga BOCES-Practical Nursing Program","Public",36,"$2032","$0","$3975"]
["Cazenovia College","Private",1061,"$-8571","$0","$20861"]
["Cecil College","Public",1597,"$3592","$8901","$19902"]
["Cedar Crest College","Private",1357,"$10803","$0","$21458"]
["Cedar Valley College","Public",3797,"$1221","$8540","$9923"]
["Cedarville University","Private",3603,"$8491","$0","$21567"]
["Centenary College of Louisiana","Private",621,"$-2117","$0","$40640"]
["Centenary University","Private",1814,"$6832","$0","$20018"]
["Center for Instruction Technology & Innovation (CiTi)","Public",123,"$2542","$0","$5965"]
["Centra College of Nursing","Private",108,"$9769","$0","$22365"]
["Central Alabama Community College","Public",1396,"$1173","$5839","$14007"]
["Central Arizona College","Public",3949,"$740","$14961","$16322"]
["Central Baptist College","Private",701,"$5656","$0","$15580"]
["Central Baptist Theological Seminary","Private",225,"Data not reported to IPEDS","Data not reported to IPEDS","Data not reported to IPEDS"]
["Central Carolina Community College","Public",3411,"$1378","$8210","$12546"]
["Central Carolina Technical College","Public",2493,"$2685","$3100","$11509"]
["Central Christian College of Kansas","Private",926,"$4726","$0","$11879"]
["Central Christian College of the Bible","Private",244,"$-107","$0","$11399"]
["Central College","Private",1233,"$-4232","$0","$30163"]
["Central Community College","Public",3693,"$1876","$13635","$19139"]
["Central Connecticut State University","Public",9918,"$6158","$9152","$22039"]
["Central Georgia Technical College","Public",5974,"$1634","$3803","$9893"]
["Central Lakes College-Brainerd","Public",2710,"$2752","$5814","$13616"]
["Central Louisiana Technical Community College","Public",1453,"$-1926","$4030","$8091"]
["Central Maine Community College","Public",1802,"$203","$4197","$10458"]
["Central Methodist University-College of Graduate and Extended Studies","Private",2448,"Data not reported to IPEDS","Data not reported to IPEDS","Data not reported to IPEDS"]
["Central Methodist University-College of Liberal Arts and Sciences","Private",1039,"$12541","$0","$30751"]
["Central Michigan University","Public",21733,"$7806","$3749","$14328"]
["Central New Mexico Community College","Public",16513,"$700","$7057","$10098"]
["Central Ohio Technical College","Public",2369,"$2506","$5119","$11772"]
["Central Oregon Community College","Public",4814,"$2072","$5979","$14263"]
["Central Pennsylvania Institute of Science and Technology","Public",281,"$9442","$760","$8014"]
["Central Piedmont Community College","Public",15392,"$1787","$6088","$10675"]
["Central School of Practical Nursing","Private",152,"$3673","$0","$7681"]
["Central School of Practical Nursing","Public",44,"$6682","$937","$7018"]
["Central State University","Public",1622,"$1891","$10934","$19373"]
["Central Susquehanna Intermediate Unit LPN Career","Public",112,"$6932","$0","$15088"]
["Central Technology Center","Public",239,"$726","$10592","$7921"]
["Central Texas College","Public",11698,"$3270","$3002","$7694"]
["Central Virginia Community College","Public",2566,"$3091","$3650","$9379"]
["Central Washington University","Public",11859,"$4451","$3921","$13363"]
["Central Wyoming College","Public",1438,"$1384","$13805","$16684"]
["Central Yeshiva Beth Joseph","Private",91,"$-729","$0","$15039"]
["Central Yeshiva Tomchei Tmimim Lubavitz","Private",667,"$5476","$0","$7232"]
["Centralia College","Public",2197,"$756","$5134","$14483"]
["Centre College","Private",1350,"$-491","$0","$42336"]
["Century College","Public",6204,"$3037","$4257","$11497"]
["Cerritos College","Public",14025,"$445","$7704","$10200"]
["Cerro Coso Community College","Public",2303,"$704","$7189","$13258"]
["Chabot College","Public",8113,"$279","$9213","$12106"]
["Chadron State College","Public",2348,"$4226","$7411","$15909"]
["Chaffey College","Public",12773,"$796","$7305","$8192"]
["Chaminade University of Honolulu","Private",1958,"$10711","$0","$23029"]
["Champlain College","Private",3452,"$10420","$0","$23692"]
["Chandler-Gilbert Community College","Public",7828,"$1861","$5486","$9008"]
["Chapman University","Private",8298,"$14735","$0","$30042"]
["Charles A Jones Career and Education Center","Public",525,"$1861","$913","$6309"]
["Charles H McCann Technical School","Public",67,"$1724","$0","$12777"]
["Charles R Drew University of Medicine and Science","Private",442,"$31814","$22924","$45143"]
["Charleston Southern University","Private",3431,"$3759","$0","$15592"]
["Charlotte Christian College and Theological Seminary","Private",90,"$6376","$0","$11923"]
["Charlotte Technical College","Public",191,"$2385","$12423","$22822"]
["Charter Oak State College","Public",950,"$8091","$3552","$16708"]
["Chatfield College","Private",301,"$7367","$0","$12808"]
["Chatham University","Private",2117,"$11816","$0","$28793"]
["Chattahoochee Technical College","Public",6488,"$2907","$3233","$9128"]
["Chattahoochee Valley Community College","Public",1360,"$1205","$4283","$8332"]
["Chattanooga State Community College","Public",5993,"$2931","$4613","$11538"]
["Chemeketa Community College","Public",8870,"$2255","$7817","$15565"]
["Chesapeake College","Public",1300,"$3398","$9678","$18311"]
["Chester County Intermediate Unit","Public",112,"$3948","$0","$12349"]
["Chestnut Hill College","Private",1698,"$6662","$0","$20271"]
["Cheyney University of Pennsylvania","Public",704,"$462","$18562","$48901"]
["Chicago ORT Technical Institute","Private",94,"$22104","$0","$13139"]
["Chicago State University","Public",3701,"$5563","$5865","$30680"]
["Chicago Theological Seminary","Private",104,"$12952","$0","$62402"]
["Chief Dull Knife College","Public",188,"$1224","$27","$30414"]
["Chipola College","Public",1457,"$1225","$8104","$15592"]
["Chippewa Valley Technical College","Public",3654,"$3180","$11654","$26580"]
["Chisholm Trail Technology Center","Public",154,"$-11","$18438","$15625"]
["Choffin Career  and Technical Center","Public",138,"$3914","$0","$4714"]
["Chowan University","Private",1461,"$-209","$0","$15248"]
["Christ the King Seminary","Private",39,"$17437","$0","$84266"]
["Christian Brothers University","Private",1998,"$3535","$0","$13363"]
["Christian Culinary Academy","Private",null,"Data not reported to IPEDS","Data not reported to IPEDS","Data not reported to IPEDS"]
["Christian Life College","Private",29,"$5900","$0","$16029"]
["Christian Theological Seminary","Private",126,"$461","$0","$147286"]
["Christopher Newport University","Public",5092,"$7039","$6227","$16649"]
["Church Divinity School of the Pacific","Private",64,"$-372","$0","$61298"]
["Cincinnati Christian University","Private",668,"$3739","$0","$20060"]
["Cincinnati College of Mortuary Science","Private",111,"$11978","$0","$14950"]
["Cincinnati State Technical and Community College","Public",6723,"$3608","$4508","$11028"]
["Circle in the Square Theatre School","Private",80,"$13448","$0","$30116"]
["Cisco College","Public",2325,"$840","$3344","$6516"]
["Citadel Military College of South Carolina","Public",3724,"$7816","$2774","$23547"]
["Citizens School of Nursing","Private",213,"$6092","$0","$9234"]
["Citrus College","Public",9776,"$1066","$6122","$9156"]
["City College of San Francisco","Public",13358,"$852","$16639","$22244"]
["City College-Altamonte Springs","Private",290,"$16550","$0","$20414"]
["City College-Fort Lauderdale","Private",434,"$16501","$0","$21125"]
["City College-Gainesville","Private",366,"$16045","$0","$16812"]
["City College-Hollywood","Private",185,"$16604","$0","$20743"]
["City College-Miami","Private",266,"$16657","$0","$22423"]
["City Colleges of Chicago-District Office","Public",null,"Data not reported to IPEDS","Data not reported to IPEDS","Data not reported to IPEDS"]
["City Colleges of Chicago-Harold Washington College","Public",6944,"$2015","$649","$7064"]
["City Colleges of Chicago-Harry S Truman College","Public",7094,"$962","$3315","$7415"]
["City Colleges of Chicago-Kennedy-King College","Public",3025,"$1404","$8016","$15207"]
["City Colleges of Chicago-Malcolm X College","Public",4381,"$1253","$10499","$11400"]
["City Colleges of Chicago-Olive-Harvey College","Public",2492,"$845","$5544","$12310"]
["City Colleges of Chicago-Richard J Daley College","Public",6219,"$765","$2735","$5797"]
["City Colleges of Chicago-Wilbur Wright College","Public",7789,"$1496","$2105","$6656"]
["City University of Seattle","Private",1402,"$21805","$0","$24746"]
["City Vision University","Private",67,"$3535","$0","$6383"]
["Clackamas Community College","Public",3348,"$4430","$12078","$19760"]
["Claflin University","Private",2036,"$7095","$0","$20081"]
["Claremont Graduate University","Private",1194,"$25485","$0","$47181"]
["Claremont Lincoln University","Private",56,"$-11097","$0","$149657"]
["Claremont McKenna College","Private",1370,"$18511","$0","$59804"]
["Claremont School of Theology","Private",275,"$242","$0","$27036"]
["Clarendon College","Public",894,"$308","$4089","$10528"]
["Clarion County Career Center Practical Nursing Program","Public",50,"$2420","$0","$11096"]
["Clarion University of Pennsylvania","Public",4679,"$7141","$5141","$18706"]
["Clark Atlanta University","Private",3469,"$14208","$0","$19469"]
["Clark College","Public",7863,"$1597","$3916","$10073"]
["Clark State Community College","Public",3664,"$2493","$3387","$7502"]
["Clark University","Private",3670,"$1788","$0","$21414"]
["Clarke University","Private",1084,"$7207","$0","$20815"]
["Clarks Summit University","Private",774,"$4785","$56","$13073"]
["Clarkson College","Private",979,"$12420","$0","$19452"]
["Clarkson University","Private",4066,"$-5687","$73","$27919"]
["Clary Sage College","Private",637,"$7548","$0","$5334"]
["Clatsop Community College","Public",715,"$3548","$12780","$22919"]
["Clayton  State University","Public",5394,"$4490","$4730","$14101"]
["Clear Creek Baptist Bible College","Private",93,"$-1025","$0","$31212"]
["Clearfield County Career and Technology Center","Public",93,"$7543","$9565","$23385"]
["Cleary University","Private",373,"$11531","$0","$26520"]
["Clemson University","Public",22199,"$12989","$4902","$18367"]
["Cleveland Clinic Health System-School of Diagnostic Imaging","Private",49,"$7090","$0","$8850"]
["Cleveland Community College","Public",2031,"$765","$8313","$10838"]
["Cleveland Institute of Art","Private",605,"$3467","$0","$42388"]
["Cleveland Institute of Music","Private",441,"$273","$1673","$46777"]
["Cleveland State Community College","Public",2314,"$1940","$4101","$10678"]
["Cleveland State University","Public",14649,"$9344","$5087","$17644"]
["Cleveland University-Kansas City","Private",589,"$19975","$0","$22353"]
["Clinton College","Private",163,"$5445","$0","$15349"]
["Clinton Community College","Public",1097,"$2059","$6625","$14892"]
["Clinton Essex Warren Washington BOCES","Public",68,"$4923","$0","$14208"]
["Clinton Technical School","Public",44,"$668","$575","$5719"]
["Cloud County Community College","Public",1344,"$1527","$5447","$9653"]
["Clover Park Technical College","Public",4047,"$1236","$5188","$10378"]
["Clovis Adult Education","Public",268,"$2522","$4845","$7301"]
["Clovis Community College","Public",3465,"$586","$6121","$6822"]
["Clovis Community College","Public",1613,"$534","$7215","$8904"]
["Coahoma Community College","Public",1880,"$-445","$6587","$14056"]
["Coast Community College District Office","Public",null,"Data not reported to IPEDS","Data not reported to IPEDS","Data not reported to IPEDS"]
["Coastal Alabama Community College","Public",3838,"$1724","$3436","$7779"]
["Coastal Bend College","Public",2665,"$1924","$4153","$7713"]
["Coastal Carolina Community College","Public",3930,"$1277","$5135","$8462"]
["Coastal Carolina University","Public",9994,"$11221","$1263","$19005"]
["Coastal Pines Technical College","Public",1619,"$2775","$8573","$15470"]
["Coastline Community College","Public",6208,"$783","$3760","$6523"]
["Cochise County Community College District","Public",7047,"$754","$4355","$5255"]
["Cochran School of Nursing","Private",53,"$16458","$0","$80470"]
["Coconino Community College","Public",2017,"$3098","$5722","$7505"]
["Coe College","Private",1505,"$-7378","$0","$24033"]
["Coffeyville Community College","Public",1265,"$3204","$8031","$12589"]
["Coker College","Private",1135,"$2771","$0","$19713"]
["Colby College","Private",2067,"$15550","$0","$62734"]
["Colby Community College","Public",974,"$769","$8506","$12345"]
["Colby-Sawyer College","Private",1181,"$-16515","$0","$30685"]
["Coleman University","Private",484,"$13046","$0","$24086"]
["Colgate Rochester Crozer Divinity School","Private",57,"$9174","$0","$73446"]
["Colgate University","Private",3000,"$12857","$72","$56646"]
["College for Creative Studies","Private",1276,"$11441","$0","$39242"]
["College of Alameda","Public",3097,"$356","$7416","$9060"]
["College of Biblical Studies-Houston","Private",308,"$6262","$0","$21381"]
["College of Central Florida","Public",5340,"$868","$4194","$9995"]
["College of Charleston","Public",10691,"$11515","$2114","$18812"]
["College of Coastal Georgia","Public",2493,"$1720","$5342","$11845"]
["College of DuPage","Public",18691,"$2998","$8825","$13311"]
["College of Eastern Idaho","Public",499,"$323","$13941","$25256"]
["College of Lake County","Public",9366,"$2637","$10661","$12111"]
["College of Marin","Public",3557,"$1202","$13730","$22846"]
["College of Massage Therapy","Public",18,"$9877","$0","$17562"]
["College of Menominee Nation","Private",248,"$3710","$0","$38021"]
["College of Mount Saint Vincent","Private",1689,"$15688","$0","$24576"]
["College of Our Lady of the Elms","Private",1467,"$5040","$0","$19192"]
["College of Saint Benedict","Private",1913,"$-204","$0","$28705"]
["College of Saint Elizabeth","Private",848,"$6527","$49","$29297"]
["College of Saint Mary","Private",939,"$5627","$0","$21418"]
["College of San Mateo","Public",5194,"$1049","$10095","$12660"]
["College of Southern Idaho","Public",3945,"$2546","$6501","$10054"]
["College of Southern Maryland","Public",5034,"$5138","$6266","$14406"]
["College of Southern Nevada","Public",20243,"$2096","$4470","$9423"]
["College of St Joseph","Private",275,"$179","$0","$23403"]
["College of Staten Island CUNY","Public",11421,"$2873","$7480","$18778"]
["College of Western Idaho","Public",5480,"$3255","$4630","$10357"]
["College of William and Mary","Public",8446,"$15213","$7744","$24640"]
["College of the Albemarle","Public",1623,"$1243","$8920","$12944"]
["College of the Atlantic","Private",340,"$13320","$0","$31100"]
["College of the Canyons","Public",12905,"$975","$6977","$7957"]
["College of the Desert","Public",6847,"$630","$8841","$15182"]
["College of the Holy Cross","Private",3064,"$12023","$0","$49990"]
["College of the Mainland","Public",2572,"$1737","$11005","$14205"]
["College of the Muscogee Nation","Public",171,"$-6225","$22255","$27652"]
["College of the Ouachitas","Public",805,"$1899","$5798","$11798"]
["College of the Ozarks","Private",1529,"$-16211","$0","$21534"]
["College of the Redwoods","Public",4079,"$840","$6676","$10466"]
["College of the Sequoias","Public",7549,"$129","$8271","$9589"]
["College of the Siskiyous","Public",1653,"$1411","$12743","$16373"]
["CollegeAmerica-Cheyenne","Private",63,"$15370","$0","$23524"]
["CollegeAmerica-Colorado Springs","Private",361,"$14504","$0","$15509"]
["CollegeAmerica-Denver","Private",325,"$17776","$0","$21687"]
["CollegeAmerica-Flagstaff","Private",161,"$17375","$0","$17556"]
["CollegeAmerica-Fort Collins","Private",170,"$12171","$0","$16759"]
["CollegeAmerica-Phoenix","Private",908,"$13961","$0","$9287"]
["Collin County Community College District","Public",18266,"$1625","$6631","$8091"]
["Colorado Christian University","Private",4335,"$9037","$0","$14116"]
["Colorado College","Private",2245,"$17017","$0","$59033"]
["Colorado Heights University","Private",142,"$18124","$0","$52006"]
["Colorado Mesa University","Public",7803,"$6633","$0","$9274"]
["Colorado Mountain College","Public",3419,"$2206","$16384","$21530"]
["Colorado Northwestern Community College","Public",753,"$5487","$0","$16494"]
["Colorado School of Mines","Public",5850,"$15438","$495","$27426"]
["Colorado State University-Fort Collins","Public",26811,"$11468","$80","$14838"]
["Colorado State University-Global Campus","Public",7402,"$10331","$0","$6771"]
["Colorado State University-Pueblo","Public",6619,"$3062","$0","$6463"]
["Colorado State University-System Office","Public",null,"Data not reported to IPEDS","Data not reported to IPEDS","Data not reported to IPEDS"]
["Colton-Redlands-Yucaipa Regional Occupational Program","Public",41,"$10248","$0","$9420"]
["Columbia Area Career Center","Public",95,"$15976","$1886","$23670"]
["Columbia Basin College","Public",5092,"$1397","$4121","$10482"]
["Columbia College","Private",1456,"$5339","$0","$19848"]
["Columbia College","Public",1457,"$604","$0","$11372"]
["Columbia College","Private",10967,"$6981","$0","$8365"]
["Columbia College Chicago","Private",8199,"$14996","$0","$22514"]
["Columbia College Hollywood","Private",497,"$14931","$0","$24794"]
["Columbia College of Nursing","Private",149,"$10251","$0","$30792"]
["Columbia Gorge Community College","Public",606,"$4279","$12756","$16737"]
["Columbia International University","Private",839,"$5541","$0","$22517"]
["Columbia State Community College","Public",3494,"$2715","$3724","$8505"]
["Columbia Theological Seminary","Private",234,"$-7202","$0","$51870"]
["Columbia University in the City of New York","Private",27710,"$23558","$106","$112809"]
["Columbia-Greene Community College","Public",1088,"$1538","$9144","$20656"]
["Columbiana County Career and Technical Center","Public",106,"$703","$2922","$11944"]
["Columbus College of Art and Design","Private",1070,"$20427","$0","$24607"]
["Columbus State Community College","Public",20026,"$2998","$3189","$7235"]
["Columbus State University","Public",7081,"$6194","$4884","$15511"]
["Columbus Technical College","Public",2478,"$2076","$4235","$9540"]
["Comanche Nation College","Public",39,"$483","$0","$19389"]
["Commonwealth Institute of Funeral Service","Private",302,"$5938","$0","$6978"]
["Commonwealth Technical Institute","Private",303,"$73591","$536","$79546"]
["Community Care College","Private",1071,"$7901","$0","$5296"]
["Community Christian College","Private",72,"$4901","$0","$8293"]
["Community College of Allegheny County","Public",11394,"$2519","$5434","$11310"]
["Community College of Aurora","Public",4082,"$5051","$0","$10221"]
["Community College of Baltimore County","Public",12915,"$4633","$6199","$14818"]
["Community College of Beaver County","Public",1587,"$6720","$5710","$15078"]
["Community College of Denver","Public",5626,"$4676","$0","$9386"]
["Community College of Philadelphia","Public",14504,"$2125","$3682","$12143"]
["Community College of Rhode Island","Public",9189,"$2808","$5193","$12692"]
["Community College of Vermont","Public",2821,"$6160","$1710","$10530"]
["Community Services Division-Alliance City","Public",57,"$7371","$3229","$10537"]
["Community Technological Institute of Miami","Private",2,"$0","$0","$47580"]
["Community Technology Learning Center of Portage","Private",null,"Data not reported to IPEDS","Data not reported to IPEDS","Data not reported to IPEDS"]
["Compass College of Cinematic Arts","Private",153,"$11049","$0","$8460"]
["Conception Seminary College","Private",93,"$21567","$0","$27968"]
["Concord University","Public",2338,"$1084","$3668","$8765"]
["Concordia College Alabama","Private",387,"$5399","$0","$24713"]
["Concordia College at Moorhead","Private",2223,"$2287","$0","$29274"]
["Concordia College-New York","Private",1091,"$6948","$0","$19226"]
["Concordia Seminary","Private",295,"$-8535","$0","$84472"]
["Concordia Theological Seminary","Private",238,"$-8626","$0","$48417"]
["Concordia University-Ann Arbor","Private",722,"$2509","$0","$27783"]
["Concordia University-Chicago","Private",3691,"$9701","$0","$16755"]
["Concordia University-Irvine","Private",4135,"$9939","$0","$16353"]
["Concordia University-Nebraska","Private",2098,"$1707","$0","$18687"]
["Concordia University-Portland","Private",7385,"$9428","$0","$15946"]
["Concordia University-Saint Paul","Private",3555,"$10317","$0","$13599"]
["Concordia University-Texas","Private",2117,"$6992","$0","$18524"]
["Concordia University-Wisconsin","Private",5980,"$9777","$0","$15063"]
["Connecticut College","Private",1945,"$14614","$0","$50400"]
["Connors State College","Public",1696,"$306","$3817","$8118"]
["Contra Costa College","Public",3877,"$782","$7403","$11192"]
["Contra Costa Community College District Office","Public",null,"Data not reported to IPEDS","Data not reported to IPEDS","Data not reported to IPEDS"]
["Converse College","Private",1378,"$6421","$0","$19254"]
["Conway School of Landscape Design","Private",24,"$17704","$0","$48997"]
["Cooper Health System Center for Allied Health Education","Private",null,"Data not reported to IPEDS","Data not reported to IPEDS","Data not reported to IPEDS"]
["Cooper Union for the Advancement of Science and Art","Private",1078,"$-21168","$58","$60643"]
["Copiah-Lincoln Community College","Public",2965,"$366","$5503","$8496"]
["Copper Mountain Community College","Public",1124,"$-718","$12663","$8625"]
["Coppin State University","Public",2453,"$85","$18245","$29644"]
["Corban University","Private",1198,"$1757","$0","$18873"]
["Cornell College","Private",1108,"$-4473","$0","$30155"]
["Cornell University","Private",22397,"$10881","$15550","$55255"]
["Cornerstone University","Private",2280,"$5081","$0","$16650"]
["Corning Community College","Public",2612,"$1773","$7468","$10872"]
["Cornish College of the Arts","Private",719,"$12995","$0","$37274"]
["Cossatot Community College of the University of Arkansas","Public",965,"$1892","$6214","$12939"]
["Cosumnes River College","Public",9087,"$533","$5555","$7622"]
["Cottey College","Private",329,"$-5091","$0","$43400"]
["County College of Morris","Public",5904,"$4809","$3184","$9819"]
["Covenant College","Private",1065,"$470","$0","$23762"]
["Covenant School of Nursing and Allied Health","Private",316,"$4989","$0","$16743"]
["Covenant Theological Seminary","Private",431,"$2273","$0","$20728"]
["Cowley County Community College","Public",2366,"$1389","$5291","$9184"]
["Cox College","Private",703,"$12848","$0","$12570"]
["Crafton Hills College","Public",3838,"$488","$8452","$8872"]
["Cranbrook Academy of Art","Private",153,"$21408","$0","$65124"]
["Craven Community College","Public",2557,"$1228","$6349","$7936"]
["Crawford County Career and Technical Center Practical Nursing Program","Public",33,"$9611","$0","$11059"]
["Creighton University","Private",8281,"$15857","$0","$31610"]
["Criswell College","Private",194,"$7943","$0","$34616"]
["Crossroads Bible College","Private",155,"$10033","$0","$14591"]
["Crossroads College","Private",null,"Data not reported to IPEDS","Data not reported to IPEDS","Data not reported to IPEDS"]
["Crowder College","Public",3396,"$1612","$2616","$8257"]
["Crowley's Ridge College","Private",196,"$4324","$0","$12234"]
["Crowley's Ridge Technical Institute","Public",277,"$371","$11257","$18672"]
["Crown College","Private",916,"$6370","$0","$17960"]
["Cuesta College","Public",6201,"$984","$9494","$11792"]
["Culinary Institute of America","Private",4416,"$15999","$0","$32842"]
["Culpeper Cosmetology Training Center","Public",22,"$11398","$0","$9047"]
["Culver-Stockton College","Private",1027,"$-1302","$0","$14781"]
["Cumberland County College","Public",2495,"$2169","$3901","$11544"]
["Cumberland University","Private",1527,"$1439","$0","$12748"]
["Curry College","Private",2539,"$8126","$0","$28582"]
["Curtis Institute of Music","Private",199,"$-3438","$0","$114760"]
["Cuyahoga Community College District","Public",16892,"$2416","$10643","$15287"]
["Cuyahoga Valley Career Center","Public",88,"$10112","$3265","$10401"]
["Cuyamaca College","Public",4779,"$196","$2920","$9090"]
["Cypress College","Public",9962,"$783","$7740","$9237"]
["D A Dorsey Technical College","Public",106,"$2457","$16063","$16035"]
["D'Youville College","Private",2569,"$12859","$130","$22895"]
["Dabney S Lancaster Community College","Public",714,"$2729","$6415","$14843"]
["Daemen College","Private",2546,"$4451","$102","$17627"]
["Dakota College at Bottineau","Public",460,"$1784","$9196","$13862"]
["Dakota County Technical College","Public",2004,"$3928","$6204","$14909"]
["Dakota State University","Public",2024,"$6854","$4684","$13804"]
["Dakota Wesleyan University","Private",889,"$-14","$0","$15135"]
["Dallas Baptist University","Private",4019,"$11041","$0","$22669"]
["Dallas Christian College","Private",231,"$10296","$0","$16906"]
["Dallas County Community College District","Public",null,"Data not reported to IPEDS","Data not reported to IPEDS","Data not reported to IPEDS"]
["Dallas Institute of Funeral Service","Private",263,"$6842","$0","$7429"]
["Dallas Nursing Institute","Private",266,"$13261","$0","$18519"]
["Dallas Theological Seminary","Private",1419,"$8059","$0","$19887"]
["Dalton State College","Public",3945,"$2559","$3853","$8601"]
["Danville Area Community College","Public",1946,"$1123","$3900","$11259"]
["Danville Community College","Public",2224,"$1725","$4097","$9433"]
["Dartmouth College","Private",6431,"$9147","$0","$85950"]
["Darton State College","Public",4178,"$2506","$3770","$7535"]
["Davenport University","Private",5495,"$14677","$0","$19840"]
["Davidson College","Private",1928,"$298","$0","$53514"]
["Davidson County Community College","Public",3211,"$745","$6588","$10117"]
["Davis & Elkins College","Private",883,"$-630","$0","$19991"]
["Davis College","Private",244,"$6752","$0","$13794"]
["Davis Technical College","Public",1613,"$1297","$8095","$10039"]
["Dawson Community College","Public",237,"$1382","$16707","$20592"]
["Daytona State College","Public",10682,"$1447","$4827","$10188"]
["De Anza College","Public",16572,"$1671","$3578","$9547"]
["DePaul University","Private",20919,"$13470","$0","$23286"]
["DePauw University","Private",2272,"$-4757","$0","$44497"]
["DeSales University","Private",2942,"$8274","$0","$21724"]
["Dean College","Private",1246,"$-1457","$0","$25667"]
["Defiance College","Private",659,"$1686","$0","$25157"]
["Del Mar College","Public",4762,"$2515","$15717","$24122"]
["Delaware Area Career Center","Public",35,"Data not reported to IPEDS","Data not reported to IPEDS","Data not reported to IPEDS"]
["Delaware Chenango Madison Otsego BOCES-Practical Nursing Program","Public",27,"$7725","$0","$9844"]
["Delaware College of Art and Design","Private",167,"$7959","$29","$18637"]
["Delaware County Community College","Public",7632,"$3030","$3463","$12296"]
["Delaware County Technical School-Practical Nursing Program","Public",73,"$7290","$0","$17423"]
["Delaware State University","Public",4123,"$2758","$8539","$22347"]
["Delaware Technical Community College-Central Office","Public",null,"Data not reported to IPEDS","Data not reported to IPEDS","Data not reported to IPEDS"]
["Delaware Technical Community College-Terry","Public",9336,"$5058","$7668","$16070"]
["Delaware Valley University","Private",2177,"$3723","$0","$25177"]
["Delgado Community College","Public",10832,"$3784","$2485","$8240"]
["Dell'Arte International School of Physical Theatre","Private",63,"$6480","$0","$12149"]
["Delta College","Public",6283,"$3675","$6605","$13071"]
["Delta Montrose Technical College","Public",255,"$3396","$0","$12334"]
["Delta State University","Public",3529,"$3613","$6443","$13497"]
["Denison University","Private",2232,"$-7785","$0","$44603"]
["Denmark Technical College","Public",838,"$1003","$2872","$12958"]
["Denver Seminary","Private",585,"$7826","$0","$18794"]
["Des Moines Area Community College","Public",14632,"$2320","$4603","$10215"]
["Des Moines University-Osteopathic Medical Center","Private",1547,"$31922","$0","$37755"]
["Diablo Valley College","Public",13742,"$1974","$5381","$7762"]
["Dickinson College","Private",2535,"$10154","$0","$42014"]
["Dickinson State University","Public",1084,"$4971","$11804","$24136"]
["Dillard University","Private",1192,"$8040","$0","$37528"]
["Diman Regional Technical Institute","Public",88,"$6436","$0","$11434"]
["Dine College","Public",972,"$5","$4321","$19449"]
["Divine Mercy University","Private",122,"$10922","$0","$35578"]
["Divine Word College","Private",81,"$-8771","$0","$85927"]
["Dixie State University","Public",6391,"$5385","$5253","$11232"]
["Dixie Technical College","Public",250,"$2658","$15851","$20869"]
["Doane University-Arts & Sciences","Private",1073,"$-3435","$0","$28384"]
["Doane University-Graduate and Professional Studies","Private",1290,"$7330","$0","$6659"]
["Dodge City Community College","Public",1337,"$1295","$10818","$17219"]
["Dominican College of Blauvelt","Private",1977,"$10739","$100","$17148"]
["Dominican School of Philosophy & Theology","Private",43,"$11947","$0","$59466"]
["Dominican University","Private",3181,"$6869","$0","$21221"]
["Dominican University of California","Private",1729,"$10708","$0","$33912"]
["Dongguk University-Los Angeles","Private",195,"$7788","$0","$7941"]
["Donnelly College","Private",297,"$4876","$0","$18513"]
["Dordt College","Private",1483,"$2406","$0","$20880"]
["Dowling College","Private",null,"Data not reported to IPEDS","Data not reported to IPEDS","Data not reported to IPEDS"]
["Downey Adult School","Public",487,"$4883","$0","$13172"]
["Dragon Rises College of Oriental Medicine","Private",64,"$8831","$0","$18686"]
["Drake University","Private",4334,"$6840","$0","$27231"]
["Drew University","Private",2007,"$-3234","$0","$42039"]
["Drexel University","Private",22922,"$14144","$352","$30486"]
["Drury University","Private",3084,"$6338","$0","$16920"]
["Duke University","Private",15383,"$9798","$0","$92188"]
["Dunwoody College of Technology","Private",1081,"$17495","$0","$26827"]
["Duquesne University","Private",9439,"$10200","$0","$24028"]
["Durham Technical Community College","Public",3530,"$1658","$7394","$9841"]
["Dutchess BOCES-Practical Nursing Program","Public",155,"$3263","$0","$10845"]
["Dutchess Community College","Public",5812,"$3538","$5318","$13537"]
["Dyersburg State Community College","Public",1663,"$1805","$4800","$10249"]
["EDP School","Private",99,"$1588","$0","$8339"]
["EHOVE Career Center","Public",184,"$10139","$2762","$15584"]
["Earlham College","Private",1074,"$-11442","$0","$54168"]
["East Arkansas Community College","Public",752,"$1524","$9138","$12141"]
["East Carolina University","Public",26309,"$5956","$10860","$17188"]
["East Central College","Public",2124,"$1970","$6128","$8853"]
["East Central Community College","Public",2414,"$-680","$5612","$7699"]
["East Central University","Public",4346,"$4331","$3572","$8958"]
["East Georgia State College","Public",2375,"$1751","$2915","$7936"]
["East Los Angeles College","Public",19256,"$687","$6292","$8883"]
["East Mississippi Community College","Public",4565,"$1044","$4070","$7591"]
["East San Gabriel Valley Regional Occupational Program","Public",246,"$1537","$0","$8456"]
["East Stroudsburg University of Pennsylvania","Public",6349,"$8440","$3800","$16355"]
["East Tennessee State University","Public",12792,"$6226","$7349","$18339"]
["East Texas Baptist University","Private",1080,"$3724","$0","$26346"]
["East Valley Institute of Technology","Public",113,"$14033","$0","$5622"]
["East-West University","Private",502,"$7185","$0","$17493"]
["Eastern Arizona College","Public",3620,"$-38","$6546","$11622"]
["Eastern Center for Arts and Technology","Public",127,"$492","$2348","$10933"]
["Eastern Connecticut State University","Public",4793,"$4060","$11787","$25310"]
["Eastern Florida State College","Public",10647,"$1800","$4116","$9548"]
["Eastern Gateway Community College","Public",3164,"$839","$2322","$4772"]
["Eastern Illinois University","Public",7559,"$4629","$1649","$23152"]
["Eastern Iowa Community College District","Public",4959,"$2253","$6645","$10398"]
["Eastern Kentucky University","Public",13969,"$4005","$4870","$14904"]
["Eastern Maine Community College","Public",1684,"$1322","$4657","$11711"]
["Eastern Mennonite University","Private",1528,"$6883","$0","$22188"]
["Eastern Michigan University","Public",17261,"$6976","$4165","$15367"]
["Eastern Nazarene College","Private",940,"$1083","$0","$22683"]
["Eastern New Mexico University-Main Campus","Public",4215,"$3302","$7687","$10916"]
["Eastern New Mexico University-Roswell Campus","Public",1716,"$1138","$7764","$7480"]
["Eastern New Mexico University-Ruidoso Campus","Public",326,"$1153","$10163","$10764"]
["Eastern Oklahoma County Technology Center","Public",318,"$594","$4792","$30714"]
["Eastern Oklahoma State College","Public",1145,"$1981","$4974","$13802"]
["Eastern Oregon University","Public",2482,"$5355","$7994","$15367"]
["Eastern Shore Community College","Public",417,"$2124","$8479","$17426"]
["Eastern Suffolk BOCES","Public",6,"$4868","$0","$5429"]
["Eastern Suffolk BOCES","Public",12,"$8355","$0","$21942"]
["Eastern Suffolk BOCES","Public",319,"$4706","$0","$6536"]
["Eastern University","Private",3312,"$4402","$0","$17389"]
["Eastern Virginia Medical School","Public",1306,"$29392","$19642","$56733"]
["Eastern Washington University","Public",11719,"$6441","$4007","$14132"]
["Eastern West Virginia Community and Technical College","Public",438,"$1883","$4125","$10765"]
["Eastern Wyoming College","Public",940,"$490","$13308","$18219"]
["Eastfield College","Public",8081,"$1175","$5499","$7477"]
["Eastland-Fairfield Career and Technical Schools","Public",118,"$5327","$0","$7668"]
["Ecclesia College","Private",203,"$6978","$0","$14755"]
["Eckerd College","Private",2203,"$6351","$0","$40228"]
["Ecumenical Theological Seminary","Private",53,"$16329","$0","$23986"]
["Eden Theological Seminary","Private",111,"$1892","$0","$52151"]
["Edgecombe Community College","Public",1955,"$478","$7063","$8923"]
["Edgewood College","Private",2301,"$11750","$0","$20585"]
["Edinboro University of Pennsylvania","Public",6026,"$6388","$4408","$18613"]
["Edison State Community College","Public",1673,"$2427","$4727","$9890"]
["Edmonds Community College","Public",6395,"$3422","$4680","$14351"]
["Education and Technology Institute","Private",null,"Data not reported to IPEDS","Data not reported to IPEDS","Data not reported to IPEDS"]
["Edward Via College of Osteopathic Medicine","Private",1637,"$40879","$0","$33077"]
["Edward Waters College","Private",1260,"$7843","$0","$15479"]
["El Camino College-Compton Center","Public",4180,"$337","$8669","$9273"]
["El Camino Community College District","Public",14768,"$953","$7910","$10470"]
["El Centro College","Public",5183,"$898","$10177","$12223"]
["El Paso Community College","Public",17588,"$1138","$5290","$7448"]
["Elgin Community College","Public",7112,"$2542","$8474","$14809"]
["Eli Whitney Technical High School","Public",42,"$3722","$15050","$21604"]
["Elim Bible Institute and College","Private",138,"$3688","$0","$13597"]
["Elizabeth City State University","Public",1653,"$1768","$19568","$26470"]
["Elizabethtown College","Private",1927,"$2001","$0","$32733"]
["Elizabethtown College School of Continuing and Professional Studies","Private",387,"Data not reported to IPEDS","Data not reported to IPEDS","Data not reported to IPEDS"]
["Elizabethtown Community and Technical College","Public",3434,"$-1072","$2137","$8381"]
["Ellsworth Community College","Public",729,"$2489","$10203","$15087"]
["Elmezzi Graduate School of Molecular Medicine","Private",10,"$0","$0","$."]
["Elmhurst College","Private",3361,"$1317","$0","$20994"]
["Elmira College","Private",1355,"$-3580","$87","$27002"]
["Elon University","Private",6343,"$22096","$0","$31500"]
["Embry-Riddle Aeronautical University-Daytona Beach","Private",5435,"$19062","$1056","$30248"]
["Embry-Riddle Aeronautical University-Prescott","Private",2251,"$15618","$0","$26895"]
["Embry-Riddle Aeronautical University-Worldwide","Private",8283,"$11235","$0","$9337"]
["Emerald Coast Technical College","Public",144,"$2850","$5514","$12844"]
["Emerson College","Private",4645,"$20375","$0","$29871"]
["Emil Fries Piano Hospital and Training Center","Private",5,"Data not reported to IPEDS","Data not reported to IPEDS","Data not reported to IPEDS"]
["Emily Griffith Technical College","Public",3117,"$1673","$2223","$5473"]
["Emmanuel College","Private",2075,"$3345","$0","$26086"]
["Emmanuel College","Private",768,"$2399","$0","$21240"]
["Emmaus Bible College","Private",256,"$1996","$0","$21321"]
["Emory & Henry College","Private",1057,"$-4787","$0","$31032"]
["Emory University","Private",14521,"$11404","$0","$66748"]
["Emory University-Oxford College","Private",1043,"$13446","$0","$33054"]
["Employment Solutions-College for Technical Education","Private",197,"$12463","$0","$9988"]
["Emporia State University","Public",5159,"$6029","$5779","$13225"]
["Endicott College","Private",4090,"$9147","$0","$19828"]
["Enterprise State Community College","Public",1445,"$946","$6536","$11173"]
["Epic Bible College","Private",127,"$10227","$0","$13570"]
["Episcopal Divinity School","Private",34,"$-11250","$0","$203490"]
["Episcopal Theological Seminary of the Southwest","Private",81,"$-4556","$0","$84288"]
["Erie 1 BOCES","Public",882,"$3364","$0","$1142"]
["Erie 2 Chautauqua Cattaraugus BOCES-Practical Nursing Program","Public",191,"$4084","$0","$4675"]
["Erie Community College","Public",10264,"$3348","$5146","$12656"]
["Erikson Institute","Private",166,"$13036","$0","$67290"]
["Erskine College","Private",716,"$-10446","$0","$19388"]
["Erwin Technical College","Public",936,"$224","$0","$6448"]
["Essex County College","Public",8140,"$4960","$2899","$8930"]
["Estrella Mountain Community College","Public",5362,"$1302","$5562","$8826"]
["Eureka College","Private",654,"$7498","$0","$22746"]
["Evangel University","Private",1922,"$3555","$0","$18296"]
["Evangel University - Assemblies of God Theological Seminary","Private",300,"$4144","$0","$11573"]
["Evangelical Theological Seminary","Private",80,"$10338","$0","$16810"]
["Everest College-Aurora","Private",null,"Data not reported to IPEDS","Data not reported to IPEDS","Data not reported to IPEDS"]
["Everest College-Bremerton","Private",121,"Data not reported to IPEDS","Data not reported to IPEDS","Data not reported to IPEDS"]
["Everest College-Dallas","Private",445,"$9705","$0","$13862"]
["Everest College-Kansas City","Private",256,"Data not reported to IPEDS","Data not reported to IPEDS","Data not reported to IPEDS"]
["Everest College-Newport News","Private",155,"$12214","$0","$18841"]
["Everest College-Portland","Private",81,"Data not reported to IPEDS","Data not reported to IPEDS","Data not reported to IPEDS"]
["Everest College-Renton","Private",null,"Data not reported to IPEDS","Data not reported to IPEDS","Data not reported to IPEDS"]
["Everest College-Seattle","Private",77,"Data not reported to IPEDS","Data not reported to IPEDS","Data not reported to IPEDS"]
["Everest College-Springfield","Private",67,"$23470","$0","$37786"]
["Everest College-Vancouver","Private",null,"Data not reported to IPEDS","Data not reported to IPEDS","Data not reported to IPEDS"]
["Everest Institute-Dearborn","Private",null,"Data not reported to IPEDS","Data not reported to IPEDS","Data not reported to IPEDS"]
["Everest Institute-Detroit","Private",277,"Data not reported to IPEDS","Data not reported to IPEDS","Data not reported to IPEDS"]
["Everest Institute-Greenspoint","Private",635,"$6239","$0","$6941"]
["Everest Institute-Jonesboro","Private",null,"Data not reported to IPEDS","Data not reported to IPEDS","Data not reported to IPEDS"]
["Everest Institute-Marietta","Private",237,"$10535","$0","$13424"]
["Everest University-Brandon","Private",884,"$14687","$0","$12612"]
["Everest University-Jacksonville","Private",250,"$12521","$0","$21184"]
["Everest University-Lakeland","Private",235,"Data not reported to IPEDS","Data not reported to IPEDS","Data not reported to IPEDS"]
["Everest University-Largo","Private",294,"Data not reported to IPEDS","Data not reported to IPEDS","Data not reported to IPEDS"]
["Everest University-Melbourne","Private",269,"$9132","$0","$14981"]
["Everest University-North Orlando","Private",179,"$18830","$0","$41275"]
["Everest University-Pompano Beach","Private",519,"$15104","$0","$13107"]
["Everest University-South Orlando","Private",3487,"$29732","$0","$6806"]
["Everett Community College","Public",6543,"$3122","$3811","$11265"]
["Everglades University","Private",1413,"$18478","$0","$29133"]
["Evergreen Valley College","Public",5560,"$-6","$6781","$14154"]
["Excelsior College","Private",16517,"$5975","$0","$6618"]
["Expertise Cosmetology Institute","Private",73,"$21446","$0","$23919"]
["Fairfield University","Private",4916,"$12718","$0","$30061"]
["Fairleigh Dickinson University-Florham Campus","Private",3453,"Data not reported to IPEDS","Data not reported to IPEDS","Data not reported to IPEDS"]
["Fairleigh Dickinson University-Metropolitan Campus","Private",5412,"$18922","$0","$40248"]
["Fairmont State University","Public",3415,"$2513","$4405","$13906"]
["Faith Baptist Bible College and Theological Seminary","Private",266,"$1878","$0","$16594"]
["Faith International University","Private",386,"$2974","$0","$5282"]
["Faith Theological Seminary","Private",103,"$4748","$0","$8278"]
["Family of Faith Christian University","Private",14,"$3466","$0","$26964"]
["Farmingdale State College","Public",7684,"$5720","$8651","$20349"]
["Fashion Institute of Technology","Public",9079,"$8155","$12966","$26337"]
["Faulkner University","Private",3497,"$6648","$0","$12978"]
["Fayette County Career & Technical Institute Practical Nursing Program","Public",105,"$2304","$6695","$61410"]
["Fayette Institute of Technology","Public",41,"$3480","$0","$6889"]
["Fayetteville State University","Public",5439,"$2986","$8900","$14571"]
["Fayetteville Technical Community College","Public",9532,"$1460","$5607","$8989"]
["Feather River Community College District","Public",1576,"$-1490","$7737","$12325"]
["Felician University","Private",1830,"$8735","$0","$23104"]
["Ferris State University","Public",11854,"$8374","$4273","$17340"]
["Ferrum College","Private",1076,"$-2498","$0","$25155"]
["Fielding Graduate University","Private",870,"$23119","$0","$24190"]
["Finger Lakes Community College","Public",4385,"$2284","$5212","$9918"]
["Finger Lakes Health College of Nursing","Private",86,"$13117","$0","$13372"]
["Finlandia University","Private",484,"$9320","$0","$26473"]
["Firelands Regional Medical Center School of Nursing","Private",91,"$6036","$0","$33502"]
["First Coast Technical College","Public",500,"$2174","$9743","$19436"]
["Fisher College","Private",1552,"$6260","$0","$15855"]
["Fisk University","Private",846,"$-7951","$0","$24271"]
["Fitchburg State University","Public",5138,"$5649","$7232","$17863"]
["Flagler College-St Augustine","Private",2535,"$12857","$0","$19844"]
["Flagler College-Tallahassee","Private",379,"Data not reported to IPEDS","Data not reported to IPEDS","Data not reported to IPEDS"]
["Flagler Technical Institute","Public",77,"$1879","$22458","$18369"]
["Flathead Valley Community College","Public",1519,"$3458","$9811","$16420"]
["Fletcher Technical Community College","Public",1236,"$4357","$2437","$8756"]
["Flint Hills Technical College","Public",562,"$4416","$5177","$11942"]
["Florence-Darlington Technical College","Public",4143,"$2779","$3444","$11585"]
["Florida Agricultural and Mechanical University","Public",9626,"$1639","$10043","$21402"]
["Florida Atlantic University","Public",25063,"$4282","$6910","$13073"]
["Florida College","Private",523,"$10661","$0","$21213"]
["Florida Gateway College","Public",1986,"$1291","$6875","$13504"]
["Florida Gulf Coast University","Public",12551,"$3576","$5780","$11946"]
["Florida Institute of Technology","Private",5327,"$12990","$0","$26908"]
["Florida Institute of Technology-Online","Private",2332,"$6450","$0","$4785"]
["Florida International University","Public",45375,"$4452","$5765","$13801"]
["Florida Keys Community College","Public",709,"$2881","$9922","$20843"]
["Florida Memorial University","Private",1434,"$13462","$2773","$18575"]
["Florida Panhandle Technical College","Public",299,"$2657","$10275","$14539"]
["Florida Polytechnic University","Public",889,"$83","$38327","$27870"]
["Florida School of Traditional Midwifery","Private",19,"$28671","$0","$26873"]
["Florida SouthWestern State College","Public",10476,"$980","$3462","$8891"]
["Florida Southern College","Private",2861,"$4815","$46","$21863"]
["Florida State College at Jacksonville","Public",18931,"$1929","$4151","$9841"]
["Florida State University","Public",39216,"$3268","$10079","$15869"]
["Focus-Hope Information Technologies Center","Private",46,"$1504","$0","$12449"]
["Folsom Lake College","Public",5602,"$785","$5338","$8254"]
["Fond du Lac Tribal and Community College","Public",1188,"$1447","$4442","$11263"]
["Fontbonne University","Private",1437,"$8279","$0","$21784"]
["Foothill College","Public",10423,"$2139","$4581","$12221"]
["Foothill-De Anza Community College District","Public",null,"Data not reported to IPEDS","Data not reported to IPEDS","Data not reported to IPEDS"]
["Forbes Road Career and Technology Center","Public",10,"$13123","$1515","$12256"]
["Fordham University","Private",15482,"$15142","$0","$31020"]
["Forsyth Technical Community College","Public",6227,"$1258","$7168","$10204"]
["Fort Hays State University","Public",9555,"$4964","$3358","$8643"]
["Fort Lewis College","Public",3480,"$1875","$0","$15811"]
["Fort Myers Technical College","Public",628,"$2341","$12008","$9084"]
["Fort Peck Community College","Public",237,"$1574","$0","$23029"]
["Fort Scott Community College","Public",1311,"$2432","$5268","$11109"]
["Fort Valley State University","Public",2460,"$3799","$8790","$14484"]
["Four County Career Center","Public",54,"$12566","$6682","$27061"]
["Four Rivers Career Center","Public",45,"$6947","$0","$8909"]
["Fox Valley Technical College","Public",5116,"$-671","$15106","$22321"]
["Framingham State University","Public",5707,"$5630","$6216","$15826"]
["Francis Marion University","Public",3458,"$4943","$4188","$18669"]
["Francis Tuttle Technology Center","Public",2479,"$742","$21806","$22968"]
["Franciscan Missionaries of Our Lady University","Private",1300,"$11339","$0","$19046"]
["Franciscan School of Theology","Private",31,"$-1761","$0","$56997"]
["Franciscan University of Steubenville","Private",2460,"$9940","$0","$19811"]
["Frank Phillips College","Public",920,"$1677","$5255","$9017"]
["Franklin Academy","Private",39,"$9110","$0","$21468"]
["Franklin Career Institute","Private",341,"$12407","$0","$13271"]
["Franklin College","Private",1130,"$-7","$0","$25321"]
["Franklin County Career and Technology Center","Public",70,"$9606","$0","$8904"]
["Franklin Pierce University","Private",2137,"$4695","$0","$21492"]
["Franklin Technology-MSSU","Public",144,"$6700","$0","$11949"]
["Franklin University","Private",3695,"$14463","$0","$17229"]
["Franklin W Olin College of Engineering","Private",366,"$-13025","$0","$101711"]
["Franklin and Marshall College","Private",2463,"$11294","$0","$50235"]
["Fred D. Learey Technical College","Public",111,"$2251","$0","$8598"]
["Fred K Marchman Technical College","Public",211,"$486","$1252","$2970"]
["Fred W Eberle Technical Center","Public",116,"$2582","$6896","$2824"]
["Frederick Community College","Public",3747,"$4021","$7042","$16028"]
["Freed-Hardeman University","Private",1667,"$1543","$0","$20760"]
["Fresno City College","Public",13737,"$390","$7623","$8150"]
["Fresno Pacific University","Private",3243,"$9281","$0","$16434"]
["Friends University","Private",1597,"$7112","$0","$17224"]
["Front Range Community College","Public",11719,"$5224","$0","$7405"]
["Frontier Community College","Public",720,"$-1038","$7028","$8774"]
["Frontier Nursing University","Private",1200,"$18973","$0","$12339"]
["Frostburg State University","Public",5080,"$4474","$7733","$16068"]
["Fuller Theological Seminary","Private",1988,"$8242","$0","$24489"]
["Fullerton College","Public",15996,"$795","$7865","$9386"]
["Fulton-Montgomery Community College","Public",1839,"$2161","$5013","$13356"]
["Furman","Private",2921,"$1691","$0","$46976"]
["Future Generations University","Private",15,"$2401","$0","$146968"]
["Gadsden State Community College","Public",3898,"$1147","$5585","$12163"]
["Gallaudet University","Private",1371,"$6890","$0","$83848"]
["Galveston College","Public",1359,"$1502","$12201","$14108"]
["Gannon University","Private",4012,"$7911","$0","$20368"]
["Garden City Community College","Public",1867,"$859","$7988","$11593"]
["Gardner-Webb University","Private",3764,"$4115","$0","$16563"]
["Garnet Career Center","Public",124,"$272","$14305","$17374"]
["Garrett College","Public",595,"$2922","$14143","$24987"]
["Garrett-Evangelical Theological Seminary","Private",244,"$-1307","$0","$44193"]
["Gaston College","Public",3838,"$1086","$7486","$10011"]
["GateWay Community College","Public",3128,"$2549","$10611","$14012"]
["GateWay Community College-Central City","Public",332,"Data not reported to IPEDS","Data not reported to IPEDS","Data not reported to IPEDS"]
["Gateway Community College","Public",4483,"$2165","$7760","$13419"]
["Gateway Community and Technical College","Public",2315,"$-1001","$2737","$13308"]
["Gateway Technical College","Public",4175,"$3541","$16610","$25211"]
["Gavilan College","Public",3411,"$601","$8314","$15559"]
["Geisinger Commonwealth School of Medicine","Private",492,"$42689","$459","$56765"]
["Geisinger-Lewistown Hospital School of Nursing","Private",22,"$17559","$0","$54650"]
["Gemological Institute of America-Carlsbad","Private",360,"$26998","$0","$35213"]
["Gemological Institute of America-New York","Private",208,"Data not reported to IPEDS","Data not reported to IPEDS","Data not reported to IPEDS"]
["Genesee Community College","Public",3869,"$1489","$5697","$11946"]
["Genesee Valley BOCES-Practical Nursing Program","Public",100,"$7999","$0","$18424"]
["Geneva College","Private",1680,"$5452","$0","$19056"]
["George C Wallace Community College-Dothan","Public",3494,"$1599","$4333","$8828"]
["George C Wallace State Community College-Hanceville","Public",4291,"$2603","$4312","$10270"]
["George C Wallace State Community College-Selma","Public",1412,"$945","$5565","$9599"]
["George Fox University","Private",3722,"$9112","$0","$18382"]
["George Mason University","Public",28019,"$9400","$4546","$18559"]
["George Stone Technical Center","Public",413,"$1489","$0","$14595"]
["George T Baker Aviation Technical College","Public",575,"$2010","$6706","$6349"]
["George Washington University","Private",22397,"$17799","$0","$40152"]
["Georgetown College","Private",1203,"$-4122","$0","$22384"]
["Georgetown University","Private",16065,"$25607","$0","$56201"]
["Georgia Christian University","Private",225,"$8724","$0","$9716"]
["Georgia College & State University","Public",6739,"$8137","$4680","$13739"]
["Georgia Gwinnett College","Public",9518,"$3479","$5091","$11999"]
["Georgia Highlands College","Public",4139,"$2752","$3696","$9084"]
["Georgia Institute of Technology-Main Campus","Public",24608,"$13391","$9477","$18341"]
["Georgia Military College","Public",8107,"$3514","$0","$6306"]
["Georgia Northwestern Technical College","Public",4094,"$1949","$4262","$9920"]
["Georgia Piedmont Technical College","Public",2846,"$1991","$5114","$13730"]
["Georgia Southern University","Public",19009,"$5305","$4821","$16421"]
["Georgia Southwestern State University","Public",2376,"$4542","$4761","$13245"]
["Georgia State University","Public",31633,"$6458","$6227","$12627"]
["Georgia State University-Perimeter College","Public",14842,"$3134","$3180","$8748"]
["Georgian Court University","Private",1784,"$9419","$42","$24930"]
["Germanna Community College","Public",4300,"$3048","$3268","$8928"]
["Gettysburg College","Private",2630,"$10803","$0","$43493"]
["Glen Oaks Community College","Public",659,"$2597","$12401","$17280"]
["Glendale Community College","Public",12154,"$917","$6989","$8650"]
["Glendale Community College","Public",11302,"$1406","$5547","$8719"]
["Glenville State College","Public",1218,"$1169","$4756","$14347"]
["Goddard College","Private",484,"$15639","$0","$19889"]
["Gods Bible School and College","Private",192,"$4324","$0","$19908"]
["Gogebic Community College","Public",772,"$3249","$7892","$15124"]
["Golden Gate University-San Francisco","Private",2067,"$17353","$0","$26642"]
["Golden State College of Court Reporting","Private",57,"$9518","$0","$5680"]
["Golden West College","Public",7681,"$1111","$5335","$9255"]
["Goldey-Beacom College","Private",1513,"$3060","$0","$9239"]
["Gonzaga University","Private",7276,"$7660","$0","$25787"]
["Good Samaritan College of Nursing and Health Science","Private",256,"$15016","$0","$28374"]
["Goodwin College","Private",2432,"$16532","$4260","$25852"]
["Gordon College","Private",2004,"$4986","$0","$26126"]
["Gordon Cooper Technology Center","Public",823,"$838","$14803","$15096"]
["Gordon State College","Public",3152,"$2012","$3801","$9909"]
["Gordon-Conwell Theological Seminary","Private",1081,"$1986","$0","$21652"]
["Goshen College","Private",793,"$495","$0","$29467"]
["Goucher College","Private",1878,"$1863","$942","$32624"]
["Governors State University","Public",4585,"$7856","$1521","$21312"]
["Grace Bible College","Private",651,"$5279","$0","$14805"]
["Grace College and Theological Seminary","Private",2119,"$398","$0","$15142"]
["Grace College of Barbering","Private",37,"$8196","$0","$3402"]
["Grace College of Divinity","Private",97,"$3274","$0","$7987"]
["Grace Mission University","Private",142,"$3067","$0","$3075"]
["Grace School of Theology","Private",163,"$2813","$0","$28330"]
["Grace University","Private",438,"$-345","$0","$21129"]
["Graceland University-Lamoni","Private",1866,"$3818","$0","$20533"]
["Graduate School USA","Private",null,"Data not reported to IPEDS","Data not reported to IPEDS","Data not reported to IPEDS"]
["Graduate Theological Union","Private",208,"$2982","$0","$41675"]
["Grady Health System Professional Schools","Public",72,"$4760","$0","$9456"]
["Graham Hospital School of Nursing","Private",26,"$20036","$0","$55696"]
["Grambling State University","Public",4162,"$4225","$3703","$11184"]
["Grand Rapids Community College","Public",9400,"$4336","$6635","$13617"]
["Grand River Technical School","Public",95,"$3435","$35781","$89432"]
["Grand Valley State University","Public",22727,"$9089","$2872","$15207"]
["Grand View University","Private",1811,"$4855","$0","$16778"]
["Granite State College","Public",1874,"$5154","$1714","$9199"]
["Gratz College","Private",163,"$10708","$0","$22000"]
["Grays Harbor College","Public",1700,"$252","$5635","$13303"]
["Grayson College","Public",3151,"$1344","$7753","$10418"]
["Great Basin College","Public",1917,"$1949","$6380","$12753"]
["Great Bay Community College","Public",1243,"$8615","$4326","$14801"]
["Great Falls College Montana State University","Public",1339,"$2433","$5730","$12556"]
["Great Lakes Christian College","Private",129,"$-588","$0","$26619"]
["Great Oaks Career Campuses","Public",282,"$12544","$0","$28882"]
["Great Plains Technology Center","Public",338,"$4414","$13055","$15492"]
["Greater Altoona Career & Technology Center","Public",189,"$5005","$2134","$9242"]
["Greater Johnstown Career and Technology Center","Public",130,"$8598","$0","$45348"]
["Greater Lowell Technical School","Public",107,"$5937","$0","$6517"]
["Green Country Technology Center","Public",181,"$891","$15553","$15893"]
["Green Mountain College","Private",720,"$-689","$0","$21765"]
["Green River College","Public",7530,"$1778","$3546","$10650"]
["Greene County Career and Technology Center","Public",27,"$10467","$0","$10809"]
["Greene County Vocational School District","Public",31,"$6460","$0","$16172"]
["Greenfield Community College","Public",1259,"$4767","$10511","$19931"]
["Greensboro College","Private",881,"$3749","$0","$19425"]
["Greenville Technical College","Public",8141,"$2969","$3662","$9847"]
["Greenville University","Private",1299,"$1550","$0","$17976"]
["Grinnell College","Private",1678,"$-10190","$0","$69142"]
["Grossmont College","Public",11293,"$-1426","$2810","$7736"]
["Grossmont-Cuyamaca Community College District","Public",null,"Data not reported to IPEDS","Data not reported to IPEDS","Data not reported to IPEDS"]
["Grove City College","Private",2522,"$13243","$0","$22848"]
["Guilford College","Private",1819,"$1908","$0","$20523"]
["Guilford Technical Community College","Public",8304,"$823","$6635","$11366"]
["Gulf Coast State College","Public",3806,"$972","$5843","$11845"]
["Gupton Jones College of Funeral Service","Private",171,"$9223","$0","$11726"]
["Gustavus Adolphus College","Private",2357,"$-3306","$0","$30192"]
["Gwinnett Technical College","Public",4632,"$2776","$3256","$10374"]
["Gwynedd Mercy University","Private",2415,"$8935","$204","$18734"]
["H Councill Trenholm State Community College","Public",1254,"$2478","$7037","$14440"]
["HSHS St. John's Hospital School of Clinical Laboratory Science","Private",6,"$6382","$0","$30214"]
["Hacienda La Puente Adult Education","Public",1843,"$1424","$0","$6338"]
["Hagerstown Community College","Public",2724,"$5171","$6506","$13362"]
["Halifax Community College","Public",1129,"$-1034","$8334","$10940"]
["Hallmark University","Private",985,"$12956","$0","$15607"]
["Hamilton College","Private",1975,"$11567","$0","$66713"]
["Hamilton Fulton Montgomery BOCES-Practical Nursing Program","Public",41,"$8749","$0","$13599"]
["Hamline University","Private",3818,"$4766","$0","$19685"]
["Hampden-Sydney College","Private",1092,"$-3711","$0","$40285"]
["Hampshire College","Private",1369,"$1448","$0","$34360"]
["Hampton University","Private",4606,"$10317","$0","$20574"]
["Hannah E Mullins School of Practical Nursing","Public",53,"$8783","$654","$12121"]
["Hannibal-LaGrange University","Private",939,"$4701","$0","$14409"]
["Hanover College","Private",1138,"$-7836","$0","$30408"]
["Harcum College","Private",1264,"$8304","$0","$18406"]
["Hardin-Simmons University","Private",1950,"$2283","$0","$21445"]
["Harding University","Private",5492,"$8390","$0","$18367"]
["Harford Community College","Public",4046,"$3472","$6458","$11424"]
["Harris-Stowe State University","Public",1264,"$1834","$7919","$15323"]
["Harrisburg Area Community College","Public",11681,"$4412","$3439","$12798"]
["Harrisburg University of Science and Technology","Private",2030,"$15797","$0","$14521"]
["Hartford Seminary","Private",90,"$9047","$0","$39445"]
["Hartnell College","Public",5987,"$410","$6537","$10401"]
["Hartwick College","Private",1460,"$867","$245","$31664"]
["Harvard University","Private",25478,"$11898","$0","$104026"]
["Harvey Mudd College","Private",809,"$10678","$0","$68056"]
["Haskell Indian Nations University","Public",755,"$-1923","$0","$24626"]
["Hastings College","Private",1202,"$-8116","$0","$22379"]
["Haverford College","Private",1306,"$7986","$0","$64082"]
["Hawaii Community College","Public",1707,"$1812","$8955","$17688"]
["Hawaii Pacific University","Private",3697,"$10479","$0","$19620"]
["Hawkeye Community College","Public",3751,"$2678","$6830","$16026"]
["Haywood Community College","Public",1346,"$694","$8510","$7371"]
["Hazard Community and Technical College","Public",1843,"$-1749","$6173","$14262"]
["Hazelden Betty Ford Graduate School of Addiction Studies","Private",174,"$9960","$0","$9592"]
["Hazleton Area Career Center","Public",30,"$4220","$0","$10258"]
["Heartland Community College","Public",3662,"$2786","$8796","$11771"]
["Hebrew College","Private",130,"$25527","$0","$83637"]
["Hebrew Theological College","Private",521,"$3124","$0","$14636"]
["Hebrew Union College-Jewish Institute of Religion","Private",358,"$-2179","$0","$181837"]
["Heidelberg University","Private",1171,"$570","$0","$25655"]
["Helena College University of Montana","Public",857,"$2901","$6458","$13509"]
["Helene Fuld College of Nursing","Private",339,"$20617","$0","$17936"]
["Hellenic College-Holy Cross Greek Orthodox School of Theology","Private",109,"$-802","$0","$117095"]
["Helms College","Private",153,"$9170","$0","$26124"]
["Henderson Community College","Public",926,"$-1130","$4359","$12576"]
["Henderson State University","Public",3244,"$-15","$6487","$15187"]
["Hendrix College","Private",1442,"$-11156","$0","$32668"]
["Hennepin Technical College","Public",3739,"$3249","$6112","$13992"]
["Henrico County-Saint Marys Hospital School of Practical Nursing","Public",61,"$523","$7642","$11945"]
["Henry Ford College","Public",9196,"$2275","$4149","$11621"]
["Heritage Bible College","Private",51,"$4832","$0","$13173"]
["Heritage Christian University","Private",55,"$4214","$0","$49302"]
["Heritage University","Private",1126,"$10619","$0","$24847"]
["Herkimer County BOCES-Practical Nursing Program","Public",77,"$1228","$0","$9406"]
["Herkimer County Community College","Public",2349,"$2988","$4724","$12388"]
["Hesston College","Private",375,"$770","$0","$25541"]
["Hibbing Community College","Public",1014,"$4492","$6495","$17412"]
["High Plains Technology Center","Public",134,"$1794","$46612","$43779"]
["High Point University","Private",4784,"$16576","$0","$26689"]
["High Tech High Graduate School of Education","Private",29,"$-9513","$0","$19132"]
["Highland Community College","Public",2158,"$-676","$2636","$7536"]
["Highland Community College","Public",1425,"$2615","$6651","$16867"]
["Highlands College of Montana Tech","Public",579,"Data not reported to IPEDS","Data not reported to IPEDS","Data not reported to IPEDS"]
["Highline College","Public",5656,"$1599","$4360","$11029"]
["Hilbert College","Private",896,"$9280","$0","$18596"]
["Hill College","Public",2028,"$943","$6504","$10519"]
["Hillsborough Community College","Public",18952,"$1915","$3383","$7671"]
["Hillsdale College","Private",1493,"$-6601","$0","$61641"]
["Hillyard Technical Center","Public",161,"$5602","$1088","$13984"]
["Hinds Community College","Public",9983,"$592","$4710","$10127"]
["Hiram College","Private",1036,"$2294","$0","$29619"]
["Hiwassee College","Private",259,"$6119","$0","$15306"]
["Hobart Institute of Welding Technology","Private",565,"$11422","$0","$19225"]
["Hobart William Smith Colleges","Private",2252,"$7419","$76","$43558"]
["Hobe Sound Bible College","Private",130,"$5107","$0","$19865"]
["Hocking College","Public",3011,"$5359","$4399","$11468"]
["Hodges University","Private",1473,"$17252","$0","$18814"]
["Hofstra University","Private",10501,"$14283","$75","$33460"]
["Hollins University","Private",892,"$-7375","$0","$35463"]
["Holmes Community College","Public",4671,"$428","$4832","$8604"]
["Holy Apostles College and Seminary","Private",421,"$3258","$0","$9576"]
["Holy Cross College","Private",518,"$2538","$0","$23999"]
["Holy Family University","Private",2109,"$7918","$0","$18459"]
["Holy Name Medical Center School of Nursing","Private",218,"$10824","$341","$17226"]
["Holy Names University","Private",884,"$4113","$0","$25327"]
["Holyoke Community College","Public",4172,"$3929","$5935","$14362"]
["Homestead Schools","Private",130,"$23823","$0","$15937"]
["Honolulu Community College","Public",2365,"$2516","$9879","$15839"]
["Hood College","Private",1677,"$1075","$0","$24221"]
["Hood Theological Seminary","Private",122,"$10487","$0","$29857"]
["Hope College","Private",3470,"$8511","$0","$22528"]
["Hope International University","Private",1133,"$5300","$0","$19305"]
["Hopkinsville Community College","Public",1894,"$868","$2222","$8910"]
["Horizon University","Private",21,"$6697","$0","$10095"]
["Horry-Georgetown Technical College","Public",5232,"$3854","$2414","$9338"]
["Houghton College","Private",1039,"$2212","$0","$26006"]
["Housatonic Community College","Public",3043,"$1593","$8442","$13528"]
["Houston Baptist University","Private",2806,"$-1316","$0","$17158"]
["Houston Community College","Public",36098,"$1834","$7307","$9557"]
["Houston Graduate School of Theology","Private",92,"$16724","$0","$21851"]
["Howard College","Public",2062,"$1235","$9514","$14459"]
["Howard Community College","Public",6386,"$4371","$8065","$17170"]
["Howard Payne University","Private",1040,"$477","$0","$22387"]
["Howard University","Private",9233,"$5500","$0","$49640"]
["Howell Cheney THS/CT Aero Tech School","Public",70,"$826","$10890","$11805"]
["Hudson County Community College","Public",6648,"$1372","$2862","$9660"]
["Hudson Valley Community College","Public",8176,"$3755","$5587","$13716"]
["Hult International Business School","Private",2754,"$17867","$0","$25154"]
["Humboldt State University","Public",7919,"$2343","$9017","$19117"]
["Humphreys University-Stockton and Modesto Campuses","Private",617,"$12892","$0","$15102"]
["Huntingdon College","Private",1054,"$1056","$0","$18773"]
["Huntingdon County Career and Technology Center","Public",26,"$5483","$2202","$10165"]
["Huntington University","Private",1188,"$3783","$0","$22382"]
["Huntsville Bible College","Private",84,"$6064","$0","$9336"]
["Husson University","Private",3080,"$9433","$0","$13896"]
["Huston-Tillotson University","Private",911,"$10661","$0","$19625"]
["Hutchinson Community College","Public",3751,"$1803","$6788","$12139"]
["Hypnosis Motivation Institute","Private",92,"$10335","$0","$10041"]
["Icahn School of Medicine at Mount Sinai","Private",1150,"$22341","$0","$51129"]
["Idaho State University","Public",10542,"$6367","$7946","$20904"]
["Iliff School of Theology","Private",238,"$12716","$0","$34058"]
["Ilisagvik College","Public",98,"$2094","$120088","$169630"]
["Illinois Central College","Public",6031,"$3799","$5846","$15109"]
["Illinois College","Private",1009,"$-3646","$0","$32904"]
["Illinois College of Optometry","Private",647,"$38108","$0","$41003"]
["Illinois Eastern Community College-System Office","Public",null,"Data not reported to IPEDS","Data not reported to IPEDS","Data not reported to IPEDS"]
["Illinois Institute of Technology","Private",7309,"$7458","$0","$22463"]
["Illinois State University","Public",18900,"$5416","$1576","$19812"]
["Illinois Valley Community College","Public",2242,"$2147","$9112","$13334"]
["Illinois Wesleyan University","Private",1833,"$1074","$0","$36590"]
["Immaculata University","Private",2160,"$10101","$0","$22854"]
["Immokalee Technical College","Public",240,"$2629","$11590","$13105"]
["Imperial Valley College","Public",5863,"$422","$7082","$9372"]
["Independence Community College","Public",824,"$1715","$9652","$12675"]
["Independence University","Private",8358,"$13762","$0","$13806"]
["Indian Capital Technology Center-Muskogee","Public",754,"$425","$0","$6506"]
["Indian Capital Technology Center-Sallisaw","Public",253,"$476","$0","$6691"]
["Indian Capital Technology Center-Stilwell","Public",156,"$759","$0","$8027"]
["Indian Capital Technology Center-Tahlequah","Public",408,"$408","$0","$5622"]
["Indian Hills Community College","Public",4105,"$3895","$5522","$12905"]
["Indian River State College","Public",12506,"$1166","$3877","$9293"]
["Indiana County Technology Center","Public",107,"$7736","$1610","$10951"]
["Indiana Institute of Technology","Private",5476,"$3287","$0","$9322"]
["Indiana State University","Public",12350,"$3996","$6084","$15052"]
["Indiana University of Pennsylvania-Main Campus","Public",13024,"$7736","$4174","$17830"]
["Indiana University-Bloomington","Public",42352,"$11952","$5107","$24371"]
["Indiana University-East","Public",3125,"$5582","$3510","$9227"]
["Indiana University-Kokomo","Public",2740,"$5063","$5080","$11729"]
["Indiana University-Northwest","Public",3968,"$4920","$5115","$11381"]
["Indiana University-Purdue University-Fort Wayne","Public",8281,"$5187","$6968","$13854"]
["Indiana University-Purdue University-Indianapolis","Public",27985,"$9047","$8423","$25540"]
["Indiana University-South Bend","Public",5065,"$5145","$5218","$12200"]
["Indiana University-Southeast","Public",4618,"$5278","$4697","$11760"]
["Indiana Wesleyan University-Marion","Private",3025,"$5014","$0","$23052"]
["Indiana Wesleyan University-National & Global","Private",10622,"$9327","$0","$8446"]
["Institute for Clinical Social Work","Private",70,"$19146","$0","$21901"]
["Institute for Doctoral Studies in the Visual Arts","Private",44,"$13590","$0","$22383"]
["Institute of American Indian and Alaska Native Culture and Arts Development","Public",412,"$461","$0","$36265"]
["Institute of Taoist Education and Acupuncture","Private",37,"$8769","$0","$14548"]
["Institute of World Politics","Private",92,"$22527","$0","$64937"]
["Interdenominational Theological Center","Private",119,"$14131","$0","$63031"]
["International Baptist College and Seminary","Private",64,"$6463","$0","$15911"]
["International Institute for Restorative Practices","Private",43,"$9287","$0","$114733"]
["International Technological University","Private",1042,"$13842","$0","$20206"]
["International Training Careers","Private",207,"$8442","$0","$20528"]
["International Yacht Restoration School","Private",96,"$13709","$0","$38765"]
["Inver Hills Community College","Public",3550,"$3384","$4129","$10000"]
["Iona College","Private",3781,"$6916","$71","$24411"]
["Iowa Central Community College","Public",3879,"$4038","$5657","$12157"]
["Iowa Lakes Community College","Public",1689,"$2113","$10627","$22358"]
["Iowa State University","Public",33684,"$6077","$7475","$16055"]
["Iowa Wesleyan University","Private",411,"$1069","$0","$31998"]
["Iowa Western Community College","Public",4831,"$3352","$6175","$11232"]
["Irell & Manella Graduate School of Biological Sciences at City of Hope","Private",null,"Data not reported to IPEDS","Data not reported to IPEDS","Data not reported to IPEDS"]
["Irvine Valley College","Public",8943,"$1424","$7369","$9174"]
["Isabella Graham Hart School of Practical Nursing","Private",84,"$5060","$0","$30581"]
["Isothermal Community College","Public",1622,"$200","$7623","$12799"]
["Itasca Community College","Public",931,"$2498","$5390","$13040"]
["Itawamba Community College","Public",4923,"$1779","$5025","$11264"]
["Ithaca College","Private",7000,"$5029","$75","$27337"]
["Ivy Tech Community College","Public",58393,"$2165","$4231","$7311"]
["J F Ingram State Technical College","Public",561,"$-4617","$13883","$23156"]
["J Sargeant Reynolds Community College","Public",6817,"$3355","$3944","$9961"]
["J. F. Drake State Community and Technical College","Public",726,"$745","$6688","$14849"]
["JFK Muhlenberg Harold B & Dorothy A Snyder Schools-School of Imaging","Private",26,"$29055","$0","$50122"]
["JFK Muhlenberg Harold B & Dorothy A Snyder Schools-School of Nursing","Private",195,"$26190","$0","$41790"]
["Jackson College","Public",3694,"$2775","$4751","$14511"]
["Jackson State Community College","Public",2902,"$2185","$3985","$9044"]
["Jackson State University","Public",8608,"$3517","$5935","$17505"]
["Jacksonville College-Main Campus","Private",400,"$0","$0","$8973"]
["Jacksonville State University","Public",6855,"$3633","$5411","$14621"]
["Jacksonville University","Private",3623,"$6510","$0","$22792"]
["James A Rhodes State College","Public",2478,"$2911","$4241","$7914"]
["James Madison University","Public",20887,"$8740","$4148","$15664"]
["James Rumsey Technical Institute","Public",138,"$1360","$0","$40727"]
["James Sprunt Community College","Public",877,"$656","$9681","$12672"]
["Jameson Health System","Private",65,"$8459","$0","$14205"]
["Jamestown Community College","Public",3007,"$2821","$5249","$14171"]
["Jarvis Christian College","Private",908,"$9436","$0","$20867"]
["Jefferson (Philadelphia University + Thomas Jefferson University)","Private",3696,"$9784","$0","$22482"]
["Jefferson College","Public",3244,"$1874","$5685","$12091"]
["Jefferson College of Health Sciences","Private",1059,"$15534","$0","$19679"]
["Jefferson Community College","Public",2661,"$2748","$5107","$11592"]
["Jefferson Community and Technical College","Public",6821,"$-258","$2007","$8428"]
["Jefferson County Dubois Area Vocational Technical Practical Nursing Program","Public",28,"$132","$1029","$10961"]
["Jefferson Davis Community College","Public",954,"$-563","$6249","$10902"]
["Jefferson Lewis BOCES-Practical Nursing Program","Public",115,"$6404","$0","$8704"]
["Jefferson Regional Medical Center School of Nursing","Private",138,"$3456","$0","$5083"]
["Jefferson State Community College","Public",5664,"$2664","$3555","$8759"]
["Jewish Theological Seminary of America","Private",375,"$-10709","$0","$64532"]
["John A Gupton College","Private",60,"$14415","$0","$29672"]
["John A Logan College","Public",3464,"$856","$3369","$9506"]
["John Brown University","Private",2106,"$3555","$0","$20029"]
["John C Calhoun State Community College","Public",7013,"$2946","$3480","$8346"]
["John Carroll University","Private",3591,"$-4492","$0","$21470"]
["John D Rockefeller IV Career Center","Public",9,"$1764","$0","$62708"]
["John F. Kennedy University","Private",768,"$25151","$0","$35628"]
["John Paul the Great Catholic University","Private",291,"$5681","$0","$20237"]
["John Tyler Community College","Public",5527,"$2936","$3263","$9057"]
["John Wesley University","Private",122,"$10770","$0","$15806"]
["John Wood Community College","Public",1429,"$3664","$4462","$14232"]
["Johns Hopkins University","Private",23012,"$13005","$840","$107305"]
["Johnson & Wales University-Charlotte","Private",2189,"Data not reported to IPEDS","Data not reported to IPEDS","Data not reported to IPEDS"]
["Johnson & Wales University-Denver","Private",1301,"Data not reported to IPEDS","Data not reported to IPEDS","Data not reported to IPEDS"]
["Johnson & Wales University-North Miami","Private",1635,"Data not reported to IPEDS","Data not reported to IPEDS","Data not reported to IPEDS"]
["Johnson & Wales University-Online","Private",747,"Data not reported to IPEDS","Data not reported to IPEDS","Data not reported to IPEDS"]
["Johnson & Wales University-Providence","Private",9005,"$8286","$0","$31571"]
["Johnson C Smith University","Private",1464,"$4631","$0","$27948"]
["Johnson College","Private",459,"$16313","$260","$18991"]
["Johnson County Community College","Public",11172,"$3134","$11008","$14870"]
["Johnson State College","Public",1261,"$8425","$3826","$22704"]
["Johnson University","Private",1080,"$6983","$0","$19657"]
["Johnson University Florida","Private",186,"$11139","$0","$21639"]
["Johnston Community College","Public",3004,"$952","$7363","$11330"]
["Joliet Junior College","Public",9270,"$2755","$6142","$14803"]
["Jones College-Jacksonville","Private",174,"$4277","$0","$17149"]
["Jones County Junior College","Public",4589,"$-418","$4250","$9565"]
["Joseph F McCloskey School of Nursing at Schuylkill Health","Private",98,"Data not reported to IPEDS","Data not reported to IPEDS","Data not reported to IPEDS"]
["Judson College","Private",303,"$-726","$0","$24764"]
["Judson University","Private",1230,"$2171","$0","$18806"]
["Jung Tao School of Classical Chinese Medicine","Private",78,"$9063","$0","$9533"]
["Juniata College","Private",1457,"$-2174","$0","$32211"]
["Kalamazoo College","Private",1513,"$-5804","$0","$31651"]
["Kalamazoo Valley Community College","Public",5575,"$3239","$6556","$11343"]
["Kankakee Community College","Public",2275,"$1949","$5135","$13684"]
["Kansas Christian College","Private",34,"$21214","$0","$51485"]
["Kansas City Art Institute","Private",632,"$857","$0","$32031"]
["Kansas City Kansas Community College","Public",3611,"$2083","$12810","$13982"]
["Kansas City University of Medicine and Biosciences","Private",1378,"$33531","$0","$31815"]
["Kansas State University","Public",21091,"$8520","$7904","$16810"]
["Kansas Wesleyan University","Private",703,"$1670","$0","$21322"]
["Kapiolani Community College","Public",4656,"$3722","$5493","$12601"]
["Kaskaskia College","Public",3058,"$171","$3021","$11528"]
["Kauai Community College","Public",719,"$1648","$14901","$26590"]
["Kean University","Public",12027,"$8413","$5867","$18884"]
["Keck Graduate Institute","Private",519,"$26018","$0","$38452"]
["Keene State College","Public",4400,"$8332","$2498","$19570"]
["Kehilath Yakov Rabbinical Seminary","Private",148,"$1151","$0","$9623"]
["Keiser University-Ft Lauderdale","Private",21006,"$16103","$0","$24898"]
["Kellogg Community College","Public",2965,"$3347","$7889","$16236"]
["Kennebec Valley Community College","Public",1349,"$2044","$4793","$12145"]
["Kennesaw State University","Public",28839,"$5674","$4012","$13089"]
["Kenrick Glennon Seminary","Private",110,"$-1206","$0","$73468"]
["Kent State University at Ashtabula","Public",1152,"$6492","$3976","$13098"]
["Kent State University at East Liverpool","Public",540,"$6897","$4307","$14427"]
["Kent State University at Geauga","Public",1249,"$6256","$3195","$11931"]
["Kent State University at Kent","Public",28200,"$7731","$3928","$14497"]
["Kent State University at Salem","Public",948,"$5794","$4490","$12658"]
["Kent State University at Stark","Public",2874,"$5965","$3271","$11842"]
["Kent State University at Trumbull","Public",1373,"$6928","$3716","$12175"]
["Kent State University at Tuscarawas","Public",1136,"$5550","$4542","$13702"]
["Kentucky Christian University","Private",483,"$3976","$0","$17612"]
["Kentucky Community and Technical College System","Public",null,"Data not reported to IPEDS","Data not reported to IPEDS","Data not reported to IPEDS"]
["Kentucky Mountain Bible College","Private",68,"$4175","$0","$19998"]
["Kentucky State University","Public",1340,"$2561","$17485","$21031"]
["Kentucky Wesleyan College","Private",611,"$1667","$0","$22119"]
["Kenyon College","Private",1902,"$11872","$0","$49347"]
["Kettering College","Private",961,"$11158","$0","$14642"]
["Kettering University","Private",2250,"$7049","$0","$22171"]
["Keuka College","Private",1837,"$7054","$0","$21867"]
["Keweenaw Bay Ojibwa Community College","Public",68,"$1143","$0","$21941"]
["Keystone College","Private",1371,"$4883","$0","$18879"]
["Kiamichi Technology Center-Atoka","Public",122,"$12672","$177590","$216077"]
["Kiamichi Technology Center-Durant","Public",129,"Data not reported to IPEDS","Data not reported to IPEDS","Data not reported to IPEDS"]
["Kiamichi Technology Center-Hugo","Public",55,"Data not reported to IPEDS","Data not reported to IPEDS","Data not reported to IPEDS"]
["Kiamichi Technology Center-Idabel","Public",205,"Data not reported to IPEDS","Data not reported to IPEDS","Data not reported to IPEDS"]
["Kiamichi Technology Center-McAlester","Public",294,"Data not reported to IPEDS","Data not reported to IPEDS","Data not reported to IPEDS"]
["Kiamichi Technology Center-Poteau","Public",383,"Data not reported to IPEDS","Data not reported to IPEDS","Data not reported to IPEDS"]
["Kiamichi Technology Center-Spiro","Public",19,"Data not reported to IPEDS","Data not reported to IPEDS","Data not reported to IPEDS"]
["Kiamichi Technology Center-Stigler","Public",73,"Data not reported to IPEDS","Data not reported to IPEDS","Data not reported to IPEDS"]
["Kiamichi Technology Centers-Talihina Campus","Public",41,"Data not reported to IPEDS","Data not reported to IPEDS","Data not reported to IPEDS"]
["Kilgore College","Public",3598,"$1305","$5225","$10595"]
["Kilian Community College","Private",null,"Data not reported to IPEDS","Data not reported to IPEDS","Data not reported to IPEDS"]
["King University","Private",3068,"$5610","$0","$12125"]
["King's College","Private",2347,"$6805","$0","$23532"]
["Kirksville Area Technical Center","Public",34,"$4978","$0","$20490"]
["Kirkwood Community College","Public",9622,"$2284","$6687","$13953"]
["Kirtland Community College","Public",935,"$3045","$11553","$17880"]
["Kishwaukee College","Public",2560,"$2074","$8750","$16464"]
["Klamath Community College","Public",1158,"$4431","$8041","$15524"]
["Knowledge Systems Institute","Private",111,"Data not reported to IPEDS","Data not reported to IPEDS","Data not reported to IPEDS"]
["Knox College","Private",1378,"$-7656","$0","$32227"]
["Knox County Career Center","Public",235,"$6015","$0","$8792"]
["Kutztown University of Pennsylvania","Public",8380,"$7571","$4095","$19080"]
["Kuyper College","Private",224,"$4405","$0","$26698"]
["LDS Business College","Private",2053,"$2267","$0","$11741"]
["LIU Brentwood","Private",264,"$13945","$76","$14403"]
["LIU Brooklyn","Private",7516,"$17979","$85","$23537"]
["LIU Hudson at Rockland","Private",195,"$20778","$86","$22939"]
["LIU Hudson at Westchester","Private",114,"$16202","$96","$26384"]
["LIU Post","Private",5370,"$15732","$81","$26730"]
["LIU Riverhead","Private",90,"$17166","$143","$23070"]
["LIU-University Center Campus","Private",null,"Data not reported to IPEDS","Data not reported to IPEDS","Data not reported to IPEDS"]
["La Roche College","Private",1393,"$6370","$0","$18905"]
["La Salle University","Private",5310,"$2060","$141","$21324"]
["La Sierra University","Private",2149,"$21702","$0","$26007"]
["LaGrange College","Private",998,"$1685","$0","$33928"]
["Labette Community College","Public",1104,"$1185","$7225","$9823"]
["Laboure College","Private",597,"$21164","$0","$27856"]
["Lac Courte Oreilles Ojibwa Community College","Public",216,"$4267","$619","$23607"]
["Lackawanna College","Private",1455,"$12634","$0","$15294"]
["Lafayette College","Private",2611,"$14617","$0","$55714"]
["Laguna College of Art and Design","Private",554,"$12719","$0","$24075"]
["Lake Area Technical Institute","Public",1892,"$4886","$4230","$10594"]
["Lake Career and Technical Center","Public",15,"$-567","$0","$4653"]
["Lake Erie College","Private",1091,"$-1607","$0","$17927"]
["Lake Erie College of Osteopathic Medicine","Private",4061,"$28145","$827","$19996"]
["Lake Forest College","Private",1610,"$-5941","$0","$31459"]
["Lake Forest Graduate School of Management","Private",281,"$23551","$0","$35623"]
["Lake Land College","Public",6378,"$975","$2276","$7988"]
["Lake Michigan College","Public",2143,"$3170","$9820","$15603"]
["Lake Region State College","Public",1058,"$3374","$6754","$12916"]
["Lake Superior College","Public",3292,"$4176","$4669","$12230"]
["Lake Superior State University","Public",1941,"$4048","$6837","$19219"]
["Lake Tahoe Community College","Public",1402,"$1383","$10259","$11849"]
["Lake Technical College","Public",553,"$2968","$8654","$12531"]
["Lake Washington Institute of Technology","Public",2628,"$2087","$5788","$13488"]
["Lake-Sumter State College","Public",2896,"$1503","$4746","$11286"]
["Lakeland Community College","Public",5091,"$1763","$7636","$12367"]
["Lakeland University","Private",2181,"$7425","$0","$14629"]
["Lakes Region Community College","Public",767,"$6740","$6336","$20440"]
["Lakeshore Technical College","Public",1529,"$3684","$17135","$28669"]
["Lakeview College of Nursing","Private",187,"$22643","$0","$21386"]
["Lamar Community College","Public",600,"$2620","$2492","$14390"]
["Lamar Institute of Technology","Public",1996,"$3305","$5479","$9496"]
["Lamar State College-Orange","Public",1545,"$3102","$6380","$10672"]
["Lamar State College-Port Arthur","Public",960,"$3962","$12750","$19280"]
["Lamar University","Public",14316,"$6528","$4369","$10783"]
["Lancaster Bible College","Private",1478,"$7263","$0","$15975"]
["Lancaster County Career and Technology Center","Public",480,"$5104","$1522","$9863"]
["Lancaster Theological Seminary","Private",80,"$3364","$0","$50911"]
["Lander University","Public",2550,"$3796","$3007","$14697"]
["Landmark College","Private",462,"$20096","$0","$50214"]
["Lane College","Private",1383,"$8092","$0","$12089"]
["Lane Community College","Public",4128,"$7478","$15115","$27223"]
["Laney College","Public",6078,"$315","$7230","$8656"]
["Langston University","Public",2209,"$1600","$8009","$11081"]
["Lanier Technical College","Public",2434,"$2923","$4334","$10882"]
["Lansing Community College","Public",10212,"$2505","$7145","$13702"]
["Laramie County Community College","Public",2745,"$3050","$13163","$16483"]
["Laredo Community College","Public",8567,"$837","$6392","$8818"]
["Las Positas College","Public",5612,"$266","$8797","$11559"]
["Lasell College","Private",2103,"$4253","$0","$21527"]
["Lassen Community College","Public",1411,"$916","$8561","$10081"]
["Lawrence Memorial Hospital School of Nursing","Private",149,"$26836","$0","$37855"]
["Lawrence Technological University","Private",2815,"$15071","$0","$25203"]
["Lawrence University","Private",1592,"$-3125","$0","$35262"]
["Lawson State Community College-Birmingham Campus","Public",2493,"$850","$5408","$12261"]
["Le Moyne College","Private",3337,"$2556","$66","$20941"]
["Le Moyne-Owen College","Private",873,"$8420","$0","$19084"]
["LeTourneau University","Private",2179,"$8723","$0","$20453"]
["Lebanon County Area Vocational Technical School","Public",145,"$2410","$1397","$10349"]
["Lebanon Valley College","Private",1890,"$1122","$0","$25808"]
["Lee College","Public",4774,"$1121","$7994","$9365"]
["Lee University","Private",4349,"$5645","$0","$13722"]
["Leech Lake Tribal College","Public",214,"$248","$0","$25861"]
["Lees-McRae College","Private",1019,"$-4768","$0","$15719"]
["Leeward Community College","Public",4380,"$2683","$4755","$10771"]
["Lehigh Carbon Community College","Public",4119,"$4872","$4368","$12894"]
["Lehigh University","Private",6685,"$14324","$0","$43690"]
["Lenape Technical School Practical Nursing Program","Public",187,"$5942","$2225","$9927"]
["Lenoir Community College","Public",2221,"$1083","$9614","$14112"]
["Lenoir-Rhyne University","Private",2091,"$-93","$0","$20895"]
["Lenoir-Rhyne University-Lutheran Theological Southern Seminary","Private",null,"Data not reported to IPEDS","Data not reported to IPEDS","Data not reported to IPEDS"]
["Lesley University","Private",3858,"$15975","$0","$24520"]
["Lester E Cox Medical Center-School of Medical Technology","Private",10,"$3000","$0","$14400"]
["Lewis & Clark College","Private",3447,"$8833","$0","$29745"]
["Lewis University","Private",5877,"$9573","$0","$18308"]
["Lewis and Clark Community College","Public",3728,"$2418","$7101","$16668"]
["Lewis-Clark State College","Public",2751,"$4235","$7946","$15769"]
["Lex La-Ray Technical Center","Public",47,"$7551","$0","$5014"]
["Lexington Theological Seminary","Private",41,"$5636","$0","$56708"]
["Liberty University","Private",65290,"$7241","$0","$8850"]
["Life Chiropractic College West","Private",544,"$32467","$0","$34072"]
["Life Pacific College","Private",531,"$8501","$0","$15969"]
["Life University","Private",2860,"$18760","$0","$20923"]
["Limestone College","Private",2663,"$7671","$0","$14161"]
["Lincoln Christian University","Private",650,"$6497","$0","$14583"]
["Lincoln College","Private",983,"$2558","$0","$16470"]
["Lincoln Land Community College","Public",4605,"$4033","$10113","$13723"]
["Lincoln Memorial University","Private",3906,"$19005","$0","$24201"]
["Lincoln Trail College","Public",706,"$-386","$6757","$10251"]
["Lincoln University","Public",1812,"$7929","$7773","$28377"]
["Lincoln University","Public",2347,"$1650","$7812","$13157"]
["Lincoln University","Private",643,"$11006","$0","$9657"]
["Lindenwood University","Private",10989,"$8827","$0","$12679"]
["Lindsey Hopkins Technical College","Public",535,"$1939","$18595","$13705"]
["Lindsey Wilson College","Private",2589,"$-463","$0","$13501"]
["Linfield College-McMinnville Campus","Private",1715,"$2943","$0","$35087"]
["Linfield College-Online and Continuing Education","Private",238,"Data not reported to IPEDS","Data not reported to IPEDS","Data not reported to IPEDS"]
["Linfield College-School of Nursing","Private",375,"Data not reported to IPEDS","Data not reported to IPEDS","Data not reported to IPEDS"]
["Linn-Benton Community College","Public",4153,"$3607","$8083","$16830"]
["Lipscomb University","Private",4444,"$11766","$0","$27128"]
["Little Big Horn College","Public",244,"$980","$0","$21512"]
["Little Priest Tribal College","Private",73,"$2408","$9312","$40764"]
["Lively Technical Center","Public",608,"$3105","$208","$7266"]
["Livingstone College","Private",1317,"$10377","$0","$21300"]
["Lock Haven University","Public",4478,"$7394","$5228","$17832"]
["Logan University","Private",927,"$25333","$0","$31743"]
["Loma Linda University","Private",4415,"$32347","$0","$42185"]
["Lone Star College System","Public",47665,"$1581","$5797","$9325"]
["Long Beach City College","Public",16582,"$647","$7463","$7885"]
["Longwood University","Public",4852,"$6414","$6296","$14729"]
["Longy School of Music of Bard College","Private",171,"$6100","$0","$38350"]
["Lorain County Community College","Public",6587,"$1816","$7783","$11092"]
["Lorain County Joint Vocational School District","Public",67,"$12608","$7895","$15873"]
["Loras College","Private",1598,"$-3750","$0","$20508"]
["Lord Fairfax Community College","Public",3945,"$3592","$3431","$9299"]
["Lorenzo Walker Technical College","Public",567,"$1628","$7431","$15832"]
["Los Angeles City College","Public",10758,"$766","$8791","$10105"]
["Los Angeles Community College District Office","Public",null,"Data not reported to IPEDS","Data not reported to IPEDS","Data not reported to IPEDS"]
["Los Angeles County College of Nursing and Allied Health","Public",135,"$4221","$37742","$34360"]
["Los Angeles Harbor College","Public",5833,"$963","$8217","$11233"]
["Los Angeles Mission College","Public",5451,"$474","$8070","$11614"]
["Los Angeles ORT College-Los Angeles Campus","Private",529,"$4006","$0","$14037"]
["Los Angeles ORT College-Van Nuys Campus","Private",546,"Data not reported to IPEDS","Data not reported to IPEDS","Data not reported to IPEDS"]
["Los Angeles Pierce College","Public",12995,"$762","$7621","$8333"]
["Los Angeles Southwest College","Public",4138,"$281","$9485","$14973"]
["Los Angeles Trade Technical College","Public",8385,"$396","$9071","$11939"]
["Los Angeles Valley College","Public",10642,"$674","$7840","$9350"]
["Los Medanos College","Public",5813,"$628","$6840","$9539"]
["Los Rios Community College District Office","Public",null,"Data not reported to IPEDS","Data not reported to IPEDS","Data not reported to IPEDS"]
["Louisburg College","Private",704,"$3399","$0","$26783"]
["Louisiana College","Private",973,"$6822","$0","$22107"]
["Louisiana Delta Community College","Public",2483,"$-789","$3292","$9808"]
["Louisiana State University Health Sciences Center-New Orleans","Public",2978,"$16158","$30369","$87797"]
["Louisiana State University Health Sciences Center-Shreveport","Public",1036,"$14908","$91783","$50060"]
["Louisiana State University and Agricultural & Mechanical College","Public",29420,"$7800","$7506","$16995"]
["Louisiana State University-Alexandria","Public",2260,"$4232","$2382","$10569"]
["Louisiana State University-Eunice","Public",1735,"$2721","$2774","$10395"]
["Louisiana State University-Shreveport","Public",3222,"$5394","$2360","$9289"]
["Louisiana Tech University","Public",9694,"$3043","$2935","$9155"]
["Louisville Presbyterian Theological Seminary","Private",146,"$-10635","$0","$53741"]
["Lourdes University","Private",1262,"$10191","$0","$22805"]
["Lower Columbia College","Public",2316,"$-2902","$5638","$16218"]
["Loyola Marymount University","Private",8238,"$19031","$0","$39762"]
["Loyola University Chicago","Private",14802,"$13360","$0","$28343"]
["Loyola University Maryland","Private",5431,"$10628","$940","$31134"]
["Loyola University New Orleans","Private",3914,"$1212","$0","$27677"]
["Lubbock Christian University","Private",1590,"$7656","$0","$18769"]
["Luna Community College","Public",759,"$331","$14291","$12919"]
["Lurleen B Wallace Community College","Public",1391,"$1083","$5101","$11569"]
["Luther College","Private",2327,"$-3495","$0","$28522"]
["Luther Rice College & Seminary","Private",650,"$6915","$0","$8154"]
["Luther Seminary","Private",364,"$2630","$0","$46303"]
["Lutheran School of Theology at Chicago","Private",75,"$-12259","$0","$154285"]
["Lutheran Theological Seminary at Philadelphia","Private",146,"$1020","$0","$36464"]
["Luzerne County Community College","Public",3959,"$6156","$4456","$10211"]
["Lycoming College","Private",1334,"$-9453","$0","$29949"]
["Lynchburg College","Private",2636,"$3145","$0","$21464"]
["Lyndon State College","Public",1160,"$10188","$4159","$20620"]
["Lynn University","Private",2831,"$15686","$0","$29134"]
["Lyon College","Private",724,"$-4594","$0","$28838"]
["M-DCPS The English Center","Public",140,"$941","$0","$35470"]
["MCPHS University","Private",7732,"$25326","$0","$18957"]
["MGH Institute of Health Professions","Private",1681,"$21974","$0","$26611"]
["MacCormac College","Private",159,"$13109","$0","$16153"]
["MacMurray College","Private",559,"$4268","$0","$23431"]
["Macalester College","Private",2123,"$-589","$0","$47941"]
["Machzikei Hadath Rabbinical College","Private",156,"$6438","$0","$10164"]
["Macomb Community College","Public",14197,"$3110","$5255","$10730"]
["Madison Adult Career Center","Public",83,"$8459","$301","$12843"]
["Madison Area Technical College","Public",8888,"$4074","$15789","$25196"]
["Madison Oneida BOCES-Practical Nursing Program","Public",60,"$4436","$0","$10105"]
["Madisonville Community College","Public",1802,"$-1592","$4494","$12295"]
["Madonna University","Private",2637,"$7685","$0","$15795"]
["Maharishi University of Management","Private",1684,"$6790","$0","$14648"]
["Mahoning County Career and Technical Center","Public",69,"$11464","$0","$15648"]
["Maine College of Art","Private",447,"$4943","$0","$26307"]
["Maine College of Health Professions","Private",141,"$11148","$0","$22114"]
["Maine Maritime Academy","Public",1074,"$18309","$8394","$31636"]
["Malone University","Private",1568,"$1707","$0","$16650"]
["Manatee Technical College","Public",1089,"$1143","$10823","$13858"]
["Manchester Community College","Public",1853,"$6876","$3409","$10462"]
["Manchester Community College","Public",4176,"$2671","$7614","$13440"]
["Manchester University","Private",1595,"$2138","$0","$22603"]
["Manhattan Area Technical College","Public",596,"$3427","$3922","$10091"]
["Manhattan Christian College","Private",248,"$6927","$0","$19291"]
["Manhattan College","Private",3775,"$8742","$71","$27808"]
["Manhattan School of Computer Technology","Private",442,"$187","$0","$5733"]
["Manhattan School of Music","Private",922,"$17887","$80","$38709"]
["Manhattanville College","Private",2232,"$746","$79","$26713"]
["Manor College","Private",524,"$17056","$360","$18961"]
["Mansfield University of Pennsylvania","Public",2206,"$6034","$7628","$23939"]
["Manthano Christian College","Private",null,"Data not reported to IPEDS","Data not reported to IPEDS","Data not reported to IPEDS"]
["Maple Springs Baptist Bible College and Seminary","Private",18,"$7450","$0","$13418"]
["Maranatha Baptist University","Private",915,"$10675","$0","$14255"]
["Margaret H Rollins School of Nursing at Beebe Medical Center","Private",35,"$9239","$0","$51135"]
["Maria College of Albany","Private",571,"$16059","$0","$19163"]
["Marian University","Private",2916,"$12057","$0","$26717"]
["Marian University","Private",1789,"$7289","$0","$20551"]
["Maricopa Community College System Office","Public",null,"Data not reported to IPEDS","Data not reported to IPEDS","Data not reported to IPEDS"]
["Marietta College","Private",1337,"$3191","$0","$29576"]
["Marion Military Institute","Public",472,"$-1763","$14500","$26998"]
["Marion S Whelan School of Nursing of Geneva General Hospital","Private",48,"$1397","$0","$9047"]
["Marion Technical College","Public",407,"$7038","$10139","$17730"]
["Marion Technical College","Public",1431,"$3010","$4984","$9363"]
["Marist College","Private",5758,"$13563","$80","$28638"]
["Marlboro College","Private",196,"$3188","$0","$69283"]
["Marlboro College Graduate & Professional Studies","Private",94,"Data not reported to IPEDS","Data not reported to IPEDS","Data not reported to IPEDS"]
["Marquette University","Private",10618,"$11607","$0","$29579"]
["Mars Hill University","Private",1338,"$-5200","$0","$16747"]
["Marshall B Ketchum University","Private",406,"$41586","$0","$75913"]
["Marshall University","Public",12082,"$4095","$5454","$14629"]
["Marshalltown Community College","Public",1197,"$2473","$10138","$14991"]
["Martin Community College","Public",543,"$-222","$10002","$18289"]
["Martin Luther College","Private",864,"$9928","$0","$21730"]
["Martin Methodist College","Private",1024,"$1377","$0","$15567"]
["Martin University","Private",287,"$15467","$0","$12776"]
["Mary Baldwin University","Private",1650,"$5072","$187","$18223"]
["Marygrove College","Private",917,"$9656","$0","$21950"]
["Maryland Institute College of Art","Private",2174,"$14720","$1061","$33937"]
["Maryland University of Integrative Health","Private",963,"$14503","$0","$14196"]
["Marylhurst University","Private",729,"$15417","$0","$26325"]
["Marymount California University","Private",1178,"$8848","$0","$24262"]
["Marymount Manhattan College","Private",1769,"$12527","$0","$28166"]
["Marymount University","Private",3108,"$14159","$0","$23686"]
["Maryville College","Private",1231,"$-8018","$0","$21451"]
["Maryville University of Saint Louis","Private",5199,"$8646","$0","$14007"]
["Marywood University","Private",2888,"$5992","$0","$23358"]
["Massachusetts Bay Community College","Public",3220,"$3628","$6216","$11660"]
["Massachusetts College of Art and Design","Public",1763,"$9092","$14364","$29904"]
["Massachusetts College of Liberal Arts","Public",1544,"$4467","$13503","$27988"]
["Massachusetts General Hospital Dietetic Internship","Private",20,"$2580","$0","$5091"]
["Massachusetts Institute of Technology","Private",11231,"$3970","$0","$122259"]
["Massachusetts Maritime Academy","Public",1917,"$7965","$10620","$23381"]
["Massachusetts School of Law","Private",405,"$12541","$0","$16174"]
["Massasoit Community College","Public",5022,"$5029","$5194","$13571"]
["Mayland Community College","Public",820,"$600","$11370","$15325"]
["Mayo Clinic Graduate School of Biomedical Sciences","Private",243,"$152","$0","$48373"]
["Mayo Clinic School of Health Sciences","Private",516,"$11245","$0","$50700"]
["Mayo Clinic School of Medicine","Private",266,"$16985","$0","$62758"]
["Maysville Community and Technical College","Public",2189,"$-2042","$2734","$9919"]
["Mayville State University","Public",746,"$5064","$10652","$17672"]
["McCormick Theological Seminary","Private",99,"$-3321","$0","$87508"]
["McDaniel College","Private",2405,"$657","$959","$22525"]
["McDowell Technical Community College","Public",832,"$784","$10250","$12067"]
["McHenry County College","Public",4280,"$2620","$9594","$12951"]
["McKendree University","Private",2533,"$2088","$0","$17110"]
["McLennan Community College","Public",5830,"$2755","$6293","$8991"]
["McMurry University","Private",957,"$4217","$0","$19959"]
["McNeese State University","Public",6935,"$4653","$2705","$8150"]
["McPherson College","Private",645,"$-3754","$0","$23866"]
["Meadville Lombard Theological School","Private",97,"$5201","$0","$37981"]
["Medaille College","Private",2083,"$5156","$62","$16487"]
["Medical College of Wisconsin","Private",1208,"$25788","$4180","$86135"]
["Medical University of South Carolina","Public",4276,"$20102","$21482","$71863"]
["Medina County Career Center","Public",41,"$9857","$6183","$16972"]
["Meharry Medical College","Private",756,"$36093","$0","$74330"]
["Memorial College of Nursing","Private",79,"$11292","$10127","$20672"]
["Memorial Hospital School of Radiation Therapy Technology","Private",23,"$2489","$0","$16669"]
["Memphis College of Art","Private",350,"$4394","$0","$30680"]
["Memphis Theological Seminary","Private",186,"$7473","$0","$24352"]
["Mendocino College","Public",2392,"$520","$9384","$16277"]
["Menlo College","Private",804,"$1511","$0","$29172"]
["Merced College","Public",7208,"$-492","$7243","$8982"]
["Mercer County Career Center","Public",38,"$3070","$2202","$8255"]
["Mercer County Community College","Public",4800,"$4233","$4907","$11480"]
["Mercer County Technical Education Center","Public",112,"$2640","$0","$16400"]
["Mercer University","Private",8060,"$9110","$3968","$21644"]
["Mercy College","Private",8560,"$11876","$76","$16593"]
["Mercy College of Health Sciences","Private",807,"$15875","$0","$17807"]
["Mercy College of Ohio","Private",973,"$12226","$0","$20548"]
["Mercy Hospital School of Nursing","Private",77,"$13770","$0","$21053"]
["Mercy School of Nursing","Public",47,"$14538","$0","$34148"]
["Mercy-St Luke's School of Radiologic Technology","Private",35,"$2190","$0","$8574"]
["Mercyhurst University","Private",2549,"$-1682","$0","$28798"]
["Mercyhurst University-North East Campus","Private",682,"$2400","$0","$15091"]
["Meredith College","Private",1934,"$7632","$0","$24515"]
["Meridian Community College","Public",2564,"$620","$5891","$12272"]
["Meridian Technology Center","Public",580,"$1384","$24247","$21403"]
["Merkaz Bnos-Business School","Private",186,"$2633","$0","$15429"]
["Merrimack College","Private",3733,"$4905","$0","$24374"]
["Merritt College","Public",3206,"$446","$7687","$9008"]
["Mesa Community College","Public",12221,"$1890","$5743","$9718"]
["Mesabi Range College","Public",873,"$2472","$6284","$13765"]
["Mesalands Community College","Public",433,"$544","$11119","$14247"]
["Mesivta Keser Torah","Private",null,"Data not reported to IPEDS","Data not reported to IPEDS","Data not reported to IPEDS"]
["Mesivta Torah Vodaath Rabbinical Seminary","Private",369,"$-1693","$0","$21016"]
["Mesivta of Eastern Parkway-Yeshiva Zichron Meilech","Private",35,"$877","$0","$31473"]
["Mesivtha Tifereth Jerusalem of America","Private",72,"$12741","$0","$54282"]
["Messenger College","Private",79,"$8656","$0","$17325"]
["Messiah College","Private",3305,"$5332","$0","$25786"]
["Methodist College","Private",560,"$19545","$0","$20377"]
["Methodist Theological School in Ohio","Private",133,"$-4355","$0","$35990"]
["Methodist University","Private",2316,"$3460","$0","$21924"]
["Metro Technology Centers","Public",819,"$2167","$38197","$60763"]
["Metropolitan College of New York","Private",1476,"$14987","$68","$22046"]
["Metropolitan Community College Area","Public",9658,"$1651","$7263","$12026"]
["Metropolitan Community College-Kansas City","Public",11368,"$1828","$5774","$10540"]
["Metropolitan Learning Institute","Private",672,"$3565","$0","$8524"]
["Metropolitan State University","Public",5996,"$4887","$4666","$14169"]
["Metropolitan State University of Denver","Public",15809,"$5891","$0","$11211"]
["Miami Dade College","Public",48705,"$1353","$3637","$8737"]
["Miami Lakes Educational Center and Technical College","Public",543,"$5207","$13980","$11280"]
["Miami University-Hamilton","Public",2482,"$5717","$2929","$10775"]
["Miami University-Middletown","Public",1584,"$6742","$3340","$13034"]
["Miami University-Oxford","Public",19090,"$12315","$3210","$19277"]
["Miami Valley Career Technology Center","Public",223,"$12212","$2567","$15590"]
["Michigan Barber School Inc","Private",149,"$9555","$0","$9070"]
["Michigan Career and Technical Institute","Public",241,"$-66","$0","$47373"]
["Michigan Jewish Institute","Private",null,"Data not reported to IPEDS","Data not reported to IPEDS","Data not reported to IPEDS"]
["Michigan School of Professional Psychology","Private",166,"$17942","$0","$20045"]
["Michigan State University","Public",45445,"$15573","$5914","$21707"]
["Michigan State University-College of Law","Private",848,"$2327","$0","$30478"]
["Michigan Technological University","Public",6752,"$6805","$6948","$17784"]
["Mid Michigan Community College","Public",3341,"$3652","$2294","$8522"]
["Mid-America Christian University","Private",1675,"$10311","$0","$11690"]
["Mid-America College of Funeral Service","Private",216,"$3829","$0","$6180"]
["Mid-America Technology Center","Public",716,"$654","$13820","$11912"]
["Mid-Atlantic Christian University","Private",174,"$8271","$0","$32852"]
["Mid-Del Technology Center","Public",117,"$3953","$55212","$56781"]
["Mid-EastCTC-Adult Education","Public",222,"$10562","$2257","$19188"]
["Mid-Plains Community College","Public",1544,"$1867","$13179","$14593"]
["Mid-South Christian College","Private",22,"$2887","$0","$38711"]
["Mid-State Technical College","Public",1904,"$2694","$12585","$15755"]
["MidAmerica Nazarene University","Private",1914,"$4537","$0","$16725"]
["Middle Georgia State University","Public",6143,"$2962","$5280","$13060"]
["Middle Tennessee School of Anesthesia Inc","Private",256,"$17831","$0","$11096"]
["Middle Tennessee State University","Public",19158,"$5537","$4533","$15065"]
["Middlebury College","Private",3046,"$27837","$0","$77874"]
["Middlebury Institute of International Studies at Monterey","Private",879,"Data not reported to IPEDS","Data not reported to IPEDS","Data not reported to IPEDS"]
["Middlesex Community College","Public",5670,"$3721","$5290","$12840"]
["Middlesex Community College","Public",1829,"$2554","$7811","$13710"]
["Middlesex County College","Public",8816,"$4847","$3005","$9426"]
["Midfield Institute of Cosmetology","Private",11,"$-3849","$0","$8185"]
["Midland College","Public",3793,"$1212","$10063","$13404"]
["Midland University","Private",1383,"$-259","$0","$17037"]
["Midlands Technical College","Public",8075,"$3317","$3419","$12758"]
["Midway University","Private",805,"$8952","$0","$19988"]
["Midwestern Baptist Theological Seminary","Private",1447,"$4365","$0","$9398"]
["Midwestern State University","Public",5140,"$4571","$4736","$16712"]
["Midwestern University-Downers Grove","Private",3319,"$46214","$0","$35280"]
["Midwestern University-Glendale","Private",3861,"$46709","$0","$38029"]
["Midwives College of Utah","Private",170,"$7754","$0","$5047"]
["Mifflin County Academy of Science and Technology","Public",32,"$5733","$3553","$14053"]
["Miles College","Private",1880,"$2849","$0","$17727"]
["Miles Community College","Public",381,"$2377","$10012","$18220"]
["Millersville University of Pennsylvania","Public",7203,"$8526","$4463","$18001"]
["Milligan College","Private",1086,"$1779","$0","$20660"]
["Millikin University","Private",2192,"$462","$0","$22654"]
["Mills College","Private",1395,"$4035","$0","$39772"]
["Millsaps College","Private",859,"$-6194","$0","$43572"]
["Milwaukee Area Technical College","Public",10634,"$2306","$15490","$21121"]
["Milwaukee Institute of Art & Design","Private",624,"$4369","$0","$24038"]
["Milwaukee School of Engineering","Private",2723,"$-886","$0","$21416"]
["Mineral Area College","Public",2921,"$1125","$3321","$6468"]
["Mineral County Vocational Technical Center","Public",34,"$4314","$0","$8090"]
["Minerva Schools at Keck Graduate Institute","Private",117,"Data not reported to IPEDS","Data not reported to IPEDS","Data not reported to IPEDS"]
["Mingo Extended Learning Center","Public",38,"$230","$0","$15111"]
["Minneapolis College of Art and Design","Private",749,"$5983","$0","$26131"]
["Minneapolis Community and Technical College","Public",5658,"$2404","$4638","$11506"]
["Minnesota State College Southeast","Public",1316,"$3614","$6773","$15555"]
["Minnesota State Community and Technical College","Public",4319,"$2914","$5109","$11338"]
["Minnesota State University Moorhead","Public",5221,"$4947","$6042","$15610"]
["Minnesota State University-Mankato","Public",13487,"$5782","$4334","$13342"]
["Minnesota West Community and Technical College","Public",1858,"$3544","$6881","$14357"]
["Minot State University","Public",2720,"$4417","$9071","$14751"]
["MiraCosta College","Public",11050,"$284","$8939","$10703"]
["Mirrer Yeshiva Cent Institute","Private",179,"$1431","$0","$19989"]
["Misericordia University","Private",2841,"$7765","$0","$20369"]
["Mission College","Public",4923,"$1115","$11140","$14810"]
["Mississippi College","Private",4681,"$5364","$0","$16446"]
["Mississippi Community College Board","Public",null,"Data not reported to IPEDS","Data not reported to IPEDS","Data not reported to IPEDS"]
["Mississippi Delta Community College","Public",1652,"$-74","$10364","$17675"]
["Mississippi Gulf Coast Community College","Public",8024,"$2249","$4839","$11185"]
["Mississippi State University","Public",19551,"$3610","$9534","$11478"]
["Mississippi University for Women","Public",2574,"$1916","$6505","$17199"]
["Mississippi Valley State University","Public",2088,"$319","$8427","$17504"]
["Missouri Baptist University","Private",2762,"$5325","$0","$11919"]
["Missouri Southern State University","Public",4648,"$1351","$5095","$12176"]
["Missouri State University-Springfield","Public",18033,"$5019","$4384","$11463"]
["Missouri State University-West Plains","Public",1238,"$1173","$4950","$9114"]
["Missouri University of Science and Technology","Public",7416,"$7426","$7073","$21252"]
["Missouri Valley College","Private",1453,"$-4311","$0","$12413"]
["Missouri Western State University","Public",4101,"$4270","$5327","$14512"]
["Mitchell College","Private",649,"$2680","$0","$26485"]
["Mitchell Community College","Public",1990,"$1337","$7631","$11745"]
["Mitchell Hamline School of Law","Private",959,"$-3292","$0","$22630"]
["Mitchell Technical Institute","Public",1170,"$5097","$3954","$12902"]
["Moberly Area Community College","Public",3414,"$3450","$2103","$7837"]
["Modesto Junior College","Public",11672,"$482","$0","$6118"]
["Mohave Community College","Public",2632,"$1846","$8968","$9437"]
["Mohawk Valley Community College","Public",4813,"$2603","$3433","$9642"]
["Molloy College","Private",4441,"$17218","$0","$23465"]
["Monmouth College","Private",1238,"$-7280","$0","$27428"]
["Monmouth County Vocational School District","Public",43,"$6100","$4902","$19120"]
["Monmouth University","Private",6042,"$12946","$0","$23996"]
["Monongalia County Technical Education Center","Public",75,"$2426","$0","$15486"]
["Monroe 2 Orleans BOCES-Center for Workforce Development","Public",83,"$3053","$0","$13921"]
["Monroe Community College","Public",12142,"$2179","$4957","$14265"]
["Monroe County Community College","Public",1863,"$3388","$9816","$17274"]
["Montana Bible College","Private",77,"Data not reported to IPEDS","Data not reported to IPEDS","Data not reported to IPEDS"]
["Montana State University","Public",14012,"$7921","$6320","$13898"]
["Montana State University-Billings","Public",3640,"$4543","$6339","$14813"]
["Montana State University-Northern","Public",1098,"$3208","$10560","$18585"]
["Montana Tech of the University of Montana","Public",2057,"$5886","$7820","$15551"]
["Montcalm Community College","Public",1009,"$2707","$9427","$17213"]
["Montclair State University","Public",18532,"$7934","$4093","$16918"]
["Monterey Peninsula College","Public",4541,"$1017","$9045","$13998"]
["Montessori Casa International","Private",12,"$6079","$0","$11117"]
["Montessori Education Center of the Rockies","Private",35,"$23661","$0","$25938"]
["Montessori Education Institute of the Pacific Northwest","Private",9,"$21410","$0","$24603"]
["Montessori Institute of Milwaukee","Private",45,"$7354","$0","$9806"]
["Montgomery College","Public",16323,"$3547","$11284","$20720"]
["Montgomery Community College","Public",645,"$940","$10188","$12973"]
["Montgomery County Community College","Public",7509,"$4505","$4238","$10641"]
["Montreat College","Private",903,"$3528","$0","$17462"]
["Montserrat College of Art","Private",363,"$7796","$0","$25349"]
["Monty Tech","Public",39,"$8897","$0","$14386"]
["Moody Bible Institute","Private",3247,"$2547","$0","$14072"]
["Moore College of Art and Design","Private",421,"$11164","$0","$32725"]
["Moore Norman Technology Center","Public",779,"$1214","$18313","$15984"]
["Moorpark College","Public",9553,"$943","$6431","$5808"]
["Moraine Park Technical College","Public",2770,"$2302","$14540","$21125"]
["Moraine Valley Community College","Public",10602,"$1996","$3613","$10093"]
["Moravian College","Private",2150,"$4494","$0","$26675"]
["Morehead State University","Public",7609,"$1477","$5703","$16296"]
["Morehouse College","Private",2187,"$4878","$0","$31084"]
["Morehouse School of Medicine","Private",440,"$22503","$44436","$200697"]
["Moreno Valley College","Public",5293,"$671","$6811","$8751"]
["Morgan Community College","Public",872,"$3777","$0","$12934"]
["Morgan State University","Public",7039,"$3447","$12237","$16785"]
["Morningside College","Private",2068,"$1287","$0","$15061"]
["Morris College","Private",810,"$11762","$0","$21993"]
["Morris County Vocational School District","Public",80,"$5468","$0","$7899"]
["Morrison Institute of Technology","Private",102,"$13012","$0","$19022"]
["Morrisville State College","Public",2748,"$2695","$11355","$24882"]
["Morthland College","Private",104,"$11939","$0","$31529"]
["Morton College","Public",2996,"$995","$5056","$9906"]
["Motlow State Community College","Public",3534,"$2324","$3161","$7043"]
["Mott Community College","Public",5636,"$3354","$7594","$12834"]
["Mount Aloysius College","Private",1578,"$9500","$0","$16908"]
["Mount Angel Seminary","Private",181,"$15369","$0","$25639"]
["Mount Carmel College of Nursing","Private",1079,"$15259","$0","$13988"]
["Mount Holyoke College","Private",2287,"$172","$0","$57065"]
["Mount Ida College","Private",1296,"$1252","$0","$31797"]
["Mount Marty College","Private",854,"$9475","$0","$18086"]
["Mount Mary University","Private",1112,"$4476","$0","$22552"]
["Mount Mercy University","Private",1576,"$4895","$0","$18764"]
["Mount Saint Joseph University","Private",1834,"$8629","$0","$17910"]
["Mount Saint Mary College","Private",2110,"$9618","$0","$21880"]
["Mount Saint Mary's University","Private",2813,"$12346","$0","$27263"]
["Mount St. Mary's University","Private",2233,"$2846","$0","$28505"]
["Mount Vernon Nazarene University","Private",1619,"$1774","$0","$20063"]
["Mount Wachusett Community College","Public",2739,"$3857","$6720","$16074"]
["Mountain Empire Community College","Public",1784,"$1056","$4402","$10423"]
["Mountain View College","Public",5191,"$1124","$6540","$8229"]
["Mountainland Technical College","Public",1152,"$1982","$8503","$9735"]
["Mountwest Community and Technical College","Public",1500,"$1140","$3640","$10643"]
["Mt Hood Community College","Public",5756,"$3082","$7849","$10892"]
["Mt San Antonio College","Public",20794,"$-154","$8003","$10274"]
["Mt San Jacinto Community College District","Public",10056,"$-576","$7127","$8316"]
["Mt. Diablo Adult Education-Mt. Diablo USD","Public",93,"$16113","$0","$60536"]
["Muhlenberg College","Private",2756,"$8589","$0","$31061"]
["Multnomah University","Private",611,"$5010","$0","$21029"]
["Murray State College","Public",1558,"$35","$3400","$11662"]
["Murray State University","Public",8929,"$3496","$5271","$16593"]
["Muskegon Community College","Public",3189,"$3561","$6417","$13137"]
["Muskingum University","Private",1858,"$1625","$0","$17895"]
["NHTI-Concord's Community College","Public",2722,"$6817","$4137","$9263"]
["NTMA Training Centers of Southern California","Private",625,"$7194","$0","$13732"]
["Napa Valley College","Public",4138,"$1039","$9355","$9434"]
["Naropa University","Private",852,"$17085","$0","$28505"]
["Nash Community College","Public",2137,"$1126","$7701","$10663"]
["Nashotah House","Private",93,"$-3981","$0","$40212"]
["Nashua Community College","Public",1292,"$6604","$3983","$9824"]
["Nashville State Community College","Public",6457,"$2339","$2652","$6201"]
["Nassau Community College","Public",16618,"$2920","$6774","$15568"]
["National Conservatory of Dramatic Arts","Private",48,"$9577","$0","$5525"]
["National Graduate School of Quality Management","Private",223,"$10943","$0","$11916"]
["National Latino Education Institute","Private",99,"$2526","$0","$21791"]
["National Louis University","Private",3405,"$14945","$0","$18206"]
["National Park College","Public",1591,"$839","$7718","$13712"]
["National University","Private",15497,"$13605","$0","$15609"]
["National University of Health Sciences","Private",1011,"$16894","$0","$18968"]
["National University of Natural Medicine","Private",650,"$27395","$0","$30729"]
["Naugatuck Valley Community College","Public",4133,"$2632","$8474","$14213"]
["Navajo Technical University","Public",1172,"$0","$2690","$18769"]
["Naval Postgraduate School","Public",2486,"Data not reported to IPEDS","Data not reported to IPEDS","Data not reported to IPEDS"]
["Navarro College","Public",6291,"$2326","$3388","$6214"]
["Nazarene Bible College","Private",359,"$6309","$0","$19230"]
["Nazarene Theological Seminary","Private",150,"$819","$0","$29721"]
["Nazareth College","Private",2816,"$11004","$89","$24721"]
["Nebraska Christian College of Hope International University","Private",120,"$4914","$0","$18053"]
["Nebraska College of Technical Agriculture","Public",331,"$-1332","$9722","$16756"]
["Nebraska Indian Community College","Public",101,"$-423","$0","$14865"]
["Nebraska Methodist College of Nursing & Allied Health","Private",888,"$10966","$0","$20685"]
["Nebraska Wesleyan University","Private",2069,"$2302","$0","$18423"]
["Neighborhood Playhouse School of the Theater","Private",80,"$15429","$0","$18781"]
["Neosho County Community College","Public",1289,"$3316","$5837","$11292"]
["Ner Israel Rabbinical College","Private",508,"$-181","$0","$11336"]
["Neumann University","Private",2678,"$10798","$0","$19078"]
["Nevada Regional Technical Center","Public",29,"$5915","$0","$5145"]
["Nevada State College","Public",2754,"$2780","$5403","$9933"]
["Nevada System of Higher Education-System Office","Public",null,"Data not reported to IPEDS","Data not reported to IPEDS","Data not reported to IPEDS"]
["New Brunswick Theological Seminary","Private",108,"$6393","$0","$39771"]
["New College of Florida","Public",960,"$-2027","$20151","$33869"]
["New England College","Private",2118,"$3640","$0","$13837"]
["New England College of Optometry","Private",519,"$38214","$0","$46037"]
["New England Institute of Technology","Private",3291,"$17181","$0","$20789"]
["New England Law-Boston","Private",794,"$10239","$0","$27407"]
["New England School of Acupuncture","Private",null,"Data not reported to IPEDS","Data not reported to IPEDS","Data not reported to IPEDS"]
["New Hampshire Institute of Art","Private",418,"$8309","$0","$25857"]
["New Hope Christian College-Eugene","Private",125,"$9660","$0","$29731"]
["New Jersey City University","Public",6529,"$7911","$7621","$21712"]
["New Jersey Institute of Technology","Public",9320,"$11048","$9392","$24454"]
["New Mexico Highlands University","Public",2810,"$4322","$11232","$12077"]
["New Mexico Institute of Mining and Technology","Public",1836,"$3752","$21129","$12715"]
["New Mexico Junior College","Public",1813,"$2194","$13239","$12683"]
["New Mexico Military Institute","Public",434,"$9282","$0","$34193"]
["New Mexico State University-Alamogordo","Public",969,"$1956","$8679","$15273"]
["New Mexico State University-Carlsbad","Public",954,"$1083","$11523","$13307"]
["New Mexico State University-Dona Ana","Public",4970,"$1002","$5799","$9295"]
["New Mexico State University-Grants","Public",428,"$1155","$9148","$15182"]
["New Mexico State University-Main Campus","Public",12996,"$3805","$12919","$15080"]
["New Orleans Baptist Theological Seminary","Private",1600,"$3221","$0","$13909"]
["New River Community College","Public",2824,"$3567","$3577","$9334"]
["New River Community and Technical College","Public",1377,"$1647","$3933","$11544"]
["New Saint Andrews College","Private",160,"Data not reported to IPEDS","Data not reported to IPEDS","Data not reported to IPEDS"]
["New York Academy of Art","Private",120,"$28467","$0","$34846"]
["New York Chiropractic College","Private",986,"$23172","$0","$26582"]
["New York College of Health Professions","Private",711,"$11770","$0","$17187"]
["New York College of Podiatric Medicine","Private",412,"$24013","$194","$22674"]
["New York College of Traditional Chinese Medicine","Private",267,"$9110","$0","$5871"]
["New York Institute of Technology","Private",7118,"$25742","$114","$32404"]
["New York Law School","Private",866,"$16205","$90","$73802"]
["New York Medical College","Private",1334,"$38829","$191","$50494"]
["New York Methodist Hospital Center for Allied Health Education","Private",279,"$21133","$0","$28777"]
["New York School of Interior Design","Private",373,"$30584","$0","$41011"]
["New York Theological Seminary","Private",195,"$13834","$0","$27238"]
["New York University","Private",49040,"$21390","$87","$46561"]
["Newberry College","Private",1089,"$-1959","$0","$22862"]
["Newbury College","Private",804,"$-713","$0","$21268"]
["Newman University","Private",2219,"$2016","$0","$11003"]
["Niagara County Community College","Public",4214,"$2769","$5079","$14334"]
["Niagara University","Private",3814,"$535","$69","$18169"]
["Nicholls State University","Public",5632,"$4818","$2763","$11397"]
["Nichols College","Private",1445,"$2263","$0","$21735"]
["Nicolet Area Technical College","Public",712,"$3353","$31128","$33372"]
["Norco College","Public",5526,"$657","$6646","$10094"]
["Norfolk State University","Public",4609,"$5994","$11545","$20722"]
["Normandale Community College","Public",6837,"$3524","$3461","$9566"]
["North American University","Private",580,"$-94","$0","$14506"]
["North Arkansas College","Public",1314,"$549","$7482","$13440"]
["North Bennet Street School","Private",204,"$14458","$0","$33202"]
["North Carolina A & T State University","Public",9999,"$4402","$9266","$14504"]
["North Carolina Central University","Public",7995,"$4394","$10007","$17119"]
["North Carolina State University at Raleigh","Public",29891,"$6169","$16812","$21696"]
["North Carolina Wesleyan College","Private",1763,"$2813","$0","$14104"]
["North Central College","Private",2763,"$1558","$0","$23241"]
["North Central Kansas Technical College","Public",689,"$3464","$5510","$15527"]
["North Central Michigan College","Public",1359,"$2150","$7216","$13155"]
["North Central Missouri College","Public",1172,"$1113","$2546","$7389"]
["North Central State College","Public",1688,"$3952","$4496","$13420"]
["North Central Texas College","Public",5934,"$2303","$2647","$7207"]
["North Central University","Private",1055,"$5122","$0","$20267"]
["North Country Community College","Public",1042,"$2792","$6764","$14382"]
["North Dakota State College of Science","Public",2298,"$3131","$8613","$15486"]
["North Dakota State University-Main Campus","Public",13010,"$7609","$9896","$15922"]
["North Florida Community College","Public",818,"$652","$9588","$16446"]
["North Georgia Technical College","Public",1916,"$2465","$4904","$11442"]
["North Greenville University","Private",2571,"$283","$0","$14741"]
["North Hennepin Community College","Public",4446,"$2930","$3867","$10573"]
["North Idaho College","Public",3520,"$2034","$8718","$12865"]
["North Iowa Area Community College","Public",1962,"$3996","$8376","$16894"]
["North Lake College","Public",5951,"$1814","$7044","$9269"]
["North Orange County Community College District","Public",null,"Data not reported to IPEDS","Data not reported to IPEDS","Data not reported to IPEDS"]
["North Park University","Private",2540,"$9947","$0","$23725"]
["North Seattle College","Public",4216,"$3308","$4327","$10368"]
["North Shore Community College","Public",4283,"$3164","$6329","$10707"]
["NorthShore University HealthSystem School of Nurse Anesthesia","Private",80,"$11516","$0","$10617"]
["NorthWest Arkansas Community College","Public",4883,"$2804","$4307","$10234"]
["Northampton County Area Community College","Public",6966,"$4202","$3094","$12610"]
["Northcentral Technical College","Public",3115,"$1885","$12264","$20890"]
["Northeast Alabama Community College","Public",1902,"$2070","$4123","$9694"]
["Northeast Catholic College","Private",88,"$-4561","$0","$24227"]
["Northeast Community College","Public",3030,"$1851","$12113","$16917"]
["Northeast Iowa Community College","Public",2997,"$3093","$7268","$16851"]
["Northeast Lakeview College","Public",1913,"$3600","$10877","$16737"]
["Northeast Mississippi Community College","Public",3131,"$272","$4760","$10257"]
["Northeast Ohio Medical University","Public",921,"$31422","$24558","$50317"]
["Northeast State Community College","Public",4118,"$1917","$3580","$10816"]
["Northeast Technology Center-Afton","Public",243,"Data not reported to IPEDS","Data not reported to IPEDS","Data not reported to IPEDS"]
["Northeast Technology Center-Claremore","Public",204,"Data not reported to IPEDS","Data not reported to IPEDS","Data not reported to IPEDS"]
["Northeast Technology Center-Kansas","Public",155,"Data not reported to IPEDS","Data not reported to IPEDS","Data not reported to IPEDS"]
["Northeast Technology Center-Pryor","Public",340,"$2240","$5148","$49321"]
["Northeast Technology Center-System Office","Public",null,"Data not reported to IPEDS","Data not reported to IPEDS","Data not reported to IPEDS"]
["Northeast Texas Community College","Public",1997,"$974","$5423","$10357"]
["Northeast Wisconsin Technical College","Public",5639,"$3631","$12514","$21143"]
["Northeastern Hospital School of Nursing","Private",null,"Data not reported to IPEDS","Data not reported to IPEDS","Data not reported to IPEDS"]
["Northeastern Illinois University","Public",6912,"$6387","$1547","$23192"]
["Northeastern Junior College","Public",1243,"$3468","$0","$10996"]
["Northeastern Oklahoma A&M College","Public",1760,"$837","$4490","$6338"]
["Northeastern Seminary","Private",90,"$7640","$0","$18215"]
["Northeastern State University","Public",6663,"$3792","$4881","$12683"]
["Northeastern Technical College","Public",770,"$1304","$3855","$13203"]
["Northeastern University","Private",21046,"$23433","$0","$39422"]
["Northeastern University Professional Advancement Network","Private",7390,"Data not reported to IPEDS","Data not reported to IPEDS","Data not reported to IPEDS"]
["Northern Arizona University","Public",28657,"$4229","$3302","$16110"]
["Northern Baptist Theological Seminary","Private",67,"$8362","$0","$73472"]
["Northern Essex Community College","Public",3871,"$3494","$6269","$16035"]
["Northern Illinois University","Public",17165,"$8428","$1539","$11721"]
["Northern Kentucky University","Public",11926,"$6533","$4070","$16489"]
["Northern Maine Community College","Public",584,"$1156","$13109","$21431"]
["Northern Michigan University","Public",7382,"$5280","$6159","$15111"]
["Northern New Mexico College","Public",738,"$1074","$15546","$21093"]
["Northern Oklahoma College","Public",3044,"$2214","$3286","$11696"]
["Northern State University","Public",2036,"$4204","$6462","$16535"]
["Northern Tier Career Center","Public",48,"$7278","$1370","$9380"]
["Northern Virginia Community College","Public",34016,"$3839","$2786","$10037"]
["Northland Career Center","Public",36,"$9292","$0","$6822"]
["Northland College","Private",557,"$-8010","$0","$28565"]
["Northland Community and Technical College","Public",2220,"$3590","$5945","$13788"]
["Northland Pioneer College","Public",1908,"$65","$11682","$14275"]
["Northpoint Bible College","Private",305,"$11309","$0","$19483"]
["Northshore Technical Community College","Public",1693,"$1980","$3022","$9083"]
["Northwest Christian University","Private",578,"$1216","$0","$23840"]
["Northwest College","Public",1282,"$614","$16616","$19337"]
["Northwest Florida State College","Public",4419,"$1753","$4331","$9943"]
["Northwest HVAC/R Training Center","Private",39,"$7646","$0","$12215"]
["Northwest Indian College","Public",527,"$4071","$0","$26226"]
["Northwest Institute of Literary Arts","Private",null,"Data not reported to IPEDS","Data not reported to IPEDS","Data not reported to IPEDS"]
["Northwest Iowa Community College","Public",1109,"$3166","$9806","$11181"]
["Northwest Kansas Technical College","Public",620,"$2188","$5159","$11108"]
["Northwest Louisiana Technical College","Public",1704,"$-519","$4063","$6875"]
["Northwest Mississippi Community College","Public",6571,"$945","$4466","$9501"]
["Northwest Missouri State University","Public",5877,"$3089","$5394","$14519"]
["Northwest Nazarene University","Private",2196,"$4388","$0","$17361"]
["Northwest School of Wooden Boat Building","Private",100,"$10443","$0","$15494"]
["Northwest State Community College","Public",2102,"$3541","$4967","$12022"]
["Northwest Suburban College","Private",75,"$4757","$0","$7416"]
["Northwest Technical College","Public",648,"$3275","$5569","$14765"]
["Northwest Technical Institute","Public",332,"$2122","$12058","$20721"]
["Northwest Technology Center-Alva","Public",127,"$608","$22679","$28738"]
["Northwest Technology Center-Fairview","Public",87,"Data not reported to IPEDS","Data not reported to IPEDS","Data not reported to IPEDS"]
["Northwest University","Private",1178,"$7135","$0","$21903"]
["Northwest University-College of Adult and Professional Studies","Private",584,"$10260","$0","$10860"]
["Northwest Vista College","Public",11032,"$717","$2778","$5356"]
["Northwest-Shoals Community College","Public",2510,"$1865","$4682","$10332"]
["Northwestern College","Private",1149,"$-3553","$0","$23125"]
["Northwestern Connecticut Community College","Public",812,"$1797","$14123","$21362"]
["Northwestern Health Sciences University","Private",1123,"$17442","$0","$19085"]
["Northwestern Michigan College","Public",2729,"$6676","$8298","$20177"]
["Northwestern Oklahoma State University","Public",1703,"$452","$5218","$11825"]
["Northwestern Polytechnic University","Private",null,"Data not reported to IPEDS","Data not reported to IPEDS","Data not reported to IPEDS"]
["Northwestern State University of Louisiana","Public",7868,"$3720","$2685","$10901"]
["Northwestern University","Private",19485,"$11669","$0","$79139"]
["Northwood University","Private",3184,"$9000","$0","$17350"]
["Northwood University-Texas","Private",null,"Data not reported to IPEDS","Data not reported to IPEDS","Data not reported to IPEDS"]
["Norwalk Community College","Public",3759,"$3078","$7182","$14543"]
["Norwich Technical High School/Adult Licensed Practical Nurse Program","Public",41,"$3710","$12389","$17994"]
["Norwich University","Private",3228,"$4094","$0","$27339"]
["Notre Dame College","Private",1774,"$1409","$0","$16550"]
["Notre Dame Seminary Graduate School of Theology","Private",160,"$14662","$0","$30221"]
["Notre Dame de Namur University","Private",1432,"$12163","$0","$25486"]
["Notre Dame of Maryland University","Private",1818,"$13069","$819","$26180"]
["Nova Southeastern University","Private",19074,"$24721","$0","$26795"]
["Nueta Hidatsa Sahnish College","Public",181,"$455","$0","$56673"]
["Nunez Community College","Public",1526,"$2189","$2251","$7750"]
["Nyack College","Private",2127,"$5971","$0","$23267"]
["O C Collins Career Center","Public",449,"$6260","$0","$10015"]
["O'More College of Design","Private",159,"$12833","$0","$24662"]
["Oak Hills Christian College","Private",109,"$6884","$0","$19247"]
["Oakland City University","Private",905,"$13282","$0","$19540"]
["Oakland Community College","Public",13682,"$2376","$7590","$12147"]
["Oakland University","Public",17687,"$8663","$2735","$15255"]
["Oakton Community College","Public",6596,"$2564","$7553","$16363"]
["Oakwood University","Private",1750,"$7991","$0","$19573"]
["Oberlin College","Private",2919,"$10557","$0","$56503"]
["Oblate School of Theology","Private",137,"$9167","$0","$44657"]
["Occidental College","Private",2143,"$8382","$0","$42746"]
["Ocean County College","Public",6539,"$3628","$3382","$9877"]
["Ocean County Vocational-Technical School","Public",314,"$8097","$0","$18329"]
["Oconee Fall Line Technical College","Public",1146,"$1866","$8808","$16262"]
["Odessa College","Public",3430,"$1207","$10860","$13604"]
["Ogden-Weber Technical College","Public",1184,"$1351","$10976","$11804"]
["Ogeechee Technical College","Public",1765,"$2361","$4537","$12537"]
["Oglala Lakota College","Public",928,"$-1600","$0","$14404"]
["Oglethorpe University","Private",1291,"$-4697","$0","$25302"]
["Ohio Christian University","Private",3296,"$8054","$0","$7460"]
["Ohio College of Massotherapy Inc","Private",null,"Data not reported to IPEDS","Data not reported to IPEDS","Data not reported to IPEDS"]
["Ohio Dominican University","Private",1826,"$3035","$0","$17937"]
["Ohio Institute of Allied Health","Private",31,"$-288","$0","$25686"]
["Ohio Northern University","Private",3111,"$1434","$0","$24768"]
["Ohio State University Agricultural Technical Institute","Public",688,"$7225","$4956","$17507"]
["Ohio State University-Lima Campus","Public",904,"$6093","$3772","$15087"]
["Ohio State University-Main Campus","Public",57861,"$10127","$7515","$26547"]
["Ohio State University-Mansfield Campus","Public",1101,"$5698","$3828","$14847"]
["Ohio State University-Marion Campus","Public",892,"$5503","$4637","$16713"]
["Ohio State University-Newark Campus","Public",2104,"$6449","$2880","$10414"]
["Ohio Technical Center at Vantage Career Center","Public",36,"$5944","$4894","$15480"]
["Ohio University-Chillicothe Campus","Public",1505,"$2812","$3475","$9780"]
["Ohio University-Eastern Campus","Public",652,"$2522","$1579","$9329"]
["Ohio University-Lancaster Campus","Public",1562,"$2704","$2124","$8197"]
["Ohio University-Main Campus","Public",28074,"$9299","$5103","$17938"]
["Ohio University-Southern Campus","Public",1320,"$2159","$3204","$9830"]
["Ohio University-Zanesville Campus","Public",1326,"$2347","$3319","$9461"]
["Ohio Valley Hospital School of Nursing","Private",36,"$-7243","$0","$41636"]
["Ohio Valley University","Private",435,"$-3961","$0","$17827"]
["Ohio Wesleyan University","Private",1664,"$-9952","$0","$36623"]
["Ohlone College","Public",6307,"$1656","$6520","$8656"]
["Ohr Hameir Theological Seminary","Private",138,"$4750","$0","$28252"]
["Okaloosa Technical College","Public",304,"$2349","$7581","$10859"]
["Oklahoma Baptist University","Private",1885,"$-2579","$0","$22032"]
["Oklahoma Christian University","Private",2472,"$9588","$0","$16438"]
["Oklahoma City Community College","Public",8477,"$2459","$3881","$6955"]
["Oklahoma City University","Private",2872,"$7423","$0","$25262"]
["Oklahoma Panhandle State University","Public",1041,"$-651","$6191","$14483"]
["Oklahoma State University Center for Health Sciences","Public",620,"$19413","$30599","$138568"]
["Oklahoma State University Institute of Technology","Public",2580,"$1576","$5380","$14001"]
["Oklahoma State University-Main Campus","Public",22809,"$5443","$8332","$14940"]
["Oklahoma State University-Oklahoma City","Public",3789,"$2089","$2993","$12752"]
["Oklahoma Technical College","Private",328,"$7646","$0","$5766"]
["Oklahoma Wesleyan University","Private",1456,"$6771","$0","$13399"]
["Old Dominion University","Public",20275,"$6005","$6773","$15764"]
["Olivet College","Private",930,"$3432","$0","$20274"]
["Olivet Nazarene University","Private",4751,"$1122","$0","$18797"]
["Olney Central College","Public",1102,"$-1102","$4275","$7701"]
["Olympic College","Public",5700,"$2246","$3836","$8972"]
["Onondaga Community College","Public",7753,"$2674","$4454","$11577"]
["Onondaga Cortland Madison BOCES","Public",482,"$4125","$0","$10797"]
["Opportunities Industrialization Center","Private",76,"$7722","$0","$9064"]
["Oral Roberts University","Private",3358,"$1960","$0","$21340"]
["Orange Coast College","Public",14348,"$1016","$4878","$8462"]
["Orange County Community College","Public",4303,"$4924","$7143","$17133"]
["Orange Technical College-Mid Florida Campus","Public",967,"$1271","$17356","$13501"]
["Orange Technical College-Orlando Campus","Public",508,"$933","$16651","$13921"]
["Orange Technical College-Westside Campus","Public",668,"$1638","$0","$10791"]
["Orange Technical College-Winter Park Campus","Public",494,"$1412","$0","$10959"]
["Orange Ulster BOCES-Practical Nursing Program","Public",61,"$8660","$0","$11295"]
["Orangeburg Calhoun Technical College","Public",1922,"$2159","$3241","$12749"]
["Oregon Coast Community College","Public",272,"$5599","$17846","$16685"]
["Oregon College of Art and Craft","Private",148,"$14270","$0","$39627"]
["Oregon College of Oriental Medicine","Private",347,"$14776","$0","$18182"]
["Oregon Health & Science University","Public",2599,"$18210","$13685","$152173"]
["Oregon Institute of Technology","Public",3158,"$5799","$7972","$17302"]
["Oregon State University","Public",25711,"$9558","$7161","$17364"]
["Oregon State University-Cascades Campus","Public",648,"Data not reported to IPEDS","Data not reported to IPEDS","Data not reported to IPEDS"]
["Orleans Niagara BOCES-Practical Nursing Program","Public",49,"$6743","$0","$11993"]
["Orleans Technical College","Private",442,"$9052","$0","$13443"]
["Otero Junior College","Public",1022,"$1497","$0","$14921"]
["Otis College of Art and Design","Private",1240,"$18785","$0","$34282"]
["Otsego Area BOCES-Practical Nursing Program","Public",44,"$577","$0","$8361"]
["Ottawa University-Jeffersonville","Private",72,"Data not reported to IPEDS","Data not reported to IPEDS","Data not reported to IPEDS"]
["Ottawa University-Kansas City","Private",470,"Data not reported to IPEDS","Data not reported to IPEDS","Data not reported to IPEDS"]
["Ottawa University-Milwaukee","Private",189,"Data not reported to IPEDS","Data not reported to IPEDS","Data not reported to IPEDS"]
["Ottawa University-Online","Private",285,"Data not reported to IPEDS","Data not reported to IPEDS","Data not reported to IPEDS"]
["Ottawa University-Ottawa","Private",622,"$25973","$0","$52281"]
["Ottawa University-Phoenix","Private",569,"Data not reported to IPEDS","Data not reported to IPEDS","Data not reported to IPEDS"]
["Otterbein University","Private",2656,"$2783","$0","$24015"]
["Ouachita Baptist University","Private",1458,"$-1888","$0","$22962"]
["Our Lady of the Lake University","Private",2700,"$13118","$0","$23273"]
["Owens Community College","Public",6794,"$3479","$4663","$11047"]
["Owensboro Community and Technical College","Public",2191,"$-1059","$2540","$9274"]
["Oxford Graduate School","Private",27,"$8651","$0","$12872"]
["Oxnard College","Public",4186,"$288","$8189","$9946"]
["Ozark Christian College","Private",569,"$5540","$0","$16423"]
["Ozarka College","Public",813,"$528","$5958","$11116"]
["Ozarks Technical Community College","Public",9511,"$1849","$2525","$8462"]
["PACIFIC BIBLE COLLEGE","Private",14,"$4642","$0","$16755"]
["Pace University-New York","Private",12422,"$8525","$68","$25163"]
["Pacific Lutheran Theological Seminary","Private",null,"Data not reported to IPEDS","Data not reported to IPEDS","Data not reported to IPEDS"]
["Pacific Lutheran University","Private",3291,"$3787","$0","$21184"]
["Pacific Northwest College of Art","Private",491,"$6906","$0","$44820"]
["Pacific Northwest University of Health Sciences","Private",495,"$49294","$0","$42095"]
["Pacific Oaks College","Private",857,"$21283","$0","$20637"]
["Pacific Rim Christian University","Private",85,"$8692","$0","$11970"]
["Pacific School of Religion","Private",113,"$-184","$0","$53784"]
["Pacific States University","Private",152,"$14362","$0","$15164"]
["Pacific Union College","Private",1442,"$6965","$0","$23293"]
["Pacific University","Private",3923,"$13446","$0","$25631"]
["Paine College","Private",545,"$7702","$0","$28612"]
["Palm Beach Atlantic University","Private",3405,"$7809","$0","$19827"]
["Palm Beach State College","Public",19729,"$1686","$2952","$7931"]
["Palmer College of Chiropractic","Private",2374,"$26489","$0","$27380"]
["Palo Alto College","Public",5678,"$271","$5342","$8817"]
["Palo Alto University","Private",1132,"$24529","$0","$27409"]
["Palo Verde College","Public",1740,"$399","$8770","$10114"]
["Palomar College","Public",14820,"$1009","$8384","$12473"]
["Pamlico Community College","Public",372,"$1204","$12774","$19743"]
["Panola College","Public",1916,"$1073","$7780","$8490"]
["Paradise Valley Community College","Public",4641,"$1843","$7201","$11454"]
["Pardee RAND Graduate School","Private",107,"$1647","$0","$30719"]
["Paris Junior College","Public",3427,"$1192","$3849","$7287"]
["Park University","Private",7373,"$8353","$0","$8990"]
["Parker University","Private",1194,"$25003","$0","$36202"]
["Parkland College","Public",6230,"$3148","$4531","$12262"]
["Pasadena City College","Public",18897,"$1256","$6304","$8392"]
["Pasco-Hernando State College","Public",7770,"$1274","$3589","$8082"]
["Passaic County Community College","Public",5653,"$1657","$3466","$10621"]
["Patrick Henry Community College","Public",1816,"$1896","$4549","$10228"]
["Paul D Camp Community College","Public",832,"$2875","$6318","$13416"]
["Paul Quinn College","Private",445,"$3759","$0","$21641"]
["Paul Smiths College of Arts and Science","Private",865,"$199","$0","$22476"]
["Payne Theological Seminary","Private",132,"$11662","$0","$22135"]
["Pearl River Community College","Public",3785,"$-361","$5619","$10994"]
["Peirce College","Private",1097,"$13255","$0","$19440"]
["Pellissippi State Community College","Public",6790,"$2450","$3794","$10342"]
["Peninsula College","Public",1854,"$1748","$6127","$13662"]
["Pennsylvania Academy of the Fine Arts","Private",301,"$8520","$0","$58927"]
["Pennsylvania College of Art and Design","Private",207,"$20554","$0","$29543"]
["Pennsylvania College of Health Sciences","Private",994,"$17561","$0","$28886"]
["Pennsylvania College of Technology","Public",5067,"$17750","$3943","$26730"]
["Pennsylvania Highlands Community College","Public",1288,"$3623","$2872","$11422"]
["Pennsylvania Institute of Technology","Private",745,"$11199","$0","$18693"]
["Pennsylvania State System of Higher Education-Central Office","Public",null,"Data not reported to IPEDS","Data not reported to IPEDS","Data not reported to IPEDS"]
["Pennsylvania State University-College of Medicine","Public",853,"Data not reported to IPEDS","Data not reported to IPEDS","Data not reported to IPEDS"]
["Pennsylvania State University-Dickinson Law","Public",158,"Data not reported to IPEDS","Data not reported to IPEDS","Data not reported to IPEDS"]
["Pennsylvania State University-Main Campus","Public",49325,"$29724","$5575","$41341"]
["Pennsylvania State University-Penn State Abington","Public",3657,"Data not reported to IPEDS","Data not reported to IPEDS","Data not reported to IPEDS"]
["Pennsylvania State University-Penn State Altoona","Public",3781,"Data not reported to IPEDS","Data not reported to IPEDS","Data not reported to IPEDS"]
["Pennsylvania State University-Penn State Beaver","Public",668,"Data not reported to IPEDS","Data not reported to IPEDS","Data not reported to IPEDS"]
["Pennsylvania State University-Penn State Berks","Public",2835,"Data not reported to IPEDS","Data not reported to IPEDS","Data not reported to IPEDS"]
["Pennsylvania State University-Penn State Brandywine","Public",1337,"Data not reported to IPEDS","Data not reported to IPEDS","Data not reported to IPEDS"]
["Pennsylvania State University-Penn State DuBois","Public",556,"Data not reported to IPEDS","Data not reported to IPEDS","Data not reported to IPEDS"]
["Pennsylvania State University-Penn State Erie-Behrend College","Public",4369,"Data not reported to IPEDS","Data not reported to IPEDS","Data not reported to IPEDS"]
["Pennsylvania State University-Penn State Fayette- Eberly","Public",638,"Data not reported to IPEDS","Data not reported to IPEDS","Data not reported to IPEDS"]
["Pennsylvania State University-Penn State Great Valley","Public",275,"Data not reported to IPEDS","Data not reported to IPEDS","Data not reported to IPEDS"]
["Pennsylvania State University-Penn State Greater Allegheny","Public",529,"Data not reported to IPEDS","Data not reported to IPEDS","Data not reported to IPEDS"]
["Pennsylvania State University-Penn State Harrisburg","Public",4336,"Data not reported to IPEDS","Data not reported to IPEDS","Data not reported to IPEDS"]
["Pennsylvania State University-Penn State Hazleton","Public",785,"Data not reported to IPEDS","Data not reported to IPEDS","Data not reported to IPEDS"]
["Pennsylvania State University-Penn State Lehigh Valley","Public",820,"Data not reported to IPEDS","Data not reported to IPEDS","Data not reported to IPEDS"]
["Pennsylvania State University-Penn State Mont Alto","Public",752,"Data not reported to IPEDS","Data not reported to IPEDS","Data not reported to IPEDS"]
["Pennsylvania State University-Penn State New Kensington","Public",589,"Data not reported to IPEDS","Data not reported to IPEDS","Data not reported to IPEDS"]
["Pennsylvania State University-Penn State Schuylkill","Public",722,"Data not reported to IPEDS","Data not reported to IPEDS","Data not reported to IPEDS"]
["Pennsylvania State University-Penn State Shenango","Public",373,"Data not reported to IPEDS","Data not reported to IPEDS","Data not reported to IPEDS"]
["Pennsylvania State University-Penn State Wilkes-Barre","Public",475,"Data not reported to IPEDS","Data not reported to IPEDS","Data not reported to IPEDS"]
["Pennsylvania State University-Penn State Worthington Scranton","Public",930,"Data not reported to IPEDS","Data not reported to IPEDS","Data not reported to IPEDS"]
["Pennsylvania State University-Penn State York","Public",942,"Data not reported to IPEDS","Data not reported to IPEDS","Data not reported to IPEDS"]
["Pennsylvania State University-World Campus","Public",6867,"Data not reported to IPEDS","Data not reported to IPEDS","Data not reported to IPEDS"]
["Pensacola State College","Public",6667,"$1654","$5232","$9941"]
["Penta County Joint Vocational School","Public",85,"$8473","$6046","$18631"]
["Pentecostal Theological Seminary","Private",285,"$5849","$0","$12110"]
["Pepperdine University","Private",7612,"$17083","$0","$36004"]
["Peralta Community College System Office","Public",null,"Data not reported to IPEDS","Data not reported to IPEDS","Data not reported to IPEDS"]
["Perry Technical Institute","Private",1207,"$9280","$0","$11092"]
["Peru State College","Public",1772,"$2910","$5535","$14532"]
["Pfeiffer University","Private",1301,"$4016","$0","$19933"]
["Philadelphia College of Osteopathic Medicine","Private",2726,"$37942","$0","$38895"]
["Philadelphia Technician Training","Private",288,"$5137","$0","$9043"]
["Philander Smith College","Private",593,"$2570","$0","$25453"]
["Phillips Community College of the University of Arkansas","Public",942,"$-25","$13186","$17914"]
["Phillips Graduate University","Private",295,"$13049","$0","$16592"]
["Phillips School of Nursing at Mount Sinai Beth Israel","Private",180,"$14257","$0","$21895"]
["Phillips Theological Seminary","Private",59,"$-3997","$0","$56256"]
["Phoenix College","Public",6621,"$1206","$6462","$10950"]
["Phoenix Seminary","Private",132,"$4963","$0","$38880"]
["Pickaway Ross Joint Vocational School District","Public",149,"$6342","$0","$21164"]
["Pickens Technical College","Public",589,"$2109","$3132","$14959"]
["Piedmont College","Private",2113,"$6773","$0","$16951"]
["Piedmont Community College","Public",943,"$1154","$12401","$15478"]
["Piedmont International University","Private",501,"$3452","$0","$10658"]
["Piedmont International University","Private",null,"Data not reported to IPEDS","Data not reported to IPEDS","Data not reported to IPEDS"]
["Piedmont Technical College","Public",3714,"$3040","$2703","$10326"]
["Piedmont Virginia Community College","Public",2983,"$3486","$3338","$8805"]
["Pierce College-Fort Steilacoom","Public",4684,"$3288","$3514","$10313"]
["Pierce College-Puyallup","Public",2899,"$3256","$3480","$10213"]
["Pierpont Community and Technical College","Public",1365,"$2732","$5296","$13636"]
["Pike County Joint Vocational School District","Public",58,"$1164","$0","$1655"]
["Pike-Lincoln Technical Center","Public",20,"$1679","$0","$17738"]
["Pikes Peak Community College","Public",9092,"$4655","$0","$8616"]
["Pillar College","Private",373,"$19750","$0","$21152"]
["Pima Community College","Public",14489,"$1776","$7128","$12735"]
["Pinchot University","Private",75,"Data not reported to IPEDS","Data not reported to IPEDS","Data not reported to IPEDS"]
["Pine Manor College","Private",493,"$6414","$0","$30755"]
["Pine Technical & Community College","Public",728,"$1791","$5426","$12663"]
["Pinellas Technical College-Clearwater","Public",771,"$2155","$18037","$9071"]
["Pinellas Technical College-St. Petersburg","Public",638,"$3056","$16764","$14264"]
["Pioneer Career and Technology Center","Public",8,"$2139","$19357","$27662"]
["Pioneer Technology Center","Public",345,"$1592","$23749","$35014"]
["Pitt Community College","Public",7125,"$843","$4901","$7391"]
["Pittsburg State University","Public",6712,"$4755","$5053","$12269"]
["Pittsburgh Institute of Aeronautics","Private",503,"$16250","$0","$9736"]
["Pittsburgh Institute of Mortuary Science Inc","Private",261,"$8938","$0","$8973"]
["Pittsburgh Theological Seminary","Private",154,"$-2290","$0","$60034"]
["Pitzer College","Private",1023,"$35580","$0","$58527"]
["Platt Technical High School","Public",10,"$863","$30596","$30596"]
["Plymouth State University","Public",4612,"$7183","$2483","$16649"]
["Point Loma Nazarene University","Private",3450,"$14446","$0","$25884"]
["Point Park University","Private",3779,"$8011","$0","$19875"]
["Point University","Private",1344,"$4850","$0","$18567"]
["Polaris Career Center","Public",158,"$14807","$0","$16507"]
["Polk State College","Public",7287,"$1706","$3993","$11006"]
["Polytechnic University of Puerto Rico-Miami","Private",103,"$7471","$0","$13173"]
["Polytechnic University of Puerto Rico-Orlando","Private",102,"$10228","$0","$23792"]
["Pomeroy College of Nursing at Crouse Hospital","Private",203,"$9213","$804","$22593"]
["Pomona College","Private",1636,"$1120","$0","$91081"]
["Pomona Unified School District Adult and Career Education","Public",243,"$2442","$6476","$7823"]
["Pontifical College Josephinum","Private",201,"$20012","$0","$39220"]
["Pontifical Faculty of the Immaculate Conception at the Dominican House of Studies","Private",106,"$12337","$0","$23366"]
["Pontifical John Paul II Institute for Studies on Marriage and Family","Private",36,"$-5236","$0","$256732"]
["Pontotoc Technology Center","Public",135,"$2187","$30856","$34265"]
["Pope St John XXIII National Seminary","Private",53,"$31717","$0","$58477"]
["Poplar Bluff Technical Career Center","Public",88,"$3706","$0","$15232"]
["Portage Lakes Career Center","Public",81,"$1469","$0","$7349"]
["Porterville College","Public",2570,"$409","$6875","$11220"]
["Portland Actors Conservatory","Private",30,"$7887","$0","$20682"]
["Portland Community College","Public",20234,"$3256","$8349","$14290"]
["Portland State University","Public",21061,"$7716","$3927","$15115"]
["Potomac State College of West Virginia University","Public",1199,"Data not reported to IPEDS","Data not reported to IPEDS","Data not reported to IPEDS"]
["Prairie State College","Public",3620,"$1746","$6690","$11277"]
["Prairie View A & M University","Public",7653,"$3767","$7504","$15640"]
["Pratt Community College","Public",881,"$986","$10269","$10796"]
["Pratt Institute-Main","Private",4861,"$20986","$60","$32878"]
["Precision Manufacturing Institute","Private",62,"$15366","$0","$22908"]
["Presbyterian College","Private",1349,"$-49","$0","$30752"]
["Prescott College","Private",638,"$12110","$0","$19594"]
["Presentation College","Private",644,"$9269","$0","$20582"]
["Presidio Graduate School","Private",100,"$-21239","$0","$40182"]
["Prince George's Community College","Public",7664,"$3478","$7531","$17312"]
["Princeton Theological Seminary","Private",552,"$-8791","$0","$112099"]
["Princeton University","Private",8247,"$-19022","$0","$113697"]
["Principia College","Private",476,"$-16998","$0","$81496"]
["Professional Business College","Private",null,"Data not reported to IPEDS","Data not reported to IPEDS","Data not reported to IPEDS"]
["Providence Christian College","Private",139,"$6658","$0","$57781"]
["Providence College","Private",4493,"$10389","$0","$32393"]
["Pueblo Community College","Public",4152,"$3481","$0","$10962"]
["Purdue University-Calumet Campus","Public",6939,"$6943","$4584","$14074"]
["Purdue University-Main Campus","Public",39815,"$12839","$7851","$25076"]
["Purdue University-North Central Campus","Public",3672,"$4195","$4877","$9990"]
["Putnam Career and Technical Center","Public",81,"$3752","$0","$6098"]
["Putnam Westchester BOCES-Practical Nursing Program","Public",33,"$13154","$0","$12893"]
["Queens University of Charlotte","Private",2101,"$4471","$0","$28089"]
["Quincy College","Public",3429,"$6446","$0","$10897"]
["Quincy University","Private",1382,"$-4565","$0","$13444"]
["Quinebaug Valley Community College","Public",906,"$1615","$12900","$19467"]
["Quinnipiac University","Private",10040,"$16454","$0","$25403"]
["Quinsigamond Community College","Public",5241,"$3535","$5076","$14492"]
["RIVEROAK Technical College","Public",115,"$2369","$2645","$17438"]
["Rabbi Jacob Joseph School","Private",102,"$-216","$0","$24227"]
["Rabbinical Academy Mesivta Rabbi Chaim Berlin","Private",242,"$-14071","$0","$9459"]
["Rabbinical College Beth Shraga","Private",51,"$14541","$0","$45679"]
["Rabbinical College Bobover Yeshiva Bnei Zion","Private",335,"$6919","$0","$8824"]
["Rabbinical College Ohr Yisroel","Private",108,"$5599","$0","$7303"]
["Rabbinical College Telshe","Private",87,"$3591","$0","$33344"]
["Rabbinical College of America","Private",238,"$6427","$0","$18589"]
["Rabbinical College of Ch'san Sofer New York","Private",null,"Data not reported to IPEDS","Data not reported to IPEDS","Data not reported to IPEDS"]
["Rabbinical College of Long Island","Private",160,"$5520","$0","$41112"]
["Rabbinical College of Ohr Shimon Yisroel","Private",194,"$8692","$0","$11440"]
["Rabbinical Seminary of America","Private",501,"$-3098","$0","$9657"]
["Radford M Locklin Technical Center","Public",272,"$1456","$0","$8206"]
["Radford University","Public",9487,"$5946","$5955","$15145"]
["Rainy River Community College","Public",270,"$2719","$7107","$16107"]
["Ralph R Willis Career and Technical Center","Public",54,"$2036","$0","$3561"]
["Ramapo College of New Jersey","Public",5578,"$8652","$7035","$23195"]
["Rancho Santiago Community College District Office","Public",null,"Data not reported to IPEDS","Data not reported to IPEDS","Data not reported to IPEDS"]
["Randall University","Private",289,"$2924","$0","$14128"]
["Randolph College","Private",690,"$-7093","$0","$42156"]
["Randolph Community College","Public",2328,"$825","$6371","$8464"]
["Randolph Technical Center","Public",16,"$5631","$0","$16212"]
["Randolph-Macon College","Private",1391,"$-3230","$0","$31441"]
["Ranger College","Public",1486,"$1429","$2932","$6567"]
["Ranken Technical College","Private",1918,"$9616","$0","$14042"]
["Rappahannock Community College","Public",1903,"$3221","$4276","$11113"]
["Raritan Valley Community College","Public",5578,"$3836","$3302","$9431"]
["Reading Area Community College","Public",2492,"$5924","$4759","$14778"]
["Reading Hospital School of Health Sciences","Private",404,"$10116","$0","$26184"]
["Reconstructionist Rabbinical College","Private",38,"$-43","$0","$107547"]
["Red River Technology Center","Public",270,"$1511","$9319","$9116"]
["Red Rocks Community College","Public",5909,"$4936","$0","$8836"]
["Redlands Community College","Public",1290,"$207","$3976","$9390"]
["Reed College","Private",1416,"$11147","$0","$54674"]
["Reedley College","Public",6127,"$406","$8087","$9154"]
["Reformed Presbyterian Theological Seminary","Private",79,"$2167","$0","$24740"]
["Regent University","Private",5447,"$9918","$0","$16784"]
["Regional Center for Border Health","Private",47,"$12946","$0","$19250"]
["Regional West Medical Center School of Radiologic Technology","Private",9,"Data not reported to IPEDS","Data not reported to IPEDS","Data not reported to IPEDS"]
["Regis College","Private",1781,"$7456","$0","$27917"]
["Regis University","Private",6717,"$10417","$0","$18411"]
["Reid State Technical College","Public",428,"$941","$10796","$13731"]
["Reinhardt University","Private",1312,"$5794","$0","$19492"]
["Relay Graduate School of Education","Private",1427,"$11754","$0","$20952"]
["Remington College of Nursing Orlando","Private",null,"Data not reported to IPEDS","Data not reported to IPEDS","Data not reported to IPEDS"]
["Remington College-Baton Rouge Campus","Private",166,"$7828","$0","$13472"]
["Remington College-Cleveland Campus","Private",737,"$10993","$0","$11919"]
["Remington College-Columbia Campus","Private",381,"$9484","$0","$9757"]
["Remington College-Dallas Campus","Private",1137,"$10770","$0","$10499"]
["Remington College-Fort Worth Campus","Private",601,"$11615","$0","$11600"]
["Remington College-Heathrow Campus","Private",285,"$11387","$5","$7960"]
["Remington College-Honolulu Campus","Private",550,"$12290","$0","$13442"]
["Remington College-Houston Campus","Private",105,"Data not reported to IPEDS","Data not reported to IPEDS","Data not reported to IPEDS"]
["Remington College-Houston Southeast Campus","Private",459,"$10289","$0","$11397"]
["Remington College-Lafayette Campus","Private",431,"$11263","$0","$11013"]
["Remington College-Little Rock Campus","Private",68,"$5817","$0","$24413"]
["Remington College-Memphis Campus","Private",892,"$10473","$0","$9628"]
["Remington College-Mobile Campus","Private",562,"$10023","$0","$9755"]
["Remington College-Nashville Campus","Private",444,"$11659","$0","$12793"]
["Remington College-North Houston Campus","Private",654,"$11390","$0","$11051"]
["Remington College-Shreveport Campus","Private",477,"$8544","$0","$8914"]
["Remington College-Tampa Campus","Private",52,"Data not reported to IPEDS","Data not reported to IPEDS","Data not reported to IPEDS"]
["Rend Lake College","Public",2187,"$1378","$7084","$11773"]
["Rensselaer Polytechnic Institute","Private",7277,"$5083","$77","$29605"]
["Rensselaer at Hartford","Private",46,"$32391","$0","$86326"]
["Renton Technical College","Public",2702,"$1854","$6693","$14350"]
["Resurrection University","Private",569,"$20694","$0","$24369"]
["Rhode Island College","Public",7178,"$6552","$6240","$15179"]
["Rhode Island School of Design","Private",2528,"$30013","$0","$43782"]
["Rhodes College","Private",2204,"$-1110","$0","$34613"]
["Rice University","Private",7312,"$6110","$0","$66810"]
["Richard Bland College of William and Mary","Public",1249,"$1995","$5270","$11844"]
["Richland College","Public",11170,"$1592","$5572","$7640"]
["Richland Community College","Public",2122,"$171","$5339","$13361"]
["Richmond Community College","Public",2042,"$429","$6939","$8366"]
["Richmont Graduate University","Private",245,"$13341","$0","$13470"]
["Rider University","Private",4623,"$6575","$32","$30542"]
["Ridge Technical College","Public",278,"$4215","$12778","$14723"]
["Ridgewater College","Public",2737,"$3835","$6038","$14512"]
["Ringling College of Art and Design","Private",1147,"$26900","$0","$48699"]
["Rio Grande Bible Institute","Private",147,"$4498","$0","$32990"]
["Rio Hondo College","Public",9486,"$-827","$8102","$12306"]
["Rio Salado College","Public",12682,"$2539","$4308","$4806"]
["Ripon College","Private",848,"$-2862","$0","$31189"]
["River Parishes Community College","Public",1261,"$2688","$2684","$6149"]
["River Valley Community College","Public",611,"$6771","$8120","$19173"]
["Riverland Community College","Public",1998,"$3599","$6106","$14675"]
["Riverside City College","Public",11998,"$674","$6999","$9320"]
["Riverside College of Health Careers","Private",203,"$15459","$1271","$33374"]
["Riverside County Office of Education-School of Career Education","Public",141,"$4196","$7213","$12712"]
["Rivier University","Private",2357,"$8985","$0","$14111"]
["Roane State Community College","Public",3608,"$2403","$5042","$12077"]
["Roane-Jackson Technical Center","Public",33,"$5337","$0","$84053"]
["Roanoke College","Private",2258,"$-1212","$0","$24557"]
["Roanoke-Chowan Community College","Public",534,"$571","$12581","$14420"]
["Robert Morgan Educational Center and Technical College","Public",576,"$2690","$0","$18064"]
["Robert Morris University","Private",4977,"$10461","$0","$21534"]
["Robert Morris University Illinois","Private",3302,"$6676","$0","$27641"]
["Roberts Wesleyan College","Private",1609,"$5516","$382","$23015"]
["Robeson Community College","Public",1496,"$514","$10704","$15923"]
["Rochester College","Private",957,"$6668","$0","$13768"]
["Rochester Community and Technical College","Public",3948,"$3460","$4576","$12451"]
["Rochester Institute of Technology","Private",13906,"$8345","$69","$29819"]
["Rock Valley College","Public",5572,"$2010","$7184","$11746"]
["Rockefeller University","Private",61,"$0","$0","$305962"]
["Rockford University","Private",1214,"$6406","$0","$21196"]
["Rockhurst University","Private",2138,"$1391","$0","$20208"]
["Rockingham Community College","Public",1270,"$859","$8775","$13613"]
["Rockland Community College","Public",5199,"$2741","$7088","$15626"]
["Rockland County BOCES-Practical Nursing Program","Public",81,"$9849","$0","$5391"]
["Rocky Mountain College","Private",1102,"$1663","$0","$19114"]
["Roger Williams University","Private",4410,"$9696","$0","$27875"]
["Roger Williams University School of Law","Private",381,"$13888","$0","$29251"]
["Rogers State University","Public",2988,"$2822","$4197","$11503"]
["Rogue Community College","Public",3009,"$5165","$8663","$15635"]
["Rolf Institute of Structural Integration","Private",50,"$20015","$0","$34090"]
["Rolla Technical Institute/Center","Public",167,"$3879","$0","$9240"]
["Rollins College","Private",3481,"$8082","$0","$31230"]
["Roosevelt University","Private",4223,"$13506","$0","$27091"]
["Rosalind Franklin University of Medicine and Science","Private",2214,"$32329","$0","$34901"]
["Rose State College","Public",4264,"$1195","$7070","$10086"]
["Rose-Hulman Institute of Technology","Private",2253,"$7738","$0","$36883"]
["Rosedale Bible College","Private",48,"$2243","$0","$17604"]
["Rosedale Technical College","Private",862,"$8009","$158","$8922"]
["Roseman University of Health Sciences","Private",1656,"$45726","$0","$43586"]
["Rosemont College","Private",747,"$-797","$0","$21653"]
["Rowan College at Burlington County","Public",6996,"$2856","$1264","$6819"]
["Rowan College at Gloucester County","Public",5229,"$3824","$2544","$9730"]
["Rowan University","Public",14513,"$10090","$10792","$27560"]
["Rowan-Cabarrus Community College","Public",4387,"$835","$8347","$10235"]
["Roxbury Community College","Public",1415,"$2066","$10271","$19436"]
["Rudolf Steiner College","Private",85,"Data not reported to IPEDS","Data not reported to IPEDS","Data not reported to IPEDS"]
["Rush University","Private",2426,"$26154","$0","$27722"]
["Rust College","Private",713,"$10409","$0","$18550"]
["Rutgers University-Camden","Public",5808,"$12671","$5095","$31153"]
["Rutgers University-New Brunswick","Public",48065,"$12723","$14399","$24890"]
["Rutgers University-Newark","Public",10303,"$17280","$5240","$32354"]
["SABER College","Private",519,"$12350","$0","$16891"]
["SIT Graduate Institute","Private",304,"$129294","$0","$139905"]
["SOWELA Technical Community College","Public",2415,"$1969","$2899","$9028"]
["SUM Bible College and Theological Seminary","Private",701,"$4486","$0","$4963"]
["SUNY Broome Community College","Public",5031,"$2234","$4954","$13462"]
["SUNY Buffalo State","Public",8891,"$3622","$10014","$21465"]
["SUNY College at Brockport","Public",7436,"$4654","$10358","$22075"]
["SUNY College at Geneseo","Public",5510,"$5324","$9315","$20765"]
["SUNY College at Old Westbury","Public",4067,"$4022","$10173","$22684"]
["SUNY College at Oswego","Public",7571,"$4378","$9461","$21290"]
["SUNY College at Plattsburgh","Public",5502,"$4315","$9955","$22717"]
["SUNY College at Potsdam","Public",3914,"$2690","$11876","$26096"]
["SUNY College of Agriculture and Technology at Cobleskill","Public",2376,"$3601","$11789","$28101"]
["SUNY College of Environmental Science and Forestry","Public",2080,"$2629","$21406","$31350"]
["SUNY College of Optometry","Public",382,"$26865","$69485","$105959"]
["SUNY College of Technology at Alfred","Public",3597,"$2108","$8530","$20029"]
["SUNY College of Technology at Canton","Public",3050,"$3390","$8776","$20003"]
["SUNY College of Technology at Delhi","Public",3017,"$3445","$8507","$19754"]
["SUNY Cortland","Public",6695,"$5002","$9553","$21609"]
["SUNY Downstate Medical Center","Public",1736,"$23114","$142343","$120861"]
["SUNY Empire State College","Public",8673,"$4355","$5111","$15751"]
["SUNY Maritime College","Public",2204,"$5655","$13088","$28109"]
["SUNY Oneonta","Public",5870,"$4095","$9581","$21116"]
["SUNY Polytechnic Institute","Public",2254,"$5401","$16165","$24146"]
["SUNY Westchester Community College","Public",9596,"$3531","$7566","$16722"]
["SUNY at Albany","Public",15656,"$5255","$12305","$24221"]
["SUNY at Fredonia","Public",4876,"$4436","$11065","$21863"]
["SUNY at Purchase College","Public",4186,"$6107","$13204","$32378"]
["SUNY-System Office","Public",null,"Data not reported to IPEDS","Data not reported to IPEDS","Data not reported to IPEDS"]
["Sacramento City College","Public",14331,"$550","$5621","$7837"]
["Sacred Heart Major Seminary","Private",236,"$11967","$0","$40478"]
["Sacred Heart Seminary and School of Theology","Private",95,"$17979","$0","$87318"]
["Sacred Heart University","Private",7767,"$12743","$0","$20420"]
["Saddleback College","Public",12658,"$1777","$8554","$10650"]
["Saginaw Chippewa Tribal College","Public",70,"$1388","$2857","$20580"]
["Saginaw Valley State University","Public",8326,"$6288","$3385","$13688"]
["Saint Ambrose University","Private",3225,"$4379","$0","$18832"]
["Saint Anselm College","Private",1926,"$3062","$0","$34265"]
["Saint Anthony College of Nursing","Private",266,"$19754","$0","$16790"]
["Saint Augustine College","Private",1153,"$6413","$0","$9455"]
["Saint Augustine's University","Private",794,"$5429","$0","$27774"]
["Saint Catharine College","Private",null,"Data not reported to IPEDS","Data not reported to IPEDS","Data not reported to IPEDS"]
["Saint Charles Borromeo Seminary-Overbrook","Private",188,"$15052","$158","$69087"]
["Saint Cloud State University","Public",11589,"$4680","$5517","$14322"]
["Saint Edward's University","Private",4097,"$8987","$0","$26335"]
["Saint Elizabeth College of Nursing","Private",157,"$8368","$0","$28506"]
["Saint Elizabeth School of Nursing","Private",206,"$1593","$0","$17225"]
["Saint Francis Medical Center College of Nursing","Private",496,"$10824","$0","$15478"]
["Saint Francis Medical Center School of Nursing","Private",40,"$7592","$0","$20796"]
["Saint Francis University","Private",2835,"$3298","$0","$20239"]
["Saint John Fisher College","Private",3750,"$11226","$0","$21988"]
["Saint John Vianney College Seminary","Private",95,"$29297","$0","$32782"]
["Saint John's Seminary","Private",187,"$1498","$0","$60062"]
["Saint Johns River State College","Public",4479,"$1753","$4516","$9116"]
["Saint Johns University","Private",1767,"$-1605","$0","$34699"]
["Saint Joseph Seminary College","Private",147,"$15904","$658","$52939"]
["Saint Joseph's College of Maine","Private",1995,"$3848","$0","$18983"]
["Saint Joseph's University","Private",7345,"$10360","$0","$26458"]
["Saint Josephs College","Private",1087,"$-4145","$0","$23420"]
["Saint Leo University","Private",14442,"$8733","$0","$11408"]
["Saint Louis Christian College","Private",123,"$9299","$0","$24633"]
["Saint Louis Community College","Public",13143,"$1612","$8100","$14197"]
["Saint Louis University","Private",12281,"$9640","$0","$31413"]
["Saint Luke's College of Health Sciences","Private",464,"$13869","$0","$8513"]
["Saint Martin's University","Private",1395,"$5875","$0","$23616"]
["Saint Mary's College","Private",1726,"$-489","$4","$32224"]
["Saint Mary's College of California","Private",3944,"$11387","$0","$33616"]
["Saint Mary's University of Minnesota","Private",4139,"$8293","$0","$15431"]
["Saint Mary-of-the-Woods College","Private",662,"$3547","$0","$25948"]
["Saint Meinrad School of Theology","Private",182,"$13054","$0","$41211"]
["Saint Michael's College","Private",2315,"$6138","$0","$26200"]
["Saint Norbert College","Private",2179,"$2740","$0","$25935"]
["Saint Paul College","Public",4546,"$2053","$3928","$10213"]
["Saint Paul School of Theology","Private",106,"$2673","$0","$50310"]
["Saint Peter's University","Private",2974,"$3290","$0","$23805"]
["Saint Vincent College","Private",1841,"$-1950","$0","$21936"]
["Saint Vincent Seminary","Private",59,"Data not reported to IPEDS","Data not reported to IPEDS","Data not reported to IPEDS"]
["Saint Vincent de Paul Regional Seminary","Private",153,"$21735","$0","$21964"]
["Saint Vladimirs Orthodox Theological Seminary","Private",74,"$-1147","$0","$54249"]
["Saint Xavier University","Private",3389,"$6680","$0","$21152"]
["Salem College","Private",1072,"$-7421","$0","$25483"]
["Salem Community College","Public",866,"$4603","$5476","$12563"]
["Salem State University","Public",7838,"$7533","$7198","$16893"]
["Salina Area Technical College","Public",355,"$1897","$7513","$15123"]
["Saline County Career Center","Public",33,"$2064","$0","$8004"]
["Salisbury University","Public",8313,"$6012","$5785","$13620"]
["Salish Kootenai College","Private",717,"$-449","$677","$23370"]
["Salt Lake Community College","Public",17765,"$3245","$5423","$10873"]
["Salus University","Private",1641,"$21424","$0","$21394"]
["Salve Regina University","Private",2470,"$4230","$0","$22262"]
["Sam Houston State University","Public",17375,"$5617","$3920","$12421"]
["Samaritan Hospital School of Nursing","Private",93,"$13102","$0","$20221"]
["Samford University","Private",5462,"$11118","$0","$28376"]
["Sampson Community College","Public",980,"$809","$10431","$13648"]
["Samuel Merritt University","Private",1940,"$27381","$0","$33165"]
["San Antonio College","Public",13373,"$676","$4330","$7754"]
["San Bernardino Community College District","Public",null,"Data not reported to IPEDS","Data not reported to IPEDS","Data not reported to IPEDS"]
["San Bernardino Valley College","Public",8414,"$523","$7711","$8263"]
["San Diego Christian College","Private",789,"$13812","$0","$24549"]
["San Diego City College","Public",8843,"$-871","$9718","$10505"]
["San Diego Community College District-District Office","Public",null,"Data not reported to IPEDS","Data not reported to IPEDS","Data not reported to IPEDS"]
["San Diego Mesa College","Public",13430,"$-540","$7063","$8215"]
["San Diego Miramar College","Public",6213,"$-589","$8111","$9438"]
["San Diego State University","Public",30715,"$4935","$5465","$15365"]
["San Francisco Art Institute","Private",611,"$15430","$0","$30571"]
["San Francisco Conservatory of Music","Private",390,"$5190","$0","$54711"]
["San Francisco State University","Public",25389,"$3257","$5721","$15000"]
["San Francisco Theological Seminary","Private",102,"$-480","$0","$68397"]
["San Jacinto Community College","Public",13500,"$2517","$9577","$14788"]
["San Joaquin College of Law","Private",155,"$22489","$0","$20521"]
["San Joaquin Delta College","Public",12624,"$520","$6758","$9622"]
["San Jose City College","Public",4784,"$-4","$7880","$15519"]
["San Jose State University","Public",25393,"$5935","$5404","$16295"]
["San Jose-Evergreen Community College District","Public",null,"Data not reported to IPEDS","Data not reported to IPEDS","Data not reported to IPEDS"]
["San Juan College","Public",4813,"$854","$8550","$13151"]
["San Mateo County Community College District Office","Public",null,"Data not reported to IPEDS","Data not reported to IPEDS","Data not reported to IPEDS"]
["Sandhills Community College","Public",3031,"$966","$7421","$9494"]
["Sandusky Career Center","Public",76,"$6736","$0","$13498"]
["Sanford Burnham Prebys Medical Discovery Institute","Private",null,"Data not reported to IPEDS","Data not reported to IPEDS","Data not reported to IPEDS"]
["Sanford Medical Center","Private",48,"$839","$0","$4107"]
["Santa Ana College","Public",11751,"$644","$7915","$9453"]
["Santa Barbara City College","Public",12752,"$-115","$4583","$10727"]
["Santa Clara University","Private",8702,"$17315","$0","$37122"]
["Santa Fe College","Public",10686,"$2340","$3542","$8700"]
["Santa Fe Community College","Public",2694,"$1657","$14293","$13843"]
["Santa Monica College","Public",21581,"$2785","$4761","$11743"]
["Santa Rosa Junior College","Public",12955,"$1154","$7289","$12511"]
["Santiago Canyon College","Public",6358,"$592","$7272","$8502"]
["Sarah Lawrence College","Private",1598,"$7889","$106","$49818"]
["Sauk Valley Community College","Public",1421,"$1044","$5523","$12367"]
["Savannah College of Art and Design","Private",11360,"$17177","$0","$23434"]
["Savannah State University","Public",4425,"$1388","$4975","$13350"]
["Savannah Technical College","Public",3114,"$2129","$4232","$8873"]
["Saybrook University","Private",425,"$20662","$0","$26787"]
["Schenectady County Community College","Public",3321,"$1191","$4411","$11348"]
["School District of Indian River County-Technical Center for Career and Adult Education","Public",66,"$1790","$17211","$21357"]
["School of Architecture at Taliesin","Private",7,"$81600","$0","$101170"]
["School of Missionary Aviation Technology","Private",63,"$8248","$0","$24322"]
["School of Professional Horticulture  New York Botanical Garden","Private",27,"$5889","$0","$7691"]
["School of the Art Institute of Chicago","Private",3422,"$20652","$0","$39195"]
["School of the Museum of Fine Arts at Tufts University","Private",520,"$18376","$0","$47899"]
["Schoolcraft College","Public",8930,"$3216","$4190","$10985"]
["Schreiner University","Private",1193,"$5401","$0","$22245"]
["Schuyler Steuben Chemung Tioga Allegany BOCES","Public",135,"$4947","$0","$6843"]
["Schuylkill Technology Center","Public",61,"$6329","$0","$27200"]
["Scioto County Career Technical Center","Public",261,"$2423","$2031","$8816"]
["Scottsdale Community College","Public",5288,"$2119","$7260","$11889"]
["Scripps College","Private",1008,"$17011","$0","$50149"]
["Seattle Central College","Public",5503,"$3614","$4734","$10794"]
["Seattle Pacific University","Private",3921,"$6403","$0","$23933"]
["Seattle University","Private",6636,"$14257","$0","$31994"]
["Seattle Vocational Institute","Public",320,"$3553","$12774","$19817"]
["Selma University","Private",217,"$8247","$0","$23823"]
["Seminar L'moros Bais Yaakov","Private",337,"$3069","$0","$7656"]
["Seminole State College","Public",1229,"$865","$4774","$7884"]
["Seminole State College of Florida","Public",11583,"$1881","$3804","$9074"]
["Sentara College of Health Sciences","Private",336,"$9963","$0","$17639"]
["Seton Hall University","Private",8866,"$10543","$19","$27445"]
["Seton Hill University","Private",2244,"$1868","$0","$20714"]
["Sewanee-The University of the South","Private",1844,"$17526","$0","$49244"]
["Seward County Community College","Public",1306,"$1207","$10595","$14984"]
["Sh'or Yoshuv Rabbinical College","Private",188,"$-2341","$0","$25777"]
["Shasta Bible College and Graduate School","Private",38,"$4395","$0","$12300"]
["Shasta College","Public",5343,"$43","$7312","$9238"]
["Shaw University","Private",1455,"$9749","$0","$19786"]
["Shawnee Community College","Public",1379,"$950","$7972","$11669"]
["Shawnee State University","Public",3618,"$4670","$4506","$13007"]
["Shawsheen Valley School of Practical Nursing","Public",49,"$8105","$0","$6205"]
["Shelton State Community College","Public",3610,"$1601","$4843","$10490"]
["Shenandoah University","Private",4329,"$11237","$0","$20461"]
["Shepherd University","Public",3292,"$3890","$2867","$16995"]
["Shepherd University","Private",265,"$10604","$0","$34225"]
["Shepherds College","Private",55,"$22499","$0","$42224"]
["Shepherds Theological Seminary","Private",54,"$5945","$0","$30048"]
["Sheridan College","Public",2046,"$1710","$10804","$17103"]
["Sheridan Technical College","Public",1520,"$2430","$0","$9385"]
["Sherman College of Straight Chiropractic","Private",466,"$20906","$0","$19893"]
["Shiloh University","Private",16,"$2771","$0","$42551"]
["Shimer College","Private",70,"$9167","$0","$40881"]
["Shippensburg University of Pennsylvania","Public",6453,"$7523","$4393","$17696"]
["Shoreline Community College","Public",4735,"$3994","$4590","$11559"]
["Shorter College","Private",216,"$7141","$0","$20630"]
["Shorter University","Private",1405,"$573","$0","$17652"]
["Shorter University-College of Adult & Professional Programs","Private",351,"$13804","$0","$13640"]
["Siena College","Private",3095,"$-3196","$77","$27236"]
["Siena Heights University","Private",2074,"$4672","$0","$15990"]
["Sierra College","Public",11865,"$232","$6151","$7443"]
["Sierra Nevada College","Private",945,"$5678","$0","$17582"]
["Signature Healthcare Brockton Hospital School of Nursing","Private",180,"$24149","$0","$19342"]
["Sikeston Career and Technology Center","Public",60,"$7095","$0","$10838"]
["Silver Lake College of the Holy Family","Private",470,"$6378","$0","$21907"]
["Simmons College","Private",5814,"$13524","$0","$25400"]
["Simmons College of Kentucky","Private",150,"$3872","$0","$18926"]
["Simpson College","Private",1729,"$-8","$0","$21106"]
["Simpson University","Private",1042,"$7794","$0","$19622"]
["Sinclair Community College","Public",12124,"$1966","$6449","$12193"]
["Sinte Gleska University","Private",426,"$2600","$0","$26095"]
["Sioux Falls Seminary","Private",116,"$8106","$0","$12801"]
["Sisseton Wahpeton College","Public",95,"$1707","$0","$30608"]
["Sitting Bull College","Public",226,"$3257","$0","$19617"]
["Skagit Valley College","Public",3864,"$1340","$4828","$13075"]
["Skidmore College","Private",2703,"$18475","$67","$48458"]
["Skyline College","Public",5692,"$954","$9182","$11514"]
["Slippery Rock University of Pennsylvania","Public",8736,"$6753","$3987","$16552"]
["Smith College","Private",3057,"$2266","$0","$67141"]
["Snead State Community College","Public",2121,"$1386","$3283","$6496"]
["Snow College","Public",3842,"$1416","$6089","$12108"]
["Sojourner-Douglass College","Private",null,"Data not reported to IPEDS","Data not reported to IPEDS","Data not reported to IPEDS"]
["Soka University of America","Private",455,"$-19603","$0","$106415"]
["Solano Community College","Public",6247,"$601","$9985","$11459"]
["Somerset Community College","Public",4061,"$-2906","$2234","$9020"]
["Somerset County Technology Center","Public",86,"$1865","$0","$17379"]
["Sonoma State University","Public",8294,"$4659","$7190","$16570"]
["South Arkansas Community College","Public",1091,"$2369","$6877","$14315"]
["South Baylo University","Private",831,"$6378","$0","$6212"]
["South Branch Career and Technical Center","Public",null,"Data not reported to IPEDS","Data not reported to IPEDS","Data not reported to IPEDS"]
["South Carolina State University","Public",2655,"$6566","$9343","$19296"]
["South Central Career Center","Public",94,"$1702","$412","$11917"]
["South Central College","Public",2212,"$3616","$6452","$14879"]
["South Central Louisiana Technical College","Public",1307,"$2132","$3282","$12163"]
["South Dade Technical College-South Dade Skills Center Campus","Public",137,"$1949","$0","$30239"]
["South Dakota School of Mines and Technology","Public",2391,"$8122","$6935","$16656"]
["South Dakota State University","Public",10671,"$7473","$6292","$14684"]
["South Florida Bible College and Theological Seminary","Private",152,"$7965","$0","$7374"]
["South Florida State College","Public",1799,"$1066","$8995","$17434"]
["South Georgia State College","Public",2157,"$1320","$4708","$8581"]
["South Georgia Technical College","Public",1433,"$2163","$6122","$12727"]
["South Louisiana Community College","Public",5039,"$2459","$2577","$7686"]
["South Mountain Community College","Public",2318,"$838","$9726","$14178"]
["South Orange County Community College District","Public",null,"Data not reported to IPEDS","Data not reported to IPEDS","Data not reported to IPEDS"]
["South Piedmont Community College","Public",1739,"$1316","$8917","$12461"]
["South Plains College","Public",6433,"$2587","$4936","$8164"]
["South Puget Sound Community College","Public",3965,"$2860","$4179","$11815"]
["South Seattle College","Public",4657,"$1828","$4619","$10840"]
["South Suburban College","Public",3341,"$-1159","$5961","$14009"]
["South Texas College","Public",21653,"$-343","$4982","$7278"]
["South Texas College of Law Houston","Private",976,"$23522","$0","$35639"]
["Southcentral Kentucky Community and Technical College","Public",2512,"$-1053","$2314","$8599"]
["Southeast Arkansas College","Public",1034,"$1817","$7362","$14299"]
["Southeast Community College Area","Public",7281,"$2773","$8139","$15092"]
["Southeast Kentucky Community and Technical College","Public",1869,"$-3775","$4672","$13408"]
["Southeast Missouri Hospital College of Nursing and Health Sciences","Private",130,"$21225","$0","$14954"]
["Southeast Missouri State University","Public",9695,"$4322","$4751","$13080"]
["Southeast Technical Institute","Public",1921,"$5792","$0","$11938"]
["Southeastern Baptist College","Private",28,"$1367","$0","$25714"]
["Southeastern Baptist Theological Seminary","Private",1788,"$4609","$0","$13151"]
["Southeastern Bible College","Private",122,"$10985","$0","$26361"]
["Southeastern Community College","Public",1823,"$3096","$7049","$16410"]
["Southeastern Community College","Public",1131,"$713","$10145","$15450"]
["Southeastern Illinois College","Public",1226,"$-1074","$5286","$9571"]
["Southeastern Louisiana University","Public",11404,"$4097","$2689","$10221"]
["Southeastern Oklahoma State University","Public",3076,"$2732","$5329","$8884"]
["Southeastern School of Cosmetology","Private",53,"$1511","$0","$4755"]
["Southeastern Technical College","Public",1175,"$2689","$7811","$14811"]
["Southeastern Technical Institute","Public",139,"$2738","$16051","$12198"]
["Southeastern University","Private",3944,"$6021","$0","$14159"]
["Southern Adventist University","Private",2794,"$9409","$0","$23133"]
["Southern Arkansas University Main Campus","Public",3870,"$3001","$4363","$8460"]
["Southern Arkansas University Tech","Public",1084,"$1484","$7434","$14854"]
["Southern California Institute of Architecture","Private",682,"$26661","$0","$28477"]
["Southern California Seminary","Private",375,"$3388","$0","$6771"]
["Southern California University of Health Sciences","Private",952,"$20696","$0","$25553"]
["Southern College of Optometry","Private",530,"$30545","$0","$56580"]
["Southern Connecticut State University","Public",8691,"$7499","$10001","$25127"]
["Southern Crescent Technical College","Public",3275,"$2501","$4140","$10325"]
["Southern Illinois University-Carbondale","Public",16227,"$6288","$2468","$36221"]
["Southern Illinois University-Edwardsville","Public",12681,"$7235","$1295","$21646"]
["Southern Illinois University-System Office","Public",null,"Data not reported to IPEDS","Data not reported to IPEDS","Data not reported to IPEDS"]
["Southern Maine Community College","Public",3995,"$1827","$3473","$10357"]
["Southern Methodist University","Private",10559,"$13221","$0","$36861"]
["Southern Nazarene University","Private",2175,"$6384","$0","$16918"]
["Southern New Hampshire University","Private",50713,"$8975","$0","$9346"]
["Southern Oklahoma Technology Center","Public",531,"$-48","$0","$13866"]
["Southern Oregon University","Public",4465,"$4557","$4698","$14548"]
["Southern Regional Technical College","Public",2496,"$2619","$6217","$13968"]
["Southern State Community College","Public",1701,"$3276","$4999","$9245"]
["Southern Union State Community College","Public",3897,"$1731","$3655","$8695"]
["Southern University Law Center","Public",620,"$13901","$6630","$20902"]
["Southern University and A & M College","Public",6333,"$3399","$4740","$11224"]
["Southern University at New Orleans","Public",2140,"$4151","$2953","$20533"]
["Southern University at Shreveport","Public",2277,"$1394","$2467","$10765"]
["Southern University-Board and System","Public",null,"Data not reported to IPEDS","Data not reported to IPEDS","Data not reported to IPEDS"]
["Southern Utah University","Public",7275,"$7526","$4841","$15482"]
["Southern Vermont College","Private",438,"$5278","$0","$23762"]
["Southern Virginia University","Private",546,"$10014","$0","$29182"]
["Southern Wesleyan University","Private",1656,"$6696","$0","$13430"]
["Southern West Virginia Community and Technical College","Public",1259,"$178","$6256","$12194"]
["Southern Westchester BOCES-Practical Nursing Program","Public",118,"$9745","$0","$9032"]
["Southern Worcester County Regional Voc School District","Public",29,"$12103","$0","$12900"]
["Southside Virginia Community College","Public",2798,"$2625","$4661","$10191"]
["Southwest Baptist University","Private",3381,"$2700","$0","$11296"]
["Southwest College of Naturopathic Medicine & Health Sciences","Private",437,"$25722","$0","$34946"]
["Southwest Collegiate Institute for the Deaf","Public",92,"Data not reported to IPEDS","Data not reported to IPEDS","Data not reported to IPEDS"]
["Southwest Minnesota State University","Public",3653,"$3231","$4989","$11856"]
["Southwest Mississippi Community College","Public",1288,"$575","$8862","$12161"]
["Southwest Skill Center-Campus of Estrella Mountain Community College","Public",156,"Data not reported to IPEDS","Data not reported to IPEDS","Data not reported to IPEDS"]
["Southwest Technical College","Public",166,"$1844","$24082","$37487"]
["Southwest Technology Center","Public",167,"$989","$21562","$25606"]
["Southwest Tennessee Community College","Public",6161,"$2414","$4157","$11910"]
["Southwest Texas Junior College","Public",3393,"$2741","$3831","$8056"]
["Southwest Virginia Community College","Public",1817,"$1565","$4051","$9795"]
["Southwest Wisconsin Technical College","Public",1470,"$3565","$12338","$18780"]
["Southwestern Adventist University","Private",747,"$8725","$0","$23446"]
["Southwestern Assemblies of God University","Private",1652,"$8847","$0","$18365"]
["Southwestern Christian College","Private",143,"$1274","$0","$16694"]
["Southwestern Christian University","Private",642,"$3438","$0","$12745"]
["Southwestern College","Public",12216,"$371","$10509","$11015"]
["Southwestern College","Private",1297,"$6730","$0","$18731"]
["Southwestern College","Private",171,"$15484","$0","$14805"]
["Southwestern Community College","Public",1866,"$865","$7710","$12270"]
["Southwestern Community College","Public",1153,"$2804","$6072","$12827"]
["Southwestern Illinois College","Public",7645,"$3073","$4098","$9614"]
["Southwestern Indian Polytechnic Institute","Public",414,"$704","$0","$36446"]
["Southwestern Law School","Private",924,"$30384","$0","$40469"]
["Southwestern Michigan College","Public",1571,"$3879","$7713","$15937"]
["Southwestern Oklahoma State University","Public",4609,"$3516","$4542","$11509"]
["Southwestern Oregon Community College","Public",1376,"$2121","$10383","$14782"]
["Southwestern University","Private",1530,"$-3395","$0","$28919"]
["Spalding University","Private",1784,"$12596","$0","$17734"]
["Spanish-American Institute","Private",null,"Data not reported to IPEDS","Data not reported to IPEDS","Data not reported to IPEDS"]
["Spartanburg Community College","Public",3472,"$3029","$3943","$12548"]
["Spartanburg Methodist College","Private",778,"$2553","$0","$15003"]
["Spelman College","Private",2235,"$8809","$0","$35387"]
["Spertus College","Private",52,"$6366","$0","$89177"]
["Spokane Community College","Public",6772,"$1342","$5564","$14121"]
["Spokane Falls Community College","Public",4788,"$1627","$4692","$10846"]
["Spoon River College","Public",973,"$1254","$8810","$11849"]
["Spring Arbor University","Private",3082,"$5394","$0","$14317"]
["Spring Hill College","Private",1458,"$-8729","$0","$25623"]
["Springfield College","Private",3254,"$5112","$0","$24264"]
["Springfield College-School of Professional and Continuing Studies","Private",1564,"$9838","$0","$9619"]
["Springfield Technical Community College","Public",4142,"$2587","$7657","$16561"]
["St Bernard's School of Theology and Ministry","Private",35,"$15871","$0","$28987"]
["St Bonaventure University","Private",1940,"$1804","$85","$25313"]
["St Catherine University","Private",3990,"$9485","$0","$20922"]
["St Charles Community College","Public",4807,"$3232","$5149","$10699"]
["St Clair County Community College","Public",2451,"$3930","$7014","$11608"]
["St Cloud Technical and Community College","Public",3373,"$3215","$4369","$11236"]
["St Francis College","Private",2492,"$7535","$59","$22165"]
["St Francis Medical Center-School of Radiologic Technology","Private",16,"$5631","$0","$11545"]
["St John's Seminary","Private",117,"$23582","$0","$55672"]
["St John's University-New York","Private",16349,"$7883","$70","$25258"]
["St Joseph School of Nursing","Private",194,"$7887","$0","$10685"]
["St Joseph's College of Nursing at St Joseph's Hospital Health Center","Private",248,"$15933","$0","$18257"]
["St Lawrence University","Private",2455,"$-1628","$0","$40108"]
["St Luke's College","Private",200,"$14176","$0","$21660"]
["St Lukes Hospital School of Nursing","Private",193,"$3083","$0","$12529"]
["St Margaret School of Nursing","Private",75,"$13475","$0","$25292"]
["St Mary's College of Maryland","Public",1812,"$7911","$13856","$33131"]
["St Olaf College","Private",3019,"$670","$0","$37525"]
["St Petersburg College","Public",20474,"$1675","$3501","$10094"]
["St Philip's College","Public",7109,"$53","$6151","$10094"]
["St Thomas University","Private",2599,"$11001","$0","$21467"]
["St Vincent's College","Private",455,"$12769","$0","$20235"]
["St. Andrews University","Private",642,"$-1787","$0","$25366"]
["St. Gregory's University","Private",588,"$2017","$0","$21269"]
["St. John's College","Private",455,"$-12054","$0","$46723"]
["St. John's College","Private",508,"$-3971","$1101","$57126"]
["St. John's College-Department of Nursing","Private",112,"$17468","$0","$50977"]
["St. Joseph's College-New York","Private",4046,"$10122","$104","$21364"]
["St. Louis College of Pharmacy","Private",1431,"$18498","$0","$28542"]
["St. Mary's University","Private",3293,"$7329","$0","$25095"]
["St. Thomas Aquinas College","Private",1342,"$2154","$76","$19811"]
["Stanford University","Private",15294,"$3760","$0","$160530"]
["Stanly Community College","Public",2038,"$1124","$6786","$9952"]
["Stark State College","Public",6212,"$2414","$4613","$10351"]
["Starr King School for the Ministry","Private",71,"$13668","$0","$37122"]
["Starting Points Inc","Private",50,"$6076","$0","$26665"]
["State Center Community College District","Public",null,"Data not reported to IPEDS","Data not reported to IPEDS","Data not reported to IPEDS"]
["State College of Florida-Manatee-Sarasota","Public",7475,"$2469","$3278","$8244"]
["State Fair Community College","Public",3182,"$2158","$2920","$11698"]
["State Technical College of Missouri","Public",1343,"$5325","$4925","$12545"]
["State University of New York at New Paltz","Public",7348,"$5799","$10809","$22207"]
["Stella and Charles Guttman Community College","Public",894,"$419","$30044","$40532"]
["Stephen F Austin State University","Public",11137,"$5602","$4660","$12684"]
["Stephens College","Private",814,"$-843","$0","$27516"]
["Sterling College","Private",642,"$-518","$0","$21353"]
["Sterling College","Private",155,"$-5124","$0","$28646"]
["Stetson University","Private",4516,"$1730","$0","$27366"]
["Stevens Institute of Technology","Private",6222,"$13395","$13","$24959"]
["Stevens-Henager College","Private",244,"$12188","$0","$12477"]
["Stevens-Henager College","Private",279,"$13480","$0","$17290"]
["Stevens-Henager College","Private",172,"$16726","$0","$14299"]
["Stevens-Henager College","Private",132,"$13640","$0","$18847"]
["Stevens-Henager College","Private",300,"$13763","$0","$21783"]
["Stevens-Henager College","Private",1496,"$4467","$0","$5871"]
["Stevens-Henager College","Private",415,"$14351","$0","$16462"]
["Stevenson University","Private",3485,"$3121","$1080","$27263"]
["Stillman College","Private",730,"$5409","$0","$21236"]
["Stockton University","Public",9157,"$7118","$4337","$19750"]
["Stone Child College","Public",357,"$695","$50","$18194"]
["Stonehill College","Private",2428,"$327","$0","$35057"]
["Stony Brook University","Public",24374,"$7328","$19313","$35224"]
["Stratford School of Aviation Maintenance Technicians","Public",57,"$1852","$13510","$11322"]
["Studio Incamminati","Private",25,"$24163","$0","$55126"]
["Suffolk County Community College","Public",18056,"$4328","$5543","$16281"]
["Suffolk University","Private",8052,"$13153","$0","$27641"]
["Sul Ross State University","Public",2456,"$1741","$9210","$13885"]
["Sullivan County BOCES-Practical Nursing Program","Public",null,"Data not reported to IPEDS","Data not reported to IPEDS","Data not reported to IPEDS"]
["Sullivan County Community College","Public",1077,"$2970","$8817","$21283"]
["Summit Academy Opportunities Industrialization Center","Private",634,"$-1764","$0","$9496"]
["Summit Christian College","Private",26,"$-20","$0","$28125"]
["Suncoast Technical College","Public",754,"$3830","$12911","$12469"]
["Surry Community College","Public",2324,"$575","$7788","$9113"]
["Susquehanna County Career and Technology Center","Public",29,"$4322","$0","$14313"]
["Susquehanna University","Private",2498,"$-3342","$0","$26691"]
["Sussex County Community College","Public",1927,"$7072","$3774","$10754"]
["Swarthmore College","Private",1621,"$7003","$0","$84613"]
["Sweet Briar College","Private",246,"$-7515","$0","$102881"]
["Syracuse City Schools Practical Nursing Program","Public",54,"$4538","$0","$7522"]
["Syracuse University","Private",22442,"$9262","$67","$31814"]
["Tabor College","Private",659,"$-1121","$0","$16926"]
["Tacoma Community College","Public",6241,"$3662","$3452","$8433"]
["Taft College","Public",2189,"$1113","$10343","$11929"]
["Talladega College","Private",894,"$3764","$1400","$15606"]
["Tallahassee Community College","Public",9324,"$1604","$3641","$9078"]
["Talmudic College of Florida","Private",54,"$765","$0","$56749"]
["Talmudical Academy-New Jersey","Private",85,"$5466","$0","$9207"]
["Talmudical Institute of Upstate New York","Private",23,"$-13256","$0","$93833"]
["Talmudical Seminary Oholei Torah","Private",354,"$9757","$0","$14783"]
["Talmudical Seminary of Bobov","Private",363,"$9420","$0","$5730"]
["Talmudical Yeshiva of Philadelphia","Private",173,"$6001","$0","$28293"]
["Tarleton State University","Public",10415,"$5693","$4523","$12277"]
["Tarrant County College District","Public",32182,"$1485","$8696","$10178"]
["Taylor University","Private",1980,"$6846","$0","$26541"]
["Teachers College at Columbia University","Private",4334,"$19377","$127","$29422"]
["Teachers College of San Joaquin","Public",878,"Data not reported to IPEDS","Data not reported to IPEDS","Data not reported to IPEDS"]
["Technical College of the Lowcountry","Public",1610,"$3050","$3613","$10118"]
["Technical Education Center-Osceola","Public",481,"$3722","$120","$6371"]
["Telshe Yeshiva-Chicago","Private",88,"$-12020","$0","$43558"]
["Temple College","Public",3438,"$2806","$5173","$9827"]
["Temple University","Public",34459,"$17859","$3957","$25292"]
["Tennessee Board of Regents","Public",null,"Data not reported to IPEDS","Data not reported to IPEDS","Data not reported to IPEDS"]
["Tennessee College of Applied Technology Nashville","Public",931,"$2252","$3550","$6382"]
["Tennessee College of Applied Technology-Athens","Public",300,"$519","$4305","$9984"]
["Tennessee College of Applied Technology-Covington","Public",226,"$1718","$4819","$7320"]
["Tennessee College of Applied Technology-Crossville","Public",376,"$444","$5525","$10401"]
["Tennessee College of Applied Technology-Crump","Public",249,"$1087","$5581","$9586"]
["Tennessee College of Applied Technology-Dickson","Public",621,"$2789","$4294","$9626"]
["Tennessee College of Applied Technology-Elizabethton","Public",563,"$444","$1224","$7280"]
["Tennessee College of Applied Technology-Harriman","Public",268,"$361","$4990","$12522"]
["Tennessee College of Applied Technology-Hartsville","Public",376,"$172","$4134","$8014"]
["Tennessee College of Applied Technology-Hohenwald","Public",381,"$411","$4401","$7657"]
["Tennessee College of Applied Technology-Jacksboro","Public",220,"$56","$5573","$10154"]
["Tennessee College of Applied Technology-Jackson","Public",422,"$1245","$7049","$11377"]
["Tennessee College of Applied Technology-Knoxville","Public",691,"$817","$4159","$10886"]
["Tennessee College of Applied Technology-Livingston","Public",514,"$428","$3795","$6004"]
["Tennessee College of Applied Technology-McKenzie","Public",190,"$725","$6487","$9249"]
["Tennessee College of Applied Technology-McMinnville","Public",212,"$520","$6213","$10397"]
["Tennessee College of Applied Technology-Memphis","Public",946,"$1216","$4041","$7218"]
["Tennessee College of Applied Technology-Morristown","Public",636,"$-925","$5445","$9529"]
["Tennessee College of Applied Technology-Murfreesboro","Public",438,"$494","$4120","$9514"]
["Tennessee College of Applied Technology-Newbern","Public",345,"$1297","$3952","$8340"]
["Tennessee College of Applied Technology-Oneida-Huntsville","Public",219,"$2796","$6067","$11893"]
["Tennessee College of Applied Technology-Paris","Public",329,"$926","$5025","$8608"]
["Tennessee College of Applied Technology-Pulaski","Public",534,"$582","$3334","$7650"]
["Tennessee College of Applied Technology-Ripley","Public",197,"$1066","$5154","$9656"]
["Tennessee College of Applied Technology-Shelbyville","Public",603,"$471","$3395","$7285"]
["Tennessee College of Applied Technology-Whiteville","Public",205,"$1132","$5881","$11073"]
["Tennessee State University","Public",7807,"$6828","$5152","$17769"]
["Tennessee Technological University","Public",9671,"$4471","$4453","$14977"]
["Tennessee Temple University","Private",null,"Data not reported to IPEDS","Data not reported to IPEDS","Data not reported to IPEDS"]
["Tennessee Wesleyan University","Private",1029,"$-833","$0","$14673"]
["Terra State Community College","Public",1510,"$2865","$4298","$9074"]
["Texarkana College","Public",2495,"$748","$5739","$8839"]
["Texas A & M International University","Public",5860,"$2930","$6284","$11795"]
["Texas A & M University-Central Texas","Public",1850,"$5890","$9373","$17645"]
["Texas A & M University-College Station","Public",57634,"$7685","$12206","$21889"]
["Texas A & M University-Commerce","Public",9643,"$5379","$5042","$11978"]
["Texas A & M University-Corpus Christi","Public",9746,"$5848","$6581","$12651"]
["Texas A & M University-Kingsville","Public",7885,"$4436","$5931","$12707"]
["Texas A & M University-System Office","Public",null,"Data not reported to IPEDS","Data not reported to IPEDS","Data not reported to IPEDS"]
["Texas A&M University-San Antonio","Public",3185,"$5969","$9010","$16554"]
["Texas A&M University-Texarkana","Public",1434,"$5147","$15067","$23189"]
["Texas Chiropractic College Foundation Inc","Private",301,"$26563","$0","$25106"]
["Texas Christian University","Private",10038,"$12487","$0","$28498"]
["Texas College","Private",804,"$8980","$0","$15959"]
["Texas County Technical College","Private",185,"$9351","$0","$11592"]
["Texas Lutheran University","Private",1249,"$-1155","$0","$26852"]
["Texas Southern University","Public",8350,"$5724","$7536","$18370"]
["Texas Southmost College","Public",1446,"$7900","$17816","$22559"]
["Texas State Technical College","Public",6960,"$1223","$12760","$22585"]
["Texas State University","Public",32558,"$6063","$4702","$11952"]
["Texas Tech University","Public",32839,"$7553","$5814","$12232"]
["Texas Tech University Health Sciences Center","Public",6407,"$7126","$36104","$74846"]
["Texas Tech University System Administration","Public",null,"Data not reported to IPEDS","Data not reported to IPEDS","Data not reported to IPEDS"]
["Texas Wesleyan University","Private",2211,"$14828","$0","$25019"]
["Texas Woman's University","Public",12221,"$5228","$5083","$13810"]
["Thaddeus Stevens College of Technology","Public",1108,"$3381","$11687","$14914"]
["The Ailey School","Private",107,"$37234","$0","$42994"]
["The Baptist College of Florida","Private",368,"$8026","$0","$18219"]
["The Boston Conservatory","Private",null,"Data not reported to IPEDS","Data not reported to IPEDS","Data not reported to IPEDS"]
["The Chicago School of Professional Psychology at Chicago","Private",1266,"$68809","$0","$69131"]
["The Chicago School of Professional Psychology at Irvine","Private",265,"Data not reported to IPEDS","Data not reported to IPEDS","Data not reported to IPEDS"]
["The Chicago School of Professional Psychology at Los Angeles","Private",1506,"Data not reported to IPEDS","Data not reported to IPEDS","Data not reported to IPEDS"]
["The Chicago School of Professional Psychology at Washington DC","Private",299,"Data not reported to IPEDS","Data not reported to IPEDS","Data not reported to IPEDS"]
["The Chicago School of Professional Psychology at Xavier University of Louisiana","Private",22,"Data not reported to IPEDS","Data not reported to IPEDS","Data not reported to IPEDS"]
["The Christ College of Nursing and Health Sciences","Private",562,"$10868","$0","$14250"]
["The Colburn Conservatory of Music","Private",103,"Data not reported to IPEDS","Data not reported to IPEDS","Data not reported to IPEDS"]
["The College of Idaho","Private",1009,"$-110","$0","$28162"]
["The College of New Jersey","Public",7877,"$10634","$6657","$21202"]
["The College of New Rochelle","Private",3432,"$8633","$68","$18192"]
["The College of Saint Rose","Private",3800,"$5132","$66","$22926"]
["The College of Saint Scholastica","Private",4061,"$5551","$0","$16719"]
["The College of Wooster","Private",2114,"$-4205","$0","$35563"]
["The English Center","Private",208,"Data not reported to IPEDS","Data not reported to IPEDS","Data not reported to IPEDS"]
["The Evergreen State College","Public",3973,"$6109","$6303","$18342"]
["The General Theological Seminary","Private",46,"$-6708","$0","$144784"]
["The John Marshall Law School","Private",972,"$23380","$0","$41628"]
["The Juilliard School","Private",1090,"$-4180","$59","$95234"]
["The King's College","Private",501,"$-4865","$0","$40413"]
["The King's University","Private",554,"$10207","$0","$20900"]
["The Landing School","Private",74,"$14296","$0","$14684"]
["The Master's University and Seminary","Private",1594,"$5784","$0","$21340"]
["The New England Conservatory of Music","Private",741,"$15805","$0","$53927"]
["The New School","Private",9371,"$17487","$74","$36209"]
["The Robert B Miller College","Private",null,"Data not reported to IPEDS","Data not reported to IPEDS","Data not reported to IPEDS"]
["The Sage Colleges","Private",2729,"$4999","$82","$18174"]
["The Santa Barbara and Ventura Colleges of Law at Santa Barbara","Private",84,"Data not reported to IPEDS","Data not reported to IPEDS","Data not reported to IPEDS"]
["The Santa Barbara and Ventura Colleges of Law at Ventura","Private",115,"$20723","$0","$24703"]
["The Seattle School of Theology & Psychology","Private",238,"$15284","$0","$24992"]
["The Southern Baptist Theological Seminary","Private",2622,"$7848","$0","$14318"]
["The University of Alabama","Public",34985,"$7455","$4243","$18975"]
["The University of America","Private",null,"Data not reported to IPEDS","Data not reported to IPEDS","Data not reported to IPEDS"]
["The University of Findlay","Private",4485,"$4172","$0","$19955"]
["The University of Montana","Public",11056,"$5779","$6358","$16425"]
["The University of Montana-Western","Public",1318,"$4811","$6051","$13046"]
["The University of Tampa","Private",8413,"$10824","$0","$15220"]
["The University of Tennessee-Chattanooga","Public",10326,"$4786","$4213","$14752"]
["The University of Tennessee-Health Science Center","Public",3030,"$21560","$46873","$144159"]
["The University of Tennessee-Knoxville","Public",26606,"$8407","$11663","$20640"]
["The University of Tennessee-Martin","Public",6168,"$3512","$4708","$15795"]
["The University of Texas Health Science Center at Houston","Public",4318,"$10803","$47973","$187100"]
["The University of Texas Health Science Center at San Antonio","Public",3453,"$10217","$47987","$148988"]
["The University of Texas MD Anderson Cancer Center","Public",368,"$4167","$9129","$19668"]
["The University of Texas Medical Branch","Public",3422,"$8710","$105225","$142685"]
["The University of Texas Rio Grande Valley","Public",23877,"$3576","$6369","$12196"]
["The University of Texas System Office","Public",null,"Data not reported to IPEDS","Data not reported to IPEDS","Data not reported to IPEDS"]
["The University of Texas at Arlington","Public",36505,"$5828","$3508","$10406"]
["The University of Texas at Austin","Public",45835,"$5728","$7662","$28012"]
["The University of Texas at Dallas","Public",22093,"$7295","$4723","$16575"]
["The University of Texas at El Paso","Public",18972,"$5764","$5617","$11714"]
["The University of Texas at San Antonio","Public",24556,"$4684","$4875","$13343"]
["The University of Texas at Tyler","Public",7178,"$4852","$5510","$20661"]
["The University of Texas of the Permian Basin","Public",4410,"$3940","$7774","$13096"]
["The University of Virginia's College at Wise","Public",1589,"$1098","$10573","$18775"]
["The University of West Florida","Public",10176,"$4305","$11225","$10671"]
["The University of the Arts","Private",1964,"$6136","$77","$34497"]
["The Vocational Nursing Institute Inc","Private",17,"$14409","$0","$16586"]
["The Workforce Institute's City College","Private",54,"$11681","$0","$21513"]
["The Wright Institute","Private",467,"$21117","$0","$22388"]
["Theological Seminary of the Reformed Episcopal Church","Private",25,"$-2043","$0","$29813"]
["Thiel College","Private",897,"$-2725","$0","$27190"]
["Thomas Aquinas College","Private",452,"$5065","$0","$34459"]
["Thomas College","Private",1063,"$1627","$0","$16078"]
["Thomas Edison State University","Public",4455,"$11057","$739","$13851"]
["Thomas Jefferson School of Law","Private",558,"$31152","$0","$44303"]
["Thomas Jefferson University","Private",3698,"$29026","$270","$82010"]
["Thomas More College","Private",1706,"$3325","$0","$15562"]
["Thomas More College of Liberal Arts","Private",88,"$-2363","$0","$28353"]
["Thomas Nelson Community College","Public",6020,"$3159","$3850","$9071"]
["Thomas University","Private",475,"$18791","$0","$29340"]
["Three Rivers College","Public",2800,"$499","$3066","$7418"]
["Three Rivers Community College","Public",2475,"$1921","$8613","$13650"]
["Thunderbird School of Global Management","Public",335,"Data not reported to IPEDS","Data not reported to IPEDS","Data not reported to IPEDS"]
["Tidewater Community College","Public",17353,"$2334","$3500","$9742"]
["Tiffin University","Private",3001,"$4946","$0","$13395"]
["Tillamook Bay Community College","Public",224,"$1020","$17793","$23847"]
["Toccoa Falls College","Private",832,"$3150","$0","$15840"]
["Tohono O'Odham Community College","Public",138,"$1309","$0","$49134"]
["Toledo Public Schools Adult and Continuing Education","Public",81,"$2630","$0","$17154"]
["Toledo Restaurant Training Center","Private",null,"Data not reported to IPEDS","Data not reported to IPEDS","Data not reported to IPEDS"]
["Tom P Haney Technical Center","Public",365,"$2957","$17949","$6875"]
["Tompkins Cortland Community College","Public",3691,"$4067","$5268","$13713"]
["Tooele Technical College","Public",165,"$1899","$18576","$25859"]
["Torah Temimah Talmudical Seminary","Private",125,"$5808","$0","$17122"]
["Tougaloo College","Private",837,"$8341","$0","$20529"]
["Touro College","Private",16432,"$10805","$0","$17075"]
["Touro University California","Private",1465,"$38202","$0","$28960"]
["Touro University Nevada","Private",1278,"$34799","$0","$34228"]
["Touro University Worldwide","Private",962,"$5115","$0","$7083"]
["Towson University","Public",19921,"$4717","$5526","$13220"]
["Toyota Technological Institute at Chicago","Private",11,"$-68182","$0","$696456"]
["Transylvania University","Private",1229,"$-1185","$0","$28738"]
["Traviss Technical College","Public",393,"$2667","$11689","$15500"]
["Treasure Valley Community College","Public",1477,"$3820","$7385","$14296"]
["Trevecca Nazarene University","Private",2380,"$6877","$0","$17575"]
["Tri County Regional Vocational Technical High School","Public",50,"$7244","$758","$7485"]
["Tri-County Adult Career Center","Public",72,"$4945","$0","$12714"]
["Tri-County Community College","Public",913,"$619","$8529","$12559"]
["Tri-County Technical College","Public",4862,"$3343","$2401","$9934"]
["Tri-Rivers Career Center","Public",110,"$12584","$2021","$19340"]
["Tri-State Bible College","Private",31,"$9183","$0","$16048"]
["Trident Technical College","Public",10657,"$3812","$2651","$10294"]
["Trine University","Private",2383,"$5831","$0","$21085"]
["Trine University-Arizona Regional Campus","Private",115,"$4468","$0","$11294"]
["Trine University-Regional/Non-Traditional Campuses","Private",637,"Data not reported to IPEDS","Data not reported to IPEDS","Data not reported to IPEDS"]
["Trinidad State Junior College","Public",1148,"$2788","$0","$15117"]
["Trinity Baptist College","Private",349,"$4905","$0","$9800"]
["Trinity Bible College and Graduate School","Private",114,"$8617","$0","$44300"]
["Trinity Christian College","Private",1284,"$7621","$0","$20536"]
["Trinity College","Private",2353,"$13176","$0","$46728"]
["Trinity College of Florida","Private",173,"$9523","$0","$17358"]
["Trinity College of Nursing & Health Sciences","Private",215,"$19798","$0","$18002"]
["Trinity Episcopal School for Ministry","Private",202,"$-1891","$0","$26517"]
["Trinity Health System School of Nursing","Private",102,"$5123","$0","$9273"]
["Trinity International University-Florida","Private",169,"$15525","$0","$20846"]
["Trinity International University-Illinois","Private",1465,"$2331","$0","$24674"]
["Trinity Law School","Private",185,"$16314","$0","$25478"]
["Trinity Lutheran College","Private",null,"Data not reported to IPEDS","Data not reported to IPEDS","Data not reported to IPEDS"]
["Trinity Lutheran Seminary","Private",78,"$490","$0","$82299"]
["Trinity University","Private",2487,"$55","$0","$44027"]
["Trinity Valley Community College","Public",3404,"$1272","$7620","$9456"]
["Trinity Washington University","Private",1900,"$7138","$0","$16440"]
["Triton College","Public",6790,"$2052","$4164","$12439"]
["Trocaire College","Private",1073,"$13750","$30","$17380"]
["Troy University","Public",13554,"$6674","$3506","$14470"]
["Truckee Meadows Community College","Public",6473,"$2338","$4717","$9161"]
["Truett McConnell University","Private",1139,"$9690","$0","$12568"]
["Truman State University","Public",5520,"$820","$7576","$14743"]
["Trumbull Career & Technical Center","Public",122,"$2119","$2656","$6388"]
["Tufts University","Private",11619,"$20293","$430","$45400"]
["Tulane University of Louisiana","Private",11945,"$12601","$0","$45040"]
["Tulsa Community College","Public",10602,"$503","$6708","$12895"]
["Tulsa Technology Center","Public",2675,"$1895","$17045","$6558"]
["Tulsa Technology Center-Broken Arrow Campus","Public",null,"Data not reported to IPEDS","Data not reported to IPEDS","Data not reported to IPEDS"]
["Tulsa Technology Center-Lemley Campus","Public",null,"Data not reported to IPEDS","Data not reported to IPEDS","Data not reported to IPEDS"]
["Tulsa Technology Center-Owasso Campus","Public",null,"Data not reported to IPEDS","Data not reported to IPEDS","Data not reported to IPEDS"]
["Tulsa Technology Center-Peoria Campus","Public",null,"Data not reported to IPEDS","Data not reported to IPEDS","Data not reported to IPEDS"]
["Tulsa Technology Center-Riverside Campus","Public",null,"Data not reported to IPEDS","Data not reported to IPEDS","Data not reported to IPEDS"]
["Tulsa Technology Center-Sand Springs Campus","Public",null,"Data not reported to IPEDS","Data not reported to IPEDS","Data not reported to IPEDS"]
["Tunxis Community College","Public",2493,"$2815","$8546","$14350"]
["Turtle Mountain Community College","Private",511,"$1378","$197","$24613"]
["Tusculum College","Private",1880,"$1623","$0","$12944"]
["Tuskegee University","Private",2865,"$8895","$3406","$25858"]
["Tyler Junior College","Public",8242,"$1819","$5357","$9769"]
["U S Grant Joint Vocational School","Public",26,"$4198","$9879","$14927"]
["Uintah Basin Technical College","Public",596,"$931","$11887","$15275"]
["Ukiah Adult School","Public",21,"$4641","$0","$9457"]
["Ulster BOCES School of Practical Nursing","Public",144,"$4728","$0","$4871"]
["Ulster County Community College","Public",2043,"$3325","$6425","$14249"]
["Ultimate Medical Academy-Clearwater","Private",338,"$6584","$0","$11105"]
["Ultimate Medical Academy-Tampa","Private",17012,"$14199","$0","$13761"]
["Umpqua Community College","Public",1422,"$1650","$11465","$24461"]
["Unification Theological Seminary","Private",66,"$3247","$0","$30712"]
["Union College","Private",990,"$585","$0","$16988"]
["Union College","Private",900,"$9462","$0","$23217"]
["Union College","Private",2061,"$11121","$73","$55532"]
["Union County College","Public",8043,"$3439","$3023","$8691"]
["Union County Vocational Technical School","Public",102,"$4853","$0","$6322"]
["Union Graduate College","Private",null,"Data not reported to IPEDS","Data not reported to IPEDS","Data not reported to IPEDS"]
["Union Institute & University","Private",1275,"$14836","$0","$15590"]
["Union Presbyterian Seminary","Private",150,"$-10406","$0","$101108"]
["Union Theological Seminary in the City of New York","Private",196,"$-13879","$0","$101231"]
["Union University","Private",3723,"$6364","$0","$16317"]
["United Lutheran Seminary","Private",91,"$792","$0","$54795"]
["United States Air Force Academy","Public",5062,"$0","$0","$69778"]
["United States Coast Guard Academy","Public",476,"$7810","$123411","$186229"]
["United States Merchant Marine Academy","Public",1313,"$505","$0","$54962"]
["United States Military Academy","Public",4536,"$0","$0","$85838"]
["United States Naval Academy","Public",5660,"$0","$0","$89783"]
["United States Sports Academy","Private",264,"$14077","$0","$16563"]
["United Talmudical Seminary","Private",1868,"$9556","$0","$10132"]
["United Technical Center","Public",40,"$966","$0","$10216"]
["United Theological Seminary","Private",376,"$10579","$0","$19907"]
["United Theological Seminary of the Twin Cities","Private",71,"$2060","$0","$63762"]
["United Tribes Technical College","Private",351,"$13515","$0","$46344"]
["Unity College","Private",675,"$5702","$0","$20236"]
["UnityPoint Health-Des Moines School of Radiologic Technology","Private",17,"$4924","$0","$12994"]
["University System of Maryland","Public",null,"Data not reported to IPEDS","Data not reported to IPEDS","Data not reported to IPEDS"]
["University System of Maryland-Research Centers","Public",null,"Data not reported to IPEDS","Data not reported to IPEDS","Data not reported to IPEDS"]
["University System of New Hampshire System Office","Public",null,"Data not reported to IPEDS","Data not reported to IPEDS","Data not reported to IPEDS"]
["University at Buffalo","Public",28827,"$7814","$14903","$28627"]
["University of Akron Main Campus","Public",20159,"$8414","$5416","$15231"]
["University of Akron Wayne College","Public",1269,"Data not reported to IPEDS","Data not reported to IPEDS","Data not reported to IPEDS"]
["University of Alabama System Office","Public",null,"Data not reported to IPEDS","Data not reported to IPEDS","Data not reported to IPEDS"]
["University of Alabama at Birmingham","Public",16651,"$7776","$16055","$30034"]
["University of Alabama in Huntsville","Public",6495,"$5354","$6922","$17567"]
["University of Alaska Anchorage","Public",11615,"$5672","$11432","$21213"]
["University of Alaska Fairbanks","Public",5925,"$6347","$29326","$30543"]
["University of Alaska Southeast","Public",1689,"$6255","$16690","$28524"]
["University of Alaska System of Higher Education","Public",null,"Data not reported to IPEDS","Data not reported to IPEDS","Data not reported to IPEDS"]
["University of Arizona","Public",40818,"$9974","$6524","$21259"]
["University of Arizona-South","Public",465,"Data not reported to IPEDS","Data not reported to IPEDS","Data not reported to IPEDS"]
["University of Arkansas","Public",24288,"$6334","$8665","$15275"]
["University of Arkansas Community College Rich Mountain","Public",551,"$613","$6936","$16924"]
["University of Arkansas Community College-Batesville","Public",963,"$820","$6629","$13308"]
["University of Arkansas Community College-Hope","Public",947,"$927","$8253","$12510"]
["University of Arkansas Community College-Morrilton","Public",1529,"$1591","$4625","$7974"]
["University of Arkansas System Office","Public",null,"Data not reported to IPEDS","Data not reported to IPEDS","Data not reported to IPEDS"]
["University of Arkansas at Little Rock","Public",8737,"$3034","$7824","$11171"]
["University of Arkansas at Monticello","Public",2721,"$777","$6876","$13573"]
["University of Arkansas at Pine Bluff","Public",2502,"$-2904","$11265","$16306"]
["University of Arkansas for Medical Sciences","Public",2687,"$14729","$2939","$90119"]
["University of Arkansas-Fort Smith","Public",5409,"$1246","$5513","$12356"]
["University of Arkansas-Pulaski Technical College","Public",5158,"$1809","$3376","$9453"]
["University of Baltimore","Public",4499,"$9140","$7785","$21880"]
["University of Bridgeport","Private",4748,"$8733","$0","$21487"]
["University of California-Berkeley","Public",40059,"$12789","$9403","$34052"]
["University of California-Davis","Public",34284,"$10163","$11955","$38867"]
["University of California-Hastings College of Law","Public",936,"$14391","$11522","$56642"]
["University of California-Irvine","Public",32306,"$10281","$9309","$32471"]
["University of California-Los Angeles","Public",43152,"$11004","$11577","$68478"]
["University of California-Merced","Public",6886,"$4785","$20248","$27080"]
["University of California-Riverside","Public",21524,"$8614","$11363","$23347"]
["University of California-San Diego","Public",34490,"$12772","$9629","$40048"]
["University of California-San Francisco","Public",3051,"$5977","$66719","$191812"]
["University of California-Santa Barbara","Public",23978,"$9863","$8772","$20683"]
["University of California-Santa Cruz","Public",18243,"$8703","$10148","$19374"]
["University of California-System Administration Central Office","Public",null,"Data not reported to IPEDS","Data not reported to IPEDS","Data not reported to IPEDS"]
["University of Central Arkansas","Public",10691,"$2540","$5470","$12410"]
["University of Central Florida","Public",53275,"$4532","$5909","$11287"]
["University of Central Missouri","Public",11928,"$6008","$4668","$13701"]
["University of Central Oklahoma","Public",13228,"$6161","$4420","$12628"]
["University of Charleston","Private",2271,"$4382","$0","$18301"]
["University of Chicago","Private",14492,"$2175","$0","$123575"]
["University of Cincinnati-Blue Ash College","Public",3781,"$5378","$2895","$9991"]
["University of Cincinnati-Clermont College","Public",2349,"$5856","$3886","$13271"]
["University of Cincinnati-Main Campus","Public",32627,"$10108","$5906","$18611"]
["University of Colorado Boulder","Public",30355,"$16178","$0","$23467"]
["University of Colorado Colorado Springs","Public",10014,"$9840","$0","$15478"]
["University of Colorado Denver/Anschutz Medical Campus","Public",17549,"$12609","$708","$36476"]
["University of Colorado System Office","Public",null,"Data not reported to IPEDS","Data not reported to IPEDS","Data not reported to IPEDS"]
["University of Connecticut","Public",25389,"$7249","$26548","$43424"]
["University of Connecticut-Avery Point","Public",643,"Data not reported to IPEDS","Data not reported to IPEDS","Data not reported to IPEDS"]
["University of Connecticut-Stamford","Public",1339,"Data not reported to IPEDS","Data not reported to IPEDS","Data not reported to IPEDS"]
["University of Connecticut-Waterbury Campus","Public",2025,"Data not reported to IPEDS","Data not reported to IPEDS","Data not reported to IPEDS"]
["University of Dallas","Private",2173,"$4639","$0","$26127"]
["University of Dayton","Private",10699,"$6441","$0","$20129"]
["University of Delaware","Public",23013,"$11981","$5300","$26707"]
["University of Denver","Private",10807,"$13075","$0","$32514"]
["University of Detroit Mercy","Private",4512,"$12963","$0","$32391"]
["University of Dubuque","Private",2111,"$10920","$0","$23363"]
["University of Evansville","Private",2526,"$-1839","$0","$23839"]
["University of Florida","Public",47599,"$6400","$14056","$20667"]
["University of Florida-Online","Public",1276,"$34","$3948","$7741"]
["University of Fort Lauderdale","Private",17,"$6201","$0","$37197"]
["University of Georgia","Public",36598,"$8457","$11413","$14326"]
["University of Hartford","Private",6483,"$4749","$0","$24195"]
["University of Hawaii Maui College","Public",1965,"$1979","$8031","$20010"]
["University of Hawaii System Office","Public",null,"Data not reported to IPEDS","Data not reported to IPEDS","Data not reported to IPEDS"]
["University of Hawaii at Hilo","Public",3424,"$5326","$9698","$22185"]
["University of Hawaii at Manoa","Public",16450,"$6840","$13672","$28756"]
["University of Hawaii-West Oahu","Public",1901,"$3847","$7148","$19605"]
["University of Holy Cross","Private",773,"$14352","$0","$17211"]
["University of Houston","Public",35837,"$7958","$5301","$14840"]
["University of Houston-Clear Lake","Public",6512,"$8420","$5585","$16509"]
["University of Houston-Downtown","Public",10601,"$5496","$2856","$10287"]
["University of Houston-System Administration","Public",null,"Data not reported to IPEDS","Data not reported to IPEDS","Data not reported to IPEDS"]
["University of Houston-Victoria","Public",3075,"$4550","$6401","$15861"]
["University of Idaho","Public",9884,"$6133","$13231","$17224"]
["University of Illinois University Administration","Public",null,"Data not reported to IPEDS","Data not reported to IPEDS","Data not reported to IPEDS"]
["University of Illinois at Chicago","Public",29227,"$11608","$2355","$38011"]
["University of Illinois at Springfield","Public",4369,"$8608","$1265","$19837"]
["University of Illinois at Urbana-Champaign","Public",50812,"$13653","$1327","$23723"]
["University of Indianapolis","Private",5427,"$6859","$0","$18667"]
["University of Iowa","Public",28456,"$9176","$8534","$22341"]
["University of Jamestown","Private",1131,"$1337","$0","$18253"]
["University of Kansas","Public",25704,"$11049","$9662","$23405"]
["University of Kentucky","Public",27299,"$7261","$11111","$16980"]
["University of La Verne","Private",7115,"$12533","$0","$19974"]
["University of Louisiana at Lafayette","Public",15443,"$6657","$3000","$9444"]
["University of Louisiana at Monroe","Public",7050,"$6028","$3616","$11674"]
["University of Louisiana-System Administration","Public",null,"Data not reported to IPEDS","Data not reported to IPEDS","Data not reported to IPEDS"]
["University of Louisville","Public",18348,"$6841","$7751","$26189"]
["University of Maine","Public",9336,"$5036","$9869","$17947"]
["University of Maine at Augusta","Public",2902,"$4008","$5765","$12980"]
["University of Maine at Farmington","Public",1861,"$3451","$6212","$19636"]
["University of Maine at Fort Kent","Public",970,"$4502","$4962","$15072"]
["University of Maine at Machias","Public",506,"$1441","$9925","$21155"]
["University of Maine at Presque Isle","Public",824,"$2093","$7979","$20357"]
["University of Maine-System Central Office","Public",null,"Data not reported to IPEDS","Data not reported to IPEDS","Data not reported to IPEDS"]
["University of Mary","Private",2925,"$11521","$0","$18964"]
["University of Mary Hardin-Baylor","Private",3431,"$11824","$0","$21695"]
["University of Mary Washington","Public",4244,"$7118","$6668","$17353"]
["University of Maryland  Baltimore","Public",6419,"$13934","$33807","$46942"]
["University of Maryland Eastern Shore","Public",4244,"$2279","$9193","$18067"]
["University of Maryland-Baltimore County","Public",11342,"$7575","$9907","$16882"]
["University of Maryland-College Park","Public",33954,"$10856","$14267","$22243"]
["University of Maryland-University College","Public",30932,"$8646","$1276","$10070"]
["University of Massachusetts Medical School Worcester","Public",1066,"$15331","$47499","$76911"]
["University of Massachusetts-Amherst","Public",28789,"$9135","$11099","$24835"]
["University of Massachusetts-Boston","Public",13603,"$11138","$8674","$24859"]
["University of Massachusetts-Central Office","Public",null,"Data not reported to IPEDS","Data not reported to IPEDS","Data not reported to IPEDS"]
["University of Massachusetts-Dartmouth","Public",7869,"$6575","$9654","$23161"]
["University of Massachusetts-Lowell","Public",13827,"$10434","$7574","$22437"]
["University of Memphis","Public",16453,"$6100","$6202","$18728"]
["University of Miami","Private",17078,"$17589","$937","$50034"]
["University of Michigan-Ann Arbor","Public",44527,"$13794","$6737","$37791"]
["University of Michigan-Dearborn","Public",6835,"$9959","$3516","$20105"]
["University of Michigan-Flint","Public",6804,"$9544","$3206","$18311"]
["University of Minnesota-Crookston","Public",1866,"$4496","$5440","$14336"]
["University of Minnesota-Duluth","Public",10197,"$7266","$4103","$13970"]
["University of Minnesota-Morris","Public",1774,"$2004","$11296","$20695"]
["University of Minnesota-Rochester","Public",398,"$13391","$19885","$26186"]
["University of Minnesota-Twin Cities","Public",48844,"$9272","$11952","$26772"]
["University of Mississippi","Public",23733,"$5857","$11872","$23933"]
["University of Missouri-Columbia","Public",31638,"$7459","$7083","$16621"]
["University of Missouri-Kansas City","Public",12237,"$8264","$6490","$21358"]
["University of Missouri-St Louis","Public",10115,"$6534","$5864","$15911"]
["University of Missouri-System Office","Public",null,"Data not reported to IPEDS","Data not reported to IPEDS","Data not reported to IPEDS"]
["University of Mobile","Private",1477,"$630","$0","$16057"]
["University of Montevallo","Public",2671,"$4507","$6745","$23318"]
["University of Mount Olive","Private",3158,"$7256","$0","$12050"]
["University of Mount Union","Private",2369,"$1649","$0","$21403"]
["University of Nebraska Medical Center","Public",3813,"$8535","$41540","$62198"]
["University of Nebraska at Kearney","Public",5608,"$3028","$7247","$14553"]
["University of Nebraska at Omaha","Public",12717,"$4406","$5330","$13750"]
["University of Nebraska-Central Administration System Office","Public",null,"Data not reported to IPEDS","Data not reported to IPEDS","Data not reported to IPEDS"]
["University of Nebraska-Lincoln","Public",22244,"$5801","$12267","$14974"]
["University of Nevada-Las Vegas","Public",26389,"$6178","$6961","$17946"]
["University of Nevada-Reno","Public",18754,"$5521","$8877","$22254"]
["University of New England","Private",6965,"$16369","$0","$19639"]
["University of New Hampshire at Manchester","Public",833,"$9752","$2917","$20930"]
["University of New Hampshire-Main Campus","Public",15609,"$7240","$3390","$17899"]
["University of New Hampshire-School of Law","Public",258,"$-2174","$0","$45841"]
["University of New Haven","Private",6379,"$12821","$0","$24251"]
["University of New Mexico-Gallup Campus","Public",1643,"$1326","$7213","$10772"]
["University of New Mexico-Los Alamos Campus","Public",451,"$1431","$5638","$8180"]
["University of New Mexico-Main Campus","Public",24272,"$4221","$12011","$16687"]
["University of New Mexico-Taos Campus","Public",823,"$931","$7058","$9113"]
["University of New Mexico-Valencia County Campus","Public",1241,"$822","$6729","$10065"]
["University of New Orleans","Public",6684,"$6851","$4681","$11733"]
["University of North Alabama","Public",5873,"$4927","$4831","$13212"]
["University of North Carolina School of the Arts","Public",1009,"$12428","$29356","$51038"]
["University of North Carolina System","Public",null,"Data not reported to IPEDS","Data not reported to IPEDS","Data not reported to IPEDS"]
["University of North Carolina Wilmington","Public",13382,"$6619","$8524","$15061"]
["University of North Carolina at Asheville","Public",3397,"$5917","$11413","$19132"]
["University of North Carolina at Chapel Hill","Public",28447,"$10516","$17363","$38790"]
["University of North Carolina at Charlotte","Public",24928,"$6972","$8862","$15218"]
["University of North Carolina at Greensboro","Public",17473,"$3993","$8518","$14414"]
["University of North Carolina at Pembroke","Public",5698,"$3250","$9519","$15159"]
["University of North Dakota","Public",13307,"$9567","$8796","$26731"]
["University of North Florida","Public",13399,"$3414","$7223","$15831"]
["University of North Georgia","Public",14536,"$4442","$3746","$11169"]
["University of North Texas","Public",32256,"$6897","$4115","$11323"]
["University of North Texas Health Science Center","Public",2471,"$11002","$39544","$60956"]
["University of North Texas System","Public",null,"Data not reported to IPEDS","Data not reported to IPEDS","Data not reported to IPEDS"]
["University of North Texas at Dallas","Public",2054,"$5123","$8490","$13228"]
["University of Northern Colorado","Public",10377,"$7954","$0","$17165"]
["University of Northern Iowa","Public",10586,"$4155","$9613","$16975"]
["University of Northwestern Ohio","Private",4347,"$8195","$0","$10060"]
["University of Northwestern-St Paul","Private",2718,"$7430","$0","$18448"]
["University of Notre Dame","Private",13123,"$2275","$0","$53496"]
["University of Oklahoma-Health Sciences Center","Public",4476,"$12624","$19050","$70289"]
["University of Oklahoma-Norman Campus","Public",23704,"$8769","$5401","$19429"]
["University of Oregon","Public",23358,"$14074","$2763","$23813"]
["University of Pennsylvania","Private",24576,"$24510","$1340","$84549"]
["University of Pikeville","Private",1997,"$9276","$0","$18297"]
["University of Pittsburgh Medical Center-Shadyside School of Nursing","Private",239,"$15245","$0","$33381"]
["University of Pittsburgh-Bradford","Public",1610,"$5852","$0","$16190"]
["University of Pittsburgh-Greensburg","Public",1507,"$10475","$0","$12997"]
["University of Pittsburgh-Johnstown","Public",2787,"$10008","$0","$11304"]
["University of Pittsburgh-Pittsburgh Campus","Public",29513,"$12227","$5229","$29942"]
["University of Pittsburgh-Titusville","Public",324,"$9541","$0","$20411"]
["University of Portland","Private",4448,"$5599","$0","$25268"]
["University of Providence","Private",808,"$-2732","$0","$18589"]
["University of Puget Sound","Private",2400,"$13246","$0","$43264"]
["University of Redlands","Private",5040,"$7438","$0","$24202"]
["University of Rhode Island","Public",16006,"$7073","$4512","$16415"]
["University of Richmond","Private",4087,"$7930","$0","$49777"]
["University of Rio Grande","Private",1810,"$5526","$0","$11482"]
["University of Rochester","Private",11411,"$7028","$105","$56564"]
["University of Saint Francis-Fort Wayne","Private",2023,"$7232","$0","$19567"]
["University of Saint Joseph","Private",2024,"$14953","$186","$21820"]
["University of Saint Mary","Private",1316,"$7351","$0","$18775"]
["University of Saint Mary of the Lake","Private",126,"$40455","$0","$86013"]
["University of San Diego","Private",8004,"$16528","$0","$32934"]
["University of San Francisco","Private",10466,"$18594","$0","$32836"]
["University of Science and Arts of Oklahoma","Public",831,"$1665","$8040","$17645"]
["University of Scranton","Private",5549,"$8820","$0","$23794"]
["University of Sioux Falls","Private",1351,"$960","$0","$17943"]
["University of South Alabama","Public",15775,"$6993","$6658","$17302"]
["University of South Carolina-Aiken","Public",3040,"$5252","$2551","$12773"]
["University of South Carolina-Beaufort","Public",1770,"$5459","$1846","$14335"]
["University of South Carolina-Columbia","Public",33218,"$7918","$3610","$17226"]
["University of South Carolina-Lancaster","Public",1158,"$2250","$1750","$11381"]
["University of South Carolina-Salkehatchie","Public",696,"$1410","$2295","$11530"]
["University of South Carolina-Sumter","Public",644,"$2287","$4564","$14335"]
["University of South Carolina-Union","Public",388,"$1282","$2069","$11492"]
["University of South Carolina-Upstate","Public",5099,"$5368","$2108","$13457"]
["University of South Dakota","Public",7953,"$6406","$7210","$19149"]
["University of South Florida-Main Campus","Public",36964,"$4865","$8805","$15070"]
["University of South Florida-Sarasota-Manatee","Public",1837,"$4717","$8639","$16036"]
["University of South Florida-St Petersburg","Public",4113,"$4550","$6661","$14918"]
["University of Southern California","Private",39206,"$21096","$0","$71558"]
["University of Southern Indiana","Public",8539,"$4074","$6948","$14218"]
["University of Southern Maine","Public",6029,"$6000","$7954","$16727"]
["University of Southern Mississippi","Public",13486,"$3699","$6825","$13935"]
["University of St Francis","Private",3077,"$7146","$0","$16528"]
["University of St Thomas","Private",9140,"$7860","$0","$27582"]
["University of St Thomas","Private",2568,"$10219","$0","$23349"]
["University of Texas Health Science Center at Tyler","Public",19,"$1780","$2921851","$1474466"]
["University of Texas Southwestern Medical Center","Public",2062,"$9827","$90735","$517301"]
["University of Toledo","Public",18456,"$6538","$5985","$21902"]
["University of Tulsa","Private",4428,"$1147","$0","$35730"]
["University of Utah","Public",28324,"$8023","$11069","$17951"]
["University of Valley Forge","Private",767,"$8096","$112","$22158"]
["University of Vermont","Public",12251,"$15818","$3511","$28567"]
["University of Virginia-Main Campus","Public",24359,"$14229","$5869","$30094"]
["University of Washington-Bothell Campus","Public",5176,"Data not reported to IPEDS","Data not reported to IPEDS","Data not reported to IPEDS"]
["University of Washington-Seattle Campus","Public",47006,"$16585","$6427","$42730"]
["University of Washington-Tacoma Campus","Public",4652,"Data not reported to IPEDS","Data not reported to IPEDS","Data not reported to IPEDS"]
["University of West Alabama","Public",3121,"$7295","$4600","$14715"]
["University of West Georgia","Public",11214,"$5102","$4447","$13608"]
["University of Western States","Private",822,"$23374","$0","$22574"]
["University of Wisconsin Colleges","Public",8658,"$3535","$3295","$11541"]
["University of Wisconsin Extension","Public",null,"Data not reported to IPEDS","Data not reported to IPEDS","Data not reported to IPEDS"]
["University of Wisconsin-Eau Claire","Public",9753,"$6289","$2920","$14677"]
["University of Wisconsin-Green Bay","Public",5055,"$4765","$3616","$14451"]
["University of Wisconsin-La Crosse","Public",10275,"$6503","$1973","$13708"]
["University of Wisconsin-Madison","Public",38624,"$9395","$9127","$23882"]
["University of Wisconsin-Milwaukee","Public",22810,"$8329","$4644","$16279"]
["University of Wisconsin-Oshkosh","Public",10325,"$4770","$2996","$14736"]
["University of Wisconsin-Parkside","Public",3712,"$4641","$5711","$15348"]
["University of Wisconsin-Platteville","Public",7815,"$5262","$2739","$13571"]
["University of Wisconsin-River Falls","Public",5368,"$6057","$3470","$14716"]
["University of Wisconsin-Stevens Point","Public",8408,"$5735","$3187","$14005"]
["University of Wisconsin-Stout","Public",8165,"$5442","$3060","$14476"]
["University of Wisconsin-Superior","Public",2131,"$5234","$9131","$21623"]
["University of Wisconsin-System Administration","Public",null,"Data not reported to IPEDS","Data not reported to IPEDS","Data not reported to IPEDS"]
["University of Wisconsin-Whitewater","Public",11250,"$5734","$1630","$12876"]
["University of Wyoming","Public",11065,"$2800","$22234","$22872"]
["University of the Cumberlands","Private",4998,"$4969","$0","$9833"]
["University of the District of Columbia","Public",3459,"$9267","$20799","$31744"]
["University of the District of Columbia-David A Clarke School of Law","Public",301,"Data not reported to IPEDS","Data not reported to IPEDS","Data not reported to IPEDS"]
["University of the Incarnate Word","Private",8285,"$7685","$0","$18286"]
["University of the Ozarks","Private",674,"$-4334","$0","$30935"]
["University of the Pacific","Private",7114,"$21716","$0","$40321"]
["University of the People","Private",1039,"$340","$0","$2501"]
["University of the Sciences","Private",2691,"$14299","$0","$32344"]
["University of the Southwest","Private",793,"$6374","$0","$15358"]
["University of the West","Private",215,"$6541","$0","$39383"]
["Upper Cape Cod Regional Technical School","Public",94,"$7266","$0","$6172"]
["Upper Iowa University","Private",5274,"$6123","$0","$10195"]
["Upper Valley Career Center","Public",387,"$1923","$1177","$6025"]
["Upper Valley Educators Institute","Private",42,"$13822","$0","$22246"]
["Upstate Medical University","Public",1402,"$20034","$121656","$132962"]
["Urban College of Boston","Private",370,"$5365","$0","$10477"]
["Urbana University","Private",1488,"$1507","$0","$9848"]
["Urshan Graduate School of Theology","Private",43,"$4283","$0","$25895"]
["Ursinus College","Private",1653,"$-7116","$0","$34995"]
["Ursuline College","Private",903,"$12199","$0","$26976"]
["Uta Mesivta of Kiryas Joel","Private",1691,"$9851","$0","$11956"]
["Utah State University","Public",22776,"$2477","$8257","$13664"]
["Utah Valley University","Public",25698,"$3886","$3992","$10376"]
["Utica College","Private",3970,"$3726","$131","$20615"]
["Valdosta State University","Public",9907,"$5993","$4590","$14685"]
["Valencia College","Public",30388,"$2004","$2619","$7502"]
["Valley City State University","Public",1107,"$5005","$10258","$22076"]
["Valley Forge Military College","Private",348,"$7094","$0","$46714"]
["Valley Grande Institute for Academic Studies","Private",424,"$11517","$0","$10060"]
["Valor Christian College","Private",213,"$4416","$0","$7182"]
["Valparaiso University","Private",4627,"$2230","$0","$24161"]
["Vance-Granville Community College","Public",2219,"$1016","$8550","$12736"]
["VanderCook College of Music","Private",353,"$12166","$0","$12398"]
["Vanderbilt University","Private",11508,"$3744","$0","$66613"]
["Vanguard University of Southern California","Private",1971,"$6044","$0","$18981"]
["Vanguard-Sentinel Adult Career and Technology Center","Public",27,"$1474","$0","$10031"]
["Vassar College","Private",2444,"$2172","$74","$69784"]
["Vaughn College of Aeronautics and Technology","Private",1558,"$15438","$21","$24720"]
["Veeb Nassau County School of Practical Nursing","Public",184,"$16473","$0","$43446"]
["Venango County Area Vocational Technical School","Public",81,"$5303","$2310","$10065"]
["Ventura Adult and Continuing Education","Public",196,"$2843","$17154","$19136"]
["Ventura College","Public",8098,"$565","$6802","$7825"]
["Ventura County Community College System Office","Public",null,"Data not reported to IPEDS","Data not reported to IPEDS","Data not reported to IPEDS"]
["Vermilion Community College","Public",501,"$2749","$6006","$13351"]
["Vermont College of Fine Arts","Private",478,"$14304","$0","$21604"]
["Vermont Law School","Private",551,"$15283","$367","$56526"]
["Vermont State Colleges-Office of the Chancellor","Public",null,"Data not reported to IPEDS","Data not reported to IPEDS","Data not reported to IPEDS"]
["Vermont Technical College","Public",1332,"$13589","$4808","$22521"]
["Vernon College","Public",1898,"$2109","$5096","$10177"]
["Victor Valley College","Public",7989,"$375","$6998","$10505"]
["Victoria College","Public",2351,"$3955","$8762","$14544"]
["Victory Trade School","Private",null,"Data not reported to IPEDS","Data not reported to IPEDS","Data not reported to IPEDS"]
["Villa Maria College","Private",455,"$8802","$30","$21341"]
["Villanova University","Private",10209,"$15775","$0","$33926"]
["Vinal Technical High School","Public",25,"$3754","$17408","$25791"]
["Vincennes University","Public",9774,"$2534","$5337","$10286"]
["Virginia Baptist College","Private",67,"$6094","$0","$9928"]
["Virginia Beach City Public Schools School of Practical Nursing","Public",41,"$1423","$0","$12443"]
["Virginia Beach Theological Seminary","Private",24,"$6617","$0","$17494"]
["Virginia Commonwealth University","Public",28061,"$9512","$7608","$22188"]
["Virginia Highlands Community College","Public",1501,"$1825","$4564","$10253"]
["Virginia International University","Private",1101,"$17812","$0","$12415"]
["Virginia Military Institute","Public",1936,"$9369","$7078","$29196"]
["Virginia Polytechnic Institute and State University","Public",33041,"$10593","$7586","$16119"]
["Virginia State University","Public",4581,"$3259","$9993","$16617"]
["Virginia Tech Carilion School of Medicine","Private",165,"$33477","$510","$99984"]
["Virginia Union University","Private",1701,"$8987","$0","$18704"]
["Virginia University of Lynchburg","Private",297,"$6376","$0","$20130"]
["Virginia Wesleyan University","Private",1546,"$345","$0","$24337"]
["Virginia Western Community College","Public",4568,"$3076","$3522","$9266"]
["Visible Music College","Private",95,"$18994","$0","$42922"]
["Viterbo University","Private",2555,"$6589","$0","$15400"]
["Volunteer State Community College","Public",5408,"$2255","$3218","$9181"]
["Voorhees College","Private",431,"$8318","$0","$28611"]
["W F Kaynor Technical High School","Public",39,"$6472","$15752","$22494"]
["W L Bonner College","Private",9,"$2031","$0","$12827"]
["Wabash College","Private",870,"$-5049","$0","$48472"]
["Wabash Valley College","Public",2071,"$-780","$2110","$3935"]
["Wagner College","Private",2145,"$4517","$76","$31399"]
["Wake Forest University","Private",7958,"$16692","$0","$92789"]
["Wake Technical Community College","Public",16940,"$1850","$4977","$8196"]
["Walla Walla Community College","Public",3933,"$916","$4460","$11358"]
["Walla Walla University","Private",1839,"$8828","$0","$22455"]
["Walsh College of Accountancy and Business Administration","Private",1639,"$15271","$0","$19361"]
["Walsh University","Private",2658,"$1973","$0","$17154"]
["Walters State Community College","Public",3881,"$2376","$5456","$11670"]
["Warner Pacific College","Private",504,"$20885","$0","$36172"]
["Warner Pacific College Adult Degree Program","Private",631,"Data not reported to IPEDS","Data not reported to IPEDS","Data not reported to IPEDS"]
["Warner University","Private",1062,"$5320","$0","$15154"]
["Warren County Career Center","Public",180,"$9117","$0","$10032"]
["Warren County Community College","Public",1253,"$3120","$3587","$9073"]
["Warren Wilson College","Private",882,"$696","$0","$31895"]
["Warrensburg Area Career Center","Public",34,"$6504","$0","$17602"]
["Wartburg College","Private",1580,"$-2182","$0","$27319"]
["Wartburg Theological Seminary","Private",122,"$287","$0","$38473"]
["Washburn Institute of Technology","Public",1180,"$1556","$5296","$11711"]
["Washburn University","Public",5003,"$3987","$7415","$17903"]
["Washington & Jefferson College","Private",1346,"$-3357","$0","$38626"]
["Washington Adventist University","Private",903,"$12373","$0","$24492"]
["Washington College","Private",1516,"$6295","$0","$40221"]
["Washington County Adult Skill Center","Public",null,"Data not reported to IPEDS","Data not reported to IPEDS","Data not reported to IPEDS"]
["Washington County Career Center-Adult Technical Training","Public",147,"$8632","$0","$14023"]
["Washington County Community College","Public",323,"$3767","$15009","$24381"]
["Washington Hospital School of Nursing","Private",89,"$4952","$1158","$33683"]
["Washington Hospital School of Radiologic Technology","Private",29,"$6240","$0","$12956"]
["Washington Saratoga Warren Hamilton Essex BOCES-Practical Nursing Program","Public",33,"$4127","$0","$8245"]
["Washington State Community College","Public",1112,"$3291","$4892","$10532"]
["Washington State University","Public",27967,"$6708","$7109","$17539"]
["Washington University in St Louis","Private",14353,"$6431","$0","$147923"]
["Washington and Lee University","Private",2053,"$5140","$0","$65653"]
["Washtenaw Community College","Public",8168,"$3118","$7852","$14297"]
["Watkins College of Art Design & Film","Private",211,"$19563","$0","$24450"]
["Watts School of Nursing","Private",182,"$11222","$0","$14604"]
["Waubonsee Community College","Public",6841,"$2354","$9685","$12492"]
["Waukesha County Technical College","Public",3732,"$2788","$17812","$24904"]
["Wave Leadership College","Private",68,"$5208","$0","$7419"]
["Wayland Baptist University","Private",4299,"$7873","$0","$13256"]
["Wayne Community College","Public",2511,"$989","$8023","$11651"]
["Wayne County Community College District","Public",8631,"$1850","$10928","$15188"]
["Wayne County Schools Career Center","Public",128,"$5086","$0","$11515"]
["Wayne Finger Lakes BOCES-Practical Nursing Program","Public",158,"$7165","$0","$11804"]
["Wayne State College","Public",2970,"$3553","$7287","$15511"]
["Wayne State University","Public",24718,"$7521","$7745","$20482"]
["Waynesburg University","Private",1486,"$5848","$0","$26472"]
["Waynesville Career Center","Public",63,"$8315","$0","$26141"]
["Weatherford College","Public",3860,"$1675","$5897","$10670"]
["Webb Institute","Private",91,"$-44275","$0","$81563"]
["Webber International University","Private",706,"$2745","$0","$17650"]
["Weber State University","Public",17068,"$3580","$4527","$11512"]
["Webster University","Private",10128,"$13184","$0","$19097"]
["Weill Cornell Medical College","Private",1070,"$7659","$150","$362945"]
["Welch College","Private",253,"$5014","$0","$17810"]
["Wellesley College","Private",2524,"$-474","$0","$84282"]
["Wellington Shaw Christian University","Private",null,"Data not reported to IPEDS","Data not reported to IPEDS","Data not reported to IPEDS"]
["Wells College","Private",575,"$-11118","$0","$34279"]
["Wenatchee Valley College","Public",2814,"$1322","$4653","$11105"]
["Wentworth Institute of Technology","Private",4789,"$7540","$73","$21928"]
["Wentworth Military Academy and College","Private",426,"$11166","$0","$21594"]
["Wes Watkins Technology Center","Public",64,"$1825","$48544","$53784"]
["Wesley Biblical Seminary","Private",47,"$5690","$0","$29353"]
["Wesley College","Private",1522,"$2061","$0","$19456"]
["Wesley Theological Seminary","Private",527,"$3029","$0","$24793"]
["Wesleyan College","Private",673,"$4304","$0","$24274"]
["Wesleyan University","Private",3362,"$12827","$0","$49487"]
["West Chester University of Pennsylvania","Public",15401,"$9166","$3294","$16216"]
["West Georgia Technical College","Public",4435,"$2370","$4184","$10848"]
["West Hills College-Coalinga","Public",1656,"$690","$5799","$12363"]
["West Hills College-Lemoore","Public",2506,"$469","$7126","$15205"]
["West Hills Community College District","Public",null,"Data not reported to IPEDS","Data not reported to IPEDS","Data not reported to IPEDS"]
["West Kentucky Community and Technical College","Public",3483,"$-1128","$2461","$9059"]
["West Liberty University","Public",2214,"$3942","$3554","$10568"]
["West Los Angeles College","Public",6599,"$957","$7804","$10637"]
["West Shore Community College","Public",769,"$1662","$15269","$21122"]
["West Texas A & M University","Public",7889,"$5476","$5010","$13906"]
["West Valley College","Public",5505,"Data not reported to IPEDS","Data not reported to IPEDS","Data not reported to IPEDS"]
["West Valley Mission Community College District Office","Public",null,"Data not reported to IPEDS","Data not reported to IPEDS","Data not reported to IPEDS"]
["West Virginia Northern Community College","Public",1291,"$1842","$5261","$8850"]
["West Virginia School of Osteopathic Medicine","Public",832,"$39031","$8946","$39941"]
["West Virginia State University","Public",2208,"$3121","$5199","$12326"]
["West Virginia University","Public",28423,"$10508","$6389","$18368"]
["West Virginia University Hospital Departments of Rad Tech and Nutrition","Private",52,"$2252","$0","$7332"]
["West Virginia University Institute of Technology","Public",1082,"Data not reported to IPEDS","Data not reported to IPEDS","Data not reported to IPEDS"]
["West Virginia University at Parkersburg","Public",1884,"$3178","$4988","$10001"]
["West Virginia Wesleyan College","Private",1469,"$-5595","$0","$20480"]
["WestMed College","Private",383,"$6019","$0","$10923"]
["Western Area Career & Technology Center","Public",107,"$4570","$1617","$8966"]
["Western Carolina University","Public",9332,"$5360","$9836","$15142"]
["Western Connecticut State University","Public",4885,"$7107","$11277","$25656"]
["Western Dakota Technical Institute","Public",817,"$6102","$17292","$13480"]
["Western Governors University","Private",54750,"$7675","$0","$7473"]
["Western Illinois University","Public",9716,"$6757","$1537","$22165"]
["Western Iowa Tech Community College","Public",3611,"$2837","$5517","$11754"]
["Western Kentucky University","Public",16357,"$6201","$4655","$17103"]
["Western Michigan University","Public",19792,"$8748","$5272","$19483"]
["Western Michigan University-Thomas M. Cooley Law School","Private",1528,"$22017","$0","$31693"]
["Western Nebraska Community College","Public",1155,"$989","$19023","$24116"]
["Western Nevada College","Public",2293,"$1901","$5691","$11322"]
["Western New England University","Private",3692,"$9136","$0","$26303"]
["Western New Mexico University","Public",2440,"$3778","$8425","$14158"]
["Western Oklahoma State College","Public",931,"$947","$5869","$12269"]
["Western Oregon University","Public",4986,"$4699","$4649","$15175"]
["Western Pennsylvania Hospital School of Nursing","Private",133,"$5450","$0","$10265"]
["Western Piedmont Community College","Public",1549,"$1002","$9091","$11649"]
["Western Seminary","Private",449,"$10723","$0","$18789"]
["Western State Colorado University","Public",2238,"$6178","$0","$18290"]
["Western Suffolk BOCES","Public",485,"$5020","$0","$5032"]
["Western Technical College","Public",2997,"$2868","$17577","$24788"]
["Western Technology Center","Public",393,"$1282","$22658","$24685"]
["Western Texas College","Public",1100,"$1713","$12769","$10347"]
["Western Theological Seminary","Private",231,"$2376","$0","$38517"]
["Western University of Health Sciences","Private",3876,"$43091","$0","$43860"]
["Western Washington University","Public",14202,"$6641","$4399","$15935"]
["Western Wyoming Community College","Public",1869,"$-103","$15083","$20983"]
["Westfield State University","Public",6185,"$6907","$5404","$14951"]
["Westminster College","Private",2656,"$7289","$0","$26941"]
["Westminster College","Private",1364,"$-3901","$0","$25776"]
["Westminster College","Private",878,"$-5224","$0","$23598"]
["Westminster Theological Seminary","Private",414,"$6573","$0","$22542"]
["Westminster Theological Seminary in California","Private",152,"$6479","$0","$32006"]
["Westmont College","Private",1478,"$7411","$0","$35093"]
["Westmoreland County Community College","Public",3893,"$4905","$3337","$10235"]
["Wharton County Junior College","Public",4852,"$4007","$3575","$7497"]
["Whatcom Community College","Public",3109,"$3245","$3942","$12553"]
["Wheaton College","Private",2938,"$9604","$0","$37706"]
["Wheaton College","Private",1579,"$610","$0","$44231"]
["Wheeling Jesuit University","Private",1211,"$4330","$0","$22332"]
["Wheelock College","Private",1099,"$10636","$0","$32874"]
["White Earth Tribal and Community College","Private",74,"$-1415","$0","$25989"]
["White Mountains Community College","Public",642,"$6226","$7132","$10760"]
["Whitman College","Private",1396,"$14098","$0","$52655"]
["Whittier College","Private",2194,"$8242","$0","$32264"]
["Whitworth University","Private",2757,"$2066","$0","$23892"]
["Whitworth University-Adult Degree Programs","Private",252,"$14773","$0","$11746"]
["Wichita Area Technical College","Public",2223,"$3529","$2929","$11947"]
["Wichita State University","Public",11533,"$6712","$6290","$12453"]
["Widener University","Private",5617,"$6970","$0","$26313"]
["Widener University-Commonwealth Law School","Private",null,"Data not reported to IPEDS","Data not reported to IPEDS","Data not reported to IPEDS"]
["Widener University-Delaware Law School","Private",null,"Data not reported to IPEDS","Data not reported to IPEDS","Data not reported to IPEDS"]
["Wilberforce University","Private",526,"$12627","$0","$35402"]
["Wiley College","Private",1214,"$7366","$0","$15094"]
["Wilkes Community College","Public",1934,"$678","$9746","$14222"]
["Wilkes University","Private",4137,"$9923","$0","$20337"]
["Wilkes-Barre Area Career and Technical Center Practical Nursing","Public",162,"$6165","$2768","$10418"]
["Willamette University","Private",2634,"$4249","$0","$33320"]
["William Carey University","Private",4170,"$10198","$0","$10415"]
["William James College","Private",784,"$28034","$0","$33001"]
["William Jessup University","Private",1235,"$6382","$0","$17253"]
["William Jewell College","Private",1106,"$-6689","$0","$27345"]
["William Moore College of Technology","Private",203,"$2200","$0","$10531"]
["William Paterson University of New Jersey","Public",9503,"$8684","$6394","$22766"]
["William Peace University","Private",973,"$4113","$0","$15577"]
["William Penn University","Private",1488,"$-798","$0","$14480"]
["William Rainey Harper College","Public",9951,"$3970","$10887","$16264"]
["William T McFatter Technical College","Public",941,"$2396","$0","$8724"]
["William Woods University","Private",1418,"$4122","$0","$16039"]
["Williams Baptist College","Private",487,"$657","$0","$16970"]
["Williams College","Private",2200,"$9020","$0","$98886"]
["Williamsburg Technical College","Public",457,"$526","$6490","$14071"]
["Williamson Christian College","Private",62,"$9612","$0","$11648"]
["Williston State College","Public",738,"$-3131","$8142","$23811"]
["Willoughby-Eastlake School of Practical Nursing","Public",126,"$6102","$0","$10526"]
["Wilmington College","Private",1119,"$231","$0","$23565"]
["Wilmington University","Private",11701,"$9644","$0","$8546"]
["Wilson College","Private",670,"$5231","$0","$33817"]
["Wilson Community College","Public",1432,"$774","$7914","$11229"]
["Wilson Workforce and Rehabilitation Center","Public",183,"$69581","$22158","$118530"]
["Windham Memorial Hospital-Radiologic Technology Program","Private",null,"Data not reported to IPEDS","Data not reported to IPEDS","Data not reported to IPEDS"]
["Windham Technical High School","Public",8,"$212","$35989","$36759"]
["Windward Community College","Public",1348,"$2148","$8392","$17926"]
["Winebrenner Theological Seminary","Private",62,"$9157","$0","$51588"]
["Wingate University","Private",3215,"$1881","$0","$18372"]
["Winona State University","Public",7828,"$5266","$4721","$14107"]
["Winston-Salem State University","Public",4775,"$3228","$13762","$20124"]
["Winthrop University","Public",5497,"$5069","$2741","$17890"]
["Wiregrass Georgia Technical College","Public",2470,"$2415","$5400","$12192"]
["Wisconsin Indianhead Technical College","Public",1898,"$1235","$21820","$30526"]
["Wisconsin Lutheran College","Private",1264,"$1565","$0","$22005"]
["Wisconsin School of Professional Psychology","Private",86,"$16150","$0","$17413"]
["Withlacoochee Technical College","Public",277,"$3450","$9977","$16648"]
["Wittenberg University","Private",1974,"$-5292","$0","$24409"]
["Wofford College","Private",1744,"$-2127","$0","$31644"]
["Won Institute of Graduate Studies","Private",97,"$11975","$0","$16268"]
["Wongu University of Oriental Medicine","Private",36,"$4424","$0","$37535"]
["Wood County School of Practical Nursing","Public",36,"$4274","$0","$8855"]
["Woodbury University","Private",1466,"$18511","$0","$28190"]
["Woodland Community College","Public",1761,"$272","$6390","$10299"]
["Wor-Wic Community College","Public",1856,"$2433","$7064","$13780"]
["Worcester Polytechnic Institute","Private",6030,"$13285","$0","$31746"]
["Worcester State University","Public",5444,"$5867","$6173","$16476"]
["Word of Life Bible Institute","Private",576,"$-1473","$0","$11864"]
["World Medicine Institute","Private",37,"$15290","$0","$15089"]
["World Mission University","Private",241,"$3443","$0","$6013"]
["Wright Career College","Private",null,"Data not reported to IPEDS","Data not reported to IPEDS","Data not reported to IPEDS"]
["Wright Graduate University for the Realization of Human Potential","Private",22,"$15076","$0","$56875"]
["Wright State University-Lake Campus","Public",933,"$4630","$3027","$9728"]
["Wright State University-Main Campus","Public",14758,"$6934","$5876","$16515"]
["Wyotech-Blairsville","Private",698,"$16226","$0","$24942"]
["Wyotech-Daytona","Private",409,"$11329","$0","$20648"]
["Wyotech-Laramie","Private",821,"$15616","$0","$17546"]
["Wytheville Community College","Public",1781,"$2585","$4627","$10039"]
["Xavier University","Private",5913,"$4271","$0","$22421"]
["Xavier University of Louisiana","Private",2896,"$9866","$0","$24716"]
["Yakima Valley College","Public",3463,"$898","$5730","$12609"]
["Yale University","Private",14518,"$-6759","$0","$175818"]
["Yale-New Haven Hospital Dietetic Internship","Private",12,"Data not reported to IPEDS","Data not reported to IPEDS","Data not reported to IPEDS"]
["Yavapai College","Public",3802,"$1874","$13098","$14511"]
["Yeshiva College of the Nations Capital","Private",35,"$-10735","$0","$20781"]
["Yeshiva D'monsey Rabbinical College","Private",103,"$3497","$0","$7857"]
["Yeshiva Derech Chaim","Private",153,"$4848","$0","$18665"]
["Yeshiva Gedola Ohr Yisrael","Private",42,"$12434","$0","$43717"]
["Yeshiva Gedolah Imrei Yosef D'spinka","Private",109,"$3261","$0","$10708"]
["Yeshiva Gedolah Kesser Torah","Private",78,"$7982","$0","$13919"]
["Yeshiva Gedolah Shaarei Shmuel","Private",83,"$1752","$0","$9926"]
["Yeshiva Gedolah Zichron Leyma","Private",25,"$-3187","$0","$17920"]
["Yeshiva Gedolah of Greater Detroit","Private",76,"$2142","$0","$33322"]
["Yeshiva Karlin Stolin","Private",135,"$8958","$0","$9213"]
["Yeshiva Ohr Elchonon Chabad West Coast Talmudical Seminary","Private",234,"$8416","$0","$19922"]
["Yeshiva Shaar Hatorah","Private",89,"$18659","$0","$26120"]
["Yeshiva Shaarei Torah of Rockland","Private",171,"$-3808","$0","$8272"]
["Yeshiva Sholom Shachna","Private",83,"$23276","$0","$76245"]
["Yeshiva Toras Chaim","Private",234,"$2383","$0","$14071"]
["Yeshiva University","Private",5614,"$4264","$68","$42276"]
["Yeshiva Yesodei Hatorah","Private",74,"$676","$0","$30215"]
["Yeshiva Zichron Aryeh","Private",51,"$-5927","$0","$58003"]
["Yeshiva and Kollel Harbotzas Torah","Private",34,"$-3048","$0","$14677"]
["Yeshiva of Far Rockaway Derech Ayson Rabbinical Seminary","Private",48,"$23343","$0","$82337"]
["Yeshiva of Machzikai Hadas","Private",428,"$7078","$0","$10342"]
["Yeshiva of Nitra Rabbinical College","Private",251,"$8151","$0","$13670"]
["Yeshiva of the Telshe Alumni","Private",117,"$4653","$0","$58251"]
["Yeshivah Gedolah Rabbinical College","Private",32,"$-4076","$0","$23461"]
["Yeshivas Be'er Yitzchok","Private",66,"$2864","$0","$18096"]
["Yeshivas Maharit D'Satmar","Private",109,"$3470","$0","$12320"]
["Yeshivas Novominsk","Private",155,"$14563","$0","$42947"]
["Yeshivat Mikdash Melech","Private",35,"$-31299","$0","$89279"]
["Yeshivath Beth Moshe","Private",61,"$6465","$0","$49666"]
["Yeshivath Viznitz","Private",779,"$5036","$0","$3173"]
["Yeshivath Zichron Moshe","Private",243,"$-3036","$0","$15034"]
["Yo San University of Traditional Chinese Medicine","Private",393,"$4806","$0","$9376"]
["York College","Private",390,"$2354","$0","$22830"]
["York College of Pennsylvania","Private",4605,"$10335","$0","$18653"]
["York County Community College","Public",911,"$116","$5280","$11787"]
["York County School of Technology-Adult & Continuing Education","Public",459,"$5780","$293","$6768"]
["York Technical College","Public",3457,"$3163","$3222","$9572"]
["Yosemite Community College District Office","Public",null,"Data not reported to IPEDS","Data not reported to IPEDS","Data not reported to IPEDS"]
["Young Harris College","Private",1146,"$-7484","$0","$26866"]
["Youngstown State University","Public",10702,"$6213","$3907","$13303"]
["Yuba College","Public",4628,"$448","$7294","$11756"]
["Zane State College","Public",1641,"$2506","$5419","$12223"]
["Zaytuna College","Private",102,"$-8843","$0","$."]
["duCret School of Arts","Private",null,"Data not reported to IPEDS","Data not reported to IPEDS","Data not reported to IPEDS"]